Workbook

Sheet MainMenu
D2: Main Menu
E6: Set Up
O10: Retrieved from | S10: http://pbismissouri.org/advanced-tiers-spreadsheet-2/
E12: Student Data Entry
C20: =StudentInfo!B5 -> Pat Summitt | D20: =StudentInfo!B6 -> Rick Barnes | E20: =StudentInfo!B7 -> Derek Mason | F20: =StudentInfo!B8 -> Mike Norvel | G20: =StudentInfo!B9 -> 0 | H20: =StudentInfo!B10 -> 0 | I20: =StudentInfo!B11 -> 0 | J20: =StudentInfo!B12 -> 0 | K20: =StudentInfo!B13 -> 0 | L20: =StudentInfo!B14 -> 0
P21: Progress Monitoring Summary Table
C25: =StudentInfo!B15 -> 0 | D25: =StudentInfo!B16 -> 0 | E25: =StudentInfo!B17 -> 0 | F25: =StudentInfo!B18 -> 0 | G25: =StudentInfo!B19 -> 0 | H25: =StudentInfo!B20 -> 0 | I25: =StudentInfo!B21 -> 0 | J25: =StudentInfo!B22 -> 0 | K25: =StudentInfo!B23 -> 0 | L25: =StudentInfo!B24 -> 0
Q27: Number of Students Referred to Tier II | Y27: =COUNTIF(StudentInfo!B5:B104, "*?") -> 4
C30: =StudentInfo!B25 -> 0 | D30: =StudentInfo!B26 -> 0 | E30: =StudentInfo!B27 -> 0 | F30: =StudentInfo!B28 -> 0 | G30: =StudentInfo!B29 -> 0 | H30: =StudentInfo!B30 -> 0 | I30: =StudentInfo!B31 -> 0 | J30: =StudentInfo!B32 -> 0 | K30: =StudentInfo!B33 -> 0 | L30: =StudentInfo!B34 -> 0
Q32: Number of Student Graduated from Tier II | Y32: =COUNTIF(StudentInfo!AF5:AF104, "Y") -> 3
C35: =StudentInfo!B35 -> 0 | D35: =StudentInfo!B36 -> 0 | E35: =StudentInfo!B37 -> 0 | F35: =StudentInfo!B38 -> 0 | G35: =StudentInfo!B39 -> 0 | H35: =StudentInfo!B40 -> 0 | I35: =StudentInfo!B41 -> 0 | J35: =StudentInfo!B42 -> 0 | K35: =StudentInfo!B43 -> 0 | L35: =StudentInfo!B44 -> 0
Q37: Number of Students Referred to Tier III | Y37: =COUNTIF(StudentInfo!AG5:AG104, "Y") -> 1
C40: =StudentInfo!B45 -> 0 | D40: =StudentInfo!B46 -> 0 | E40: =StudentInfo!B47 -> 0 | F40: =StudentInfo!B48 -> 0 | G40: =StudentInfo!B49 -> 0 | H40: =StudentInfo!B50 -> 0 | I40: =StudentInfo!B51 -> 0 | J40: =StudentInfo!B52 -> 0 | K40: =StudentInfo!B53 -> 0 | L40: =StudentInfo!B54 -> 0
C45: =StudentInfo!B55 -> 0 | D45: =StudentInfo!B56 -> 0 | E45: =StudentInfo!B57 -> 0 | F45: =StudentInfo!B58 -> 0 | G45: =StudentInfo!B59 -> 0 | H45: =StudentInfo!B60 -> 0 | I45: =StudentInfo!B61 -> 0 | J45: =StudentInfo!B62 -> 0 | K45: =StudentInfo!B63 -> 0 | L45: =StudentInfo!B64 -> 0
C50: =StudentInfo!B65 -> 0 | D50: =StudentInfo!B66 -> 0 | E50: =StudentInfo!B67 -> 0 | F50: =StudentInfo!B68 -> 0 | G50: =StudentInfo!B69 -> 0 | H50: =StudentInfo!B70 -> 0 | I50: =StudentInfo!B71 -> 0 | J50: =StudentInfo!B72 -> 0 | K50: =StudentInfo!B73 -> 0 | L50: =StudentInfo!B74 -> 0
C55: =StudentInfo!B75 -> 0 | D55: =StudentInfo!B76 -> 0 | E55: =StudentInfo!B77 -> 0 | F55: =StudentInfo!B78 -> 0 | G55: =StudentInfo!B79 -> 0 | H55: =StudentInfo!B80 -> 0 | I55: =StudentInfo!B81 -> 0 | J55: =StudentInfo!B82 -> 0 | K55: =StudentInfo!B83 -> 0 | L55: =StudentInfo!B84 -> 0
C60: =StudentInfo!B85 -> 0 | D60: =StudentInfo!B86 -> 0 | E60: =StudentInfo!B87 -> 0 | F60: =StudentInfo!B88 -> 0 | G60: =StudentInfo!B89 -> 0 | H60: =StudentInfo!B90 -> 0 | I60: =StudentInfo!B91 -> 0 | J60: =StudentInfo!B92 -> 0 | K60: =StudentInfo!B93 -> 0 | L60: =StudentInfo!B94 -> 0
C65: =StudentInfo!B95 -> 0 | D65: =StudentInfo!B96 -> 0 | E65: =StudentInfo!B97 -> 0 | F65: =StudentInfo!B98 -> 0 | G65: =StudentInfo!B99 -> 0 | H65: =StudentInfo!B100 -> 0 | I65: =StudentInfo!B101 -> 0 | J65: =StudentInfo!B102 -> 0 | K65: =StudentInfo!B103 -> 0 | L65: =StudentInfo!B104 -> 0

Sheet StudentInfo
A4: # | B4: Student Name | C4: Date of Identification | D4: Method of Identification | E4: Grade | F4: Gender | G4: Ethnicity | H4: Race | I4: IEP Status | J4: # ODRs | K4: # Minors | L4: # Absences | M4: # Tardies | N4: Is Student Above/ Below Grade Level? | O4: GPA | P4: Has Student Been Taught the Expectations? | Q4: Has Student Received Recognitions? | R4: Problem Behavior | S4: Possible Function of Behavior | T4: Intervention 1 Description/Notes | U4: Intervention 1 Begin Date | V4: Intervention 1 End Date | W4: Intervention 2 Description/Notes | X4: Intervention 2 Begin Date | Y4: Intervention 2 End Date | Z4: Intervention 3 Description/Notes | AA4: Intervention 3 Begin Date | AB4: Intervention 3 End Date | AC4: Intervention 4 Description/Notes | AD4: Intervention 4 Begin Date | AE4: Intervention 4 End Date | AF4: Graduated from Tier II Intervention(s)? | AG4: Referred to Tier III? | AH4: Tier III Referral Date | AI4: GOAL (e.g., 70%, 80%...) | AJ4: Notes
A5: 1 | B5: Pat Summitt | C5: 2018-09-26 | D5: Nomination | E5: 8 | F5: F | G5: Non-Hispanic | H5: White | I5: N | J5: 8 | K5: 8 | L5: 7 | M5: 7 | N5: Below Grade Level | O5: 2.2 | P5: Y | Q5: Y | R5: not completing work, disrespectful to stff | S5: Obtain Adult Attention | T5: CICO | U5: 2018-10-01 | V5: 2018-10-29 | W5: Adapted CICO - changed mentor | X5: 2018-10-30 | Y5: 2018-11-28 | Z5: Adapted CICO - added mid-day check-in | AA5: 2018-11-29 | AB5: 2019-01-15 | AF5: Y | AG5: N | AI5: 0.8
A6: 2 | B6: Rick Barnes | C6: 2018-10-15 | D6: Data Decision Rules | E6: 7 | F6: M | G6: Non-Hispanic | H6: White | I6: Y | J6: 12 | K6: 14 | L6: 5 | M6: 9 | N6: Below Grade Level | O6: 1.8 | P6: Y | Q6: Y | R6: talking out in class, disrespectful to staff | S6: Obtain Adult Attention | T6: CICO | U6: 2018-10-18 | V6: 2018-12-10 | AF6: Y | AG6: N | AI6: 0.8
A7: 3 | B7: Derek Mason | C7: 2018-10-15 | D7: Universal Screener | E7: 6 | F7: M | G7: Non-Hispanic | H7: Black | I7: N | J7: 5 | K7: 4 | L7: 2 | M7: 3 | N7: At Grade Level | O7: 3 | P7: Y | Q7: Y | R7: withdrawn, lack of participation | S7: Avoid Peer Attention | T7: Small Group Counseling | U7: 2018-10-18 | V7: 2018-12-06 | AF7: Y | AG7: N | AI7: Completion of group
A8: 4 | B8: Mike Norvel | C8: 2018-10-15 | D8: Nomination | E8: 7 | F8: M | G8: Non-Hispanic | H8: White | I8: Y | J8: 10 | K8: 8 | L8: 5 | M8: 9 | N8: Below Grade Level | O8: 1.6 | P8: Y | Q8: Y | R8: talking to peers, class disruptions | S8: Obtain Peer Attention | T8: CICO | U8: 2018-10-18 | V8: 2018-11-01 | W8: Adapted CICO - changed reinforcement | X8: 2018-11-02 | Y8: 2018-11-16 | Z8: Adapted CICO - check in and out with a peer | AA8: 2018-11-19 | AB8: 2018-12-10 | AC8: Adapted CICO - weekly pseudo parent check in | AD8: 2018-12-11 | AE8: 2018-01-21 | AF8: N | AG8: Y | AH8: 2018-01-21 | AI8: 0.7 | AJ8: Unable to meet weekly goal, referred to Tier III
A9: 5
A10: 6
A11: 7
A12: 8
A13: 9
A14: 10
A15: 11
A16: 12
A17: 13
A18: 14
A19: 15
A20: 16
A21: 17
A22: 18
A23: 19
A24: 20
A25: 21
A26: 22
A27: 23
A28: 24
A29: 25
A30: 26
A31: 27
A32: 28
A33: 29
A34: 30
A35: 31
A36: 32
A37: 33
A38: 34
A39: 35
A40: 36
A41: 37
A42: 38
A43: 39
A44: 40
A45: 41
A46: 42
A47: 43
A48: 44
A49: 45
A50: 46
A51: 47
A52: 48
A53: 49
A54: 50
A55: 51
A56: 52
A57: 53
A58: 54
A59: 55
A60: 56
A61: 57
A62: 58
A63: 59
A64: 60
A65: 61
A66: 62
A67: 63
A68: 64
A69: 65
A70: 66
A71: 67
A72: 68
A73: 69
A74: 70
A75: 71
A76: 72
A77: 73
A78: 74
A79: 75
A80: 76
A81: 77
A82: 78
A83: 79
A84: 80
A85: 81
A86: 82
A87: 83
A88: 84
A89: 85
A90: 86
A91: 87
A92: 88
A93: 89
A94: 90
A95: 91
A96: 92
A97: 93
A98: 94
A99: 95
A100: 96
A101: 97
A102: 98
A103: 99
A104: 100

Sheet Permlist
A1: Grade | B1: Gender | C1: Ethnic | D1: Race | E1: IEP | F1: Identification | G1: Motivation | H1: Receiving Rewards | I1: Expectations Taught | J1: Academics | L1: IV Grad
A2: Pk | B2: F | C2: Hispanic | D2: Asian | E2: Y | F2: Data Decision Rules | G2: Obtain Item/Activity | H2: Y | I2: Y | J2: Above Grade level | L2: Y
A3: K | B3: M | C3: Non-Hispanic | D3: Black | E3: N | F3: Nomination | G3: Obtain Peer Attention | H3: N | I3: N | J3: At Grade Level | L3: N
A4: 1 | D4: Native Amer | F4: Universal Screener | G4: Obtain Adult Attention | J4: Below Grade Level
A5: 2 | D5: Pacific | G5: Avoid Task/Activity
A6: 3 | D6: White | G6: Avoid Peer Attention
A7: 4 | G7: Avoid Adult Attention
A8: 5
A9: 6
A10: 7
A11: 8
A12: 9
A13: 10
A14: 11
A15: 12

Sheet Student1
F1: GOAL
A2: =StudentInfo!B5 -> Pat Summitt | F2: =StudentInfo!AI5 -> 0.8
A3: Date | B3: Note | C3: Daily Points Possible | D3: Daily Points | E3: Daily Percent | F3: Avg for Last 10 Days | G3: =AVERAGE(N(OFFSET(E4,LARGE(IF(ISNUMBER(E4:E223),ROW(E4:E223)-ROW(E4)),ROW(1:10)),0))) -> 0.82 | P3: Semester 1
A4: 2018-10-01 | B4: Int. 1 start | C4: 10 | D4: 3 | E4: =IF(Table2[[#This Row],[Daily Points]]="",NA(),Table2[[#This Row],[Daily Points]]/Table2[[#This Row],[Daily Points Possible]]) -> 0.3
A5: =IF(A4,WORKDAY(A4,1),"") -> 2018-10-02 | C5: 10 | D5: 3 | E5: =IF(Table2[[#This Row],[Daily Points]]="",NA(),Table2[[#This Row],[Daily Points]]/Table2[[#This Row],[Daily Points Possible]]) -> 0.3
A6: =IF(A5,WORKDAY(A5,1),"") -> 2018-10-03 | C6: 10 | D6: 4 | E6: =IF(Table2[[#This Row],[Daily Points]]="",NA(),Table2[[#This Row],[Daily Points]]/Table2[[#This Row],[Daily Points Possible]]) -> 0.4
A7: 2018-10-04 | C7: 10 | D7: 4 | E7: =IF(Table2[[#This Row],[Daily Points]]="",NA(),Table2[[#This Row],[Daily Points]]/Table2[[#This Row],[Daily Points Possible]]) -> 0.4
A8: 2018-10-05 | C8: 10 | D8: 4 | E8: =IF(Table2[[#This Row],[Daily Points]]="",NA(),Table2[[#This Row],[Daily Points]]/Table2[[#This Row],[Daily Points Possible]]) -> 0.4 | F8: week avg | G8: =AVERAGEIF(E4:E8,"<>#N/A") -> 0.36
A9: 2018-10-08 | C9: 10 | D9: 4 | E9: =IF(Table2[[#This Row],[Daily Points]]="",NA(),Table2[[#This Row],[Daily Points]]/Table2[[#This Row],[Daily Points Possible]]) -> 0.4
A10: 2018-10-09 | C10: 10 | D10: 4 | E10: =IF(Table2[[#This Row],[Daily Points]]="",NA(),Table2[[#This Row],[Daily Points]]/Table2[[#This Row],[Daily Points Possible]]) -> 0.4
A11: 2018-10-10 | C11: 10 | D11: 4 | E11: =IF(Table2[[#This Row],[Daily Points]]="",NA(),Table2[[#This Row],[Daily Points]]/Table2[[#This Row],[Daily Points Possible]]) -> 0.4
A12: 2018-10-11 | C12: 10 | D12: 4 | E12: =IF(Table2[[#This Row],[Daily Points]]="",NA(),Table2[[#This Row],[Daily Points]]/Table2[[#This Row],[Daily Points Possible]]) -> 0.4
A13: 2018-10-12 | C13: 10 | D13: 5 | E13: =IF(Table2[[#This Row],[Daily Points]]="",NA(),Table2[[#This Row],[Daily Points]]/Table2[[#This Row],[Daily Points Possible]]) -> 0.5 | F13: week avg | G13: =AVERAGEIF(E9:E13,"<>#N/A") -> 0.42
A14: 2018-10-15 | C14: 10 | D14: 5 | E14: =IF(Table2[[#This Row],[Daily Points]]="",NA(),Table2[[#This Row],[Daily Points]]/Table2[[#This Row],[Daily Points Possible]]) -> 0.5
A15: 2018-10-16 | C15: 10 | D15: 5 | E15: =IF(Table2[[#This Row],[Daily Points]]="",NA(),Table2[[#This Row],[Daily Points]]/Table2[[#This Row],[Daily Points Possible]]) -> 0.5
A16: 2018-10-17 | C16: 10 | D16: 5 | E16: =IF(Table2[[#This Row],[Daily Points]]="",NA(),Table2[[#This Row],[Daily Points]]/Table2[[#This Row],[Daily Points Possible]]) -> 0.5
A17: 2018-10-18 | C17: 10 | D17: 5 | E17: =IF(Table2[[#This Row],[Daily Points]]="",NA(),Table2[[#This Row],[Daily Points]]/Table2[[#This Row],[Daily Points Possible]]) -> 0.5
A18: 2018-10-19 | C18: 10 | D18: 5 | E18: =IF(Table2[[#This Row],[Daily Points]]="",NA(),Table2[[#This Row],[Daily Points]]/Table2[[#This Row],[Daily Points Possible]]) -> 0.5 | F18: week avg | G18: =AVERAGEIF(E14:E18,"<>#N/A") -> 0.5
A19: 2018-10-22 | C19: 10 | D19: 5 | E19: =IF(Table2[[#This Row],[Daily Points]]="",NA(),Table2[[#This Row],[Daily Points]]/Table2[[#This Row],[Daily Points Possible]]) -> 0.5
A20: 2018-10-23 | C20: 10 | D20: 5 | E20: =IF(Table2[[#This Row],[Daily Points]]="",NA(),Table2[[#This Row],[Daily Points]]/Table2[[#This Row],[Daily Points Possible]]) -> 0.5
A21: 2018-10-24 | C21: 10 | D21: 5 | E21: =IF(Table2[[#This Row],[Daily Points]]="",NA(),Table2[[#This Row],[Daily Points]]/Table2[[#This Row],[Daily Points Possible]]) -> 0.5
A22: 2018-10-25 | C22: 10 | D22: 5 | E22: =IF(Table2[[#This Row],[Daily Points]]="",NA(),Table2[[#This Row],[Daily Points]]/Table2[[#This Row],[Daily Points Possible]]) -> 0.5 | P22: Semester 2
A23: 2018-10-26 | C23: 10 | D23: 5 | E23: =IF(Table2[[#This Row],[Daily Points]]="",NA(),Table2[[#This Row],[Daily Points]]/Table2[[#This Row],[Daily Points Possible]]) -> 0.5 | F23: week avg | G23: =AVERAGEIF(E19:E23,"<>#N/A") -> 0.5
A24: 2018-10-29 | B24: Int. 1 end | C24: 10 | D24: 5 | E24: =IF(Table2[[#This Row],[Daily Points]]="",NA(),Table2[[#This Row],[Daily Points]]/Table2[[#This Row],[Daily Points Possible]]) -> 0.5
A25: 2018-10-30 | B25: Int. 2 start | C25: 10 | D25: 5 | E25: =IF(Table2[[#This Row],[Daily Points]]="",NA(),Table2[[#This Row],[Daily Points]]/Table2[[#This Row],[Daily Points Possible]]) -> 0.5
A26: 2018-10-31 | C26: 10 | D26: 6 | E26: =IF(Table2[[#This Row],[Daily Points]]="",NA(),Table2[[#This Row],[Daily Points]]/Table2[[#This Row],[Daily Points Possible]]) -> 0.6
A27: 2018-11-01 | C27: 10 | D27: 6 | E27: =IF(Table2[[#This Row],[Daily Points]]="",NA(),Table2[[#This Row],[Daily Points]]/Table2[[#This Row],[Daily Points Possible]]) -> 0.6
A28: 2018-11-02 | C28: 10 | D28: 6 | E28: =IF(Table2[[#This Row],[Daily Points]]="",NA(),Table2[[#This Row],[Daily Points]]/Table2[[#This Row],[Daily Points Possible]]) -> 0.6 | F28: week avg | G28: =AVERAGEIF(E24:E28,"<>#N/A") -> 0.56
A29: 2018-11-05 | C29: 10 | D29: 6 | E29: =IF(Table2[[#This Row],[Daily Points]]="",NA(),Table2[[#This Row],[Daily Points]]/Table2[[#This Row],[Daily Points Possible]]) -> 0.6
A30: 2018-11-06 | C30: 10 | D30: 7 | E30: =IF(Table2[[#This Row],[Daily Points]]="",NA(),Table2[[#This Row],[Daily Points]]/Table2[[#This Row],[Daily Points Possible]]) -> 0.7
A31: 2018-11-07 | C31: 10 | D31: 6 | E31: =IF(Table2[[#This Row],[Daily Points]]="",NA(),Table2[[#This Row],[Daily Points]]/Table2[[#This Row],[Daily Points Possible]]) -> 0.6
A32: 2018-11-08 | C32: 10 | D32: 7 | E32: =IF(Table2[[#This Row],[Daily Points]]="",NA(),Table2[[#This Row],[Daily Points]]/Table2[[#This Row],[Daily Points Possible]]) -> 0.7
A33: 2018-11-09 | C33: 10 | D33: 6 | E33: =IF(Table2[[#This Row],[Daily Points]]="",NA(),Table2[[#This Row],[Daily Points]]/Table2[[#This Row],[Daily Points Possible]]) -> 0.6 | F33: week avg | G33: =AVERAGEIF(E29:E33,"<>#N/A") -> 0.64
A34: 2018-11-12 | C34: 10 | D34: 6 | E34: =IF(Table2[[#This Row],[Daily Points]]="",NA(),Table2[[#This Row],[Daily Points]]/Table2[[#This Row],[Daily Points Possible]]) -> 0.6
A35: 2018-11-13 | C35: 10 | D35: 6 | E35: =IF(Table2[[#This Row],[Daily Points]]="",NA(),Table2[[#This Row],[Daily Points]]/Table2[[#This Row],[Daily Points Possible]]) -> 0.6
A36: 2018-11-14 | C36: 10 | D36: 6 | E36: =IF(Table2[[#This Row],[Daily Points]]="",NA(),Table2[[#This Row],[Daily Points]]/Table2[[#This Row],[Daily Points Possible]]) -> 0.6
A37: 2018-11-15 | C37: 10 | D37: 6 | E37: =IF(Table2[[#This Row],[Daily Points]]="",NA(),Table2[[#This Row],[Daily Points]]/Table2[[#This Row],[Daily Points Possible]]) -> 0.6
A38: 2018-11-16 | C38: 10 | D38: 6 | E38: =IF(Table2[[#This Row],[Daily Points]]="",NA(),Table2[[#This Row],[Daily Points]]/Table2[[#This Row],[Daily Points Possible]]) -> 0.6 | F38: week avg | G38: =AVERAGEIF(E34:E38,"<>#N/A") -> 0.6
A39: 2018-11-19 | C39: 10 | D39: 6 | E39: =IF(Table2[[#This Row],[Daily Points]]="",NA(),Table2[[#This Row],[Daily Points]]/Table2[[#This Row],[Daily Points Possible]]) -> 0.6
A40: 2018-11-20 | C40: 10 | D40: 6 | E40: =IF(Table2[[#This Row],[Daily Points]]="",NA(),Table2[[#This Row],[Daily Points]]/Table2[[#This Row],[Daily Points Possible]]) -> 0.6
A41: 2018-11-21 | C41: 10 | D41: 6 | E41: =IF(Table2[[#This Row],[Daily Points]]="",NA(),Table2[[#This Row],[Daily Points]]/Table2[[#This Row],[Daily Points Possible]]) -> 0.6
A42: 2018-11-22 | C42: 10 | D42: 6 | E42: =IF(Table2[[#This Row],[Daily Points]]="",NA(),Table2[[#This Row],[Daily Points]]/Table2[[#This Row],[Daily Points Possible]]) -> 0.6
A43: 2018-11-23 | C43: 10 | D43: 6 | E43: =IF(Table2[[#This Row],[Daily Points]]="",NA(),Table2[[#This Row],[Daily Points]]/Table2[[#This Row],[Daily Points Possible]]) -> 0.6 | F43: week avg | G43: =AVERAGEIF(E39:E43,"<>#N/A") -> 0.6
A44: 2018-11-26 | C44: 10 | D44: 6 | E44: =IF(Table2[[#This Row],[Daily Points]]="",NA(),Table2[[#This Row],[Daily Points]]/Table2[[#This Row],[Daily Points Possible]]) -> 0.6
A45: 2018-11-27 | C45: 10 | D45: 6 | E45: =IF(Table2[[#This Row],[Daily Points]]="",NA(),Table2[[#This Row],[Daily Points]]/Table2[[#This Row],[Daily Points Possible]]) -> 0.6
A46: 2018-11-28 | B46: Int. 2 end | C46: 10 | D46: 6 | E46: =IF(Table2[[#This Row],[Daily Points]]="",NA(),Table2[[#This Row],[Daily Points]]/Table2[[#This Row],[Daily Points Possible]]) -> 0.6
A47: 2018-11-29 | B47: Int. 3 start | C47: 10 | D47: 7 | E47: =IF(Table2[[#This Row],[Daily Points]]="",NA(),Table2[[#This Row],[Daily Points]]/Table2[[#This Row],[Daily Points Possible]]) -> 0.7
A48: 2018-11-30 | C48: 10 | D48: 7 | E48: =IF(Table2[[#This Row],[Daily Points]]="",NA(),Table2[[#This Row],[Daily Points]]/Table2[[#This Row],[Daily Points Possible]]) -> 0.7 | F48: week avg | G48: =AVERAGEIF(E44:E48,"<>#N/A") -> 0.64
A49: 2018-12-03 | C49: 10 | D49: 7 | E49: =IF(Table2[[#This Row],[Daily Points]]="",NA(),Table2[[#This Row],[Daily Points]]/Table2[[#This Row],[Daily Points Possible]]) -> 0.7
A50: 2018-12-04 | C50: 10 | D50: 7 | E50: =IF(Table2[[#This Row],[Daily Points]]="",NA(),Table2[[#This Row],[Daily Points]]/Table2[[#This Row],[Daily Points Possible]]) -> 0.7
A51: 2018-12-05 | C51: 10 | D51: 7 | E51: =IF(Table2[[#This Row],[Daily Points]]="",NA(),Table2[[#This Row],[Daily Points]]/Table2[[#This Row],[Daily Points Possible]]) -> 0.7
A52: 2018-12-06 | C52: 10 | D52: 7 | E52: =IF(Table2[[#This Row],[Daily Points]]="",NA(),Table2[[#This Row],[Daily Points]]/Table2[[#This Row],[Daily Points Possible]]) -> 0.7
A53: 2018-12-07 | C53: 10 | D53: 7 | E53: =IF(Table2[[#This Row],[Daily Points]]="",NA(),Table2[[#This Row],[Daily Points]]/Table2[[#This Row],[Daily Points Possible]]) -> 0.7 | F53: week avg | G53: =AVERAGEIF(E49:E53,"<>#N/A") -> 0.7
A54: 2018-12-10 | C54: 10 | D54: 8 | E54: =IF(Table2[[#This Row],[Daily Points]]="",NA(),Table2[[#This Row],[Daily Points]]/Table2[[#This Row],[Daily Points Possible]]) -> 0.8
A55: 2018-12-11 | C55: 10 | D55: 8 | E55: =IF(Table2[[#This Row],[Daily Points]]="",NA(),Table2[[#This Row],[Daily Points]]/Table2[[#This Row],[Daily Points Possible]]) -> 0.8
A56: 2018-12-12 | C56: 10 | D56: 9 | E56: =IF(Table2[[#This Row],[Daily Points]]="",NA(),Table2[[#This Row],[Daily Points]]/Table2[[#This Row],[Daily Points Possible]]) -> 0.9
A57: 2018-12-13 | C57: 10 | D57: 8 | E57: =IF(Table2[[#This Row],[Daily Points]]="",NA(),Table2[[#This Row],[Daily Points]]/Table2[[#This Row],[Daily Points Possible]]) -> 0.8
A58: 2018-12-14 | C58: 10 | D58: 9 | E58: =IF(Table2[[#This Row],[Daily Points]]="",NA(),Table2[[#This Row],[Daily Points]]/Table2[[#This Row],[Daily Points Possible]]) -> 0.9 | F58: week avg | G58: =AVERAGEIF(E54:E58,"<>#N/A") -> 0.84
A59: 2018-12-17 | C59: 10 | D59: 8 | E59: =IF(Table2[[#This Row],[Daily Points]]="",NA(),Table2[[#This Row],[Daily Points]]/Table2[[#This Row],[Daily Points Possible]]) -> 0.8
A60: 2018-12-18 | C60: 10 | D60: 8 | E60: =IF(Table2[[#This Row],[Daily Points]]="",NA(),Table2[[#This Row],[Daily Points]]/Table2[[#This Row],[Daily Points Possible]]) -> 0.8
A61: 2018-12-19 | C61: 10 | D61: 8 | E61: =IF(Table2[[#This Row],[Daily Points]]="",NA(),Table2[[#This Row],[Daily Points]]/Table2[[#This Row],[Daily Points Possible]]) -> 0.8
A62: 2018-12-20 | C62: 10 | D62: 8 | E62: =IF(Table2[[#This Row],[Daily Points]]="",NA(),Table2[[#This Row],[Daily Points]]/Table2[[#This Row],[Daily Points Possible]]) -> 0.8
A63: 2018-12-21 | E63: =IF(Table2[[#This Row],[Daily Points]]="",NA(),Table2[[#This Row],[Daily Points]]/Table2[[#This Row],[Daily Points Possible]]) ->  | F63: week avg | G63: =AVERAGEIF(E59:E63,"<>#N/A") -> 0.8
A64: 2018-12-24 | E64: =IF(Table2[[#This Row],[Daily Points]]="",NA(),Table2[[#This Row],[Daily Points]]/Table2[[#This Row],[Daily Points Possible]]) -> 
A65: 2018-12-25 | E65: =IF(Table2[[#This Row],[Daily Points]]="",NA(),Table2[[#This Row],[Daily Points]]/Table2[[#This Row],[Daily Points Possible]]) -> 
A66: 2018-12-26 | E66: =IF(Table2[[#This Row],[Daily Points]]="",NA(),Table2[[#This Row],[Daily Points]]/Table2[[#This Row],[Daily Points Possible]]) -> 
A67: 2018-12-27 | E67: =IF(Table2[[#This Row],[Daily Points]]="",NA(),Table2[[#This Row],[Daily Points]]/Table2[[#This Row],[Daily Points Possible]]) -> 
A68: 2018-12-28 | E68: =IF(Table2[[#This Row],[Daily Points]]="",NA(),Table2[[#This Row],[Daily Points]]/Table2[[#This Row],[Daily Points Possible]]) ->  | F68: week avg | G68: =AVERAGEIF(E64:E68,"<>#N/A") -> 
A69: 2018-12-31 | E69: =IF(Table2[[#This Row],[Daily Points]]="",NA(),Table2[[#This Row],[Daily Points]]/Table2[[#This Row],[Daily Points Possible]]) -> 
A70: =IF(A69,WORKDAY(A69,1),"") -> 2019-01-01 | E70: =IF(Table2[[#This Row],[Daily Points]]="",NA(),Table2[[#This Row],[Daily Points]]/Table2[[#This Row],[Daily Points Possible]]) -> 
A71: 2019-01-02 | E71: =IF(Table2[[#This Row],[Daily Points]]="",NA(),Table2[[#This Row],[Daily Points]]/Table2[[#This Row],[Daily Points Possible]]) -> 
A72: 2019-01-03 | E72: =IF(Table2[[#This Row],[Daily Points]]="",NA(),Table2[[#This Row],[Daily Points]]/Table2[[#This Row],[Daily Points Possible]]) -> 
A73: 2019-01-04 | C73: 10 | D73: 7 | E73: =IF(Table2[[#This Row],[Daily Points]]="",NA(),Table2[[#This Row],[Daily Points]]/Table2[[#This Row],[Daily Points Possible]]) -> 0.7 | F73: week avg | G73: =AVERAGEIF(E69:E73,"<>#N/A") -> 0.7
A74: 2019-01-07 | C74: 10 | D74: 7 | E74: =IF(Table2[[#This Row],[Daily Points]]="",NA(),Table2[[#This Row],[Daily Points]]/Table2[[#This Row],[Daily Points Possible]]) -> 0.7
A75: 2019-01-08 | C75: 10 | D75: 8 | E75: =IF(Table2[[#This Row],[Daily Points]]="",NA(),Table2[[#This Row],[Daily Points]]/Table2[[#This Row],[Daily Points Possible]]) -> 0.8
A76: 2019-01-09 | C76: 10 | D76: 8 | E76: =IF(Table2[[#This Row],[Daily Points]]="",NA(),Table2[[#This Row],[Daily Points]]/Table2[[#This Row],[Daily Points Possible]]) -> 0.8
A77: 2019-01-10 | C77: 10 | D77: 9 | E77: =IF(Table2[[#This Row],[Daily Points]]="",NA(),Table2[[#This Row],[Daily Points]]/Table2[[#This Row],[Daily Points Possible]]) -> 0.9
A78: 2019-01-11 | C78: 10 | D78: 9 | E78: =IF(Table2[[#This Row],[Daily Points]]="",NA(),Table2[[#This Row],[Daily Points]]/Table2[[#This Row],[Daily Points Possible]]) -> 0.9 | F78: week avg | G78: =AVERAGEIF(E74:E78,"<>#N/A") -> 0.82
A79: 2019-01-14 | C79: 10 | D79: 9 | E79: =IF(Table2[[#This Row],[Daily Points]]="",NA(),Table2[[#This Row],[Daily Points]]/Table2[[#This Row],[Daily Points Possible]]) -> 0.9
A80: 2019-01-15 | B80: Int. 3 end | C80: 10 | D80: 9 | E80: =IF(Table2[[#This Row],[Daily Points]]="",NA(),Table2[[#This Row],[Daily Points]]/Table2[[#This Row],[Daily Points Possible]]) -> 0.9
A81: 2019-01-16 | E81: =IF(Table2[[#This Row],[Daily Points]]="",NA(),Table2[[#This Row],[Daily Points]]/Table2[[#This Row],[Daily Points Possible]]) -> 
A82: 2019-01-17 | E82: =IF(Table2[[#This Row],[Daily Points]]="",NA(),Table2[[#This Row],[Daily Points]]/Table2[[#This Row],[Daily Points Possible]]) -> 
A83: 2019-01-18 | E83: =IF(Table2[[#This Row],[Daily Points]]="",NA(),Table2[[#This Row],[Daily Points]]/Table2[[#This Row],[Daily Points Possible]]) ->  | F83: week avg | G83: =AVERAGEIF(E79:E83,"<>#N/A") -> 0.9
A84: 2019-01-21 | E84: =IF(Table2[[#This Row],[Daily Points]]="",NA(),Table2[[#This Row],[Daily Points]]/Table2[[#This Row],[Daily Points Possible]]) -> 
A85: 2019-01-22 | E85: =IF(Table2[[#This Row],[Daily Points]]="",NA(),Table2[[#This Row],[Daily Points]]/Table2[[#This Row],[Daily Points Possible]]) -> 
A86: 2019-01-23 | E86: =IF(Table2[[#This Row],[Daily Points]]="",NA(),Table2[[#This Row],[Daily Points]]/Table2[[#This Row],[Daily Points Possible]]) -> 
A87: 2019-01-24 | E87: =IF(Table2[[#This Row],[Daily Points]]="",NA(),Table2[[#This Row],[Daily Points]]/Table2[[#This Row],[Daily Points Possible]]) -> 
A88: 2019-01-25 | E88: =IF(Table2[[#This Row],[Daily Points]]="",NA(),Table2[[#This Row],[Daily Points]]/Table2[[#This Row],[Daily Points Possible]]) ->  | F88: week avg | G88: =AVERAGEIF(E84:E88,"<>#N/A") -> 
A89: 2019-01-28 | E89: =IF(Table2[[#This Row],[Daily Points]]="",NA(),Table2[[#This Row],[Daily Points]]/Table2[[#This Row],[Daily Points Possible]]) -> 
A90: 2019-01-29 | E90: =IF(Table2[[#This Row],[Daily Points]]="",NA(),Table2[[#This Row],[Daily Points]]/Table2[[#This Row],[Daily Points Possible]]) -> 
A91: 2019-01-30 | E91: =IF(Table2[[#This Row],[Daily Points]]="",NA(),Table2[[#This Row],[Daily Points]]/Table2[[#This Row],[Daily Points Possible]]) -> 
A92: 2019-01-31 | E92: =IF(Table2[[#This Row],[Daily Points]]="",NA(),Table2[[#This Row],[Daily Points]]/Table2[[#This Row],[Daily Points Possible]]) -> 
A93: 2019-02-01 | E93: =IF(Table2[[#This Row],[Daily Points]]="",NA(),Table2[[#This Row],[Daily Points]]/Table2[[#This Row],[Daily Points Possible]]) ->  | F93: week avg | G93: =AVERAGEIF(E89:E93,"<>#N/A") -> 
A94: 2019-02-04 | E94: =IF(Table2[[#This Row],[Daily Points]]="",NA(),Table2[[#This Row],[Daily Points]]/Table2[[#This Row],[Daily Points Possible]]) -> 
A95: 2019-02-05 | E95: =IF(Table2[[#This Row],[Daily Points]]="",NA(),Table2[[#This Row],[Daily Points]]/Table2[[#This Row],[Daily Points Possible]]) -> 
A96: 2019-02-06 | E96: =IF(Table2[[#This Row],[Daily Points]]="",NA(),Table2[[#This Row],[Daily Points]]/Table2[[#This Row],[Daily Points Possible]]) -> 
A97: 2019-02-07 | E97: =IF(Table2[[#This Row],[Daily Points]]="",NA(),Table2[[#This Row],[Daily Points]]/Table2[[#This Row],[Daily Points Possible]]) -> 
A98: 2019-02-08 | E98: =IF(Table2[[#This Row],[Daily Points]]="",NA(),Table2[[#This Row],[Daily Points]]/Table2[[#This Row],[Daily Points Possible]]) ->  | F98: week avg | G98: =AVERAGEIF(E94:E98,"<>#N/A") -> 
A99: 2019-02-11 | E99: =IF(Table2[[#This Row],[Daily Points]]="",NA(),Table2[[#This Row],[Daily Points]]/Table2[[#This Row],[Daily Points Possible]]) -> 
A100: 2019-02-12 | E100: =IF(Table2[[#This Row],[Daily Points]]="",NA(),Table2[[#This Row],[Daily Points]]/Table2[[#This Row],[Daily Points Possible]]) -> 
A101: 2019-02-13 | E101: =IF(Table2[[#This Row],[Daily Points]]="",NA(),Table2[[#This Row],[Daily Points]]/Table2[[#This Row],[Daily Points Possible]]) -> 
A102: 2019-02-14 | E102: =IF(Table2[[#This Row],[Daily Points]]="",NA(),Table2[[#This Row],[Daily Points]]/Table2[[#This Row],[Daily Points Possible]]) -> 
A103: 2019-02-15 | E103: =IF(Table2[[#This Row],[Daily Points]]="",NA(),Table2[[#This Row],[Daily Points]]/Table2[[#This Row],[Daily Points Possible]]) ->  | F103: week avg | G103: =AVERAGEIF(E99:E103,"<>#N/A") -> 
A104: 2019-02-18 | E104: =IF(Table2[[#This Row],[Daily Points]]="",NA(),Table2[[#This Row],[Daily Points]]/Table2[[#This Row],[Daily Points Possible]]) -> 
A105: 2019-02-19 | E105: =IF(Table2[[#This Row],[Daily Points]]="",NA(),Table2[[#This Row],[Daily Points]]/Table2[[#This Row],[Daily Points Possible]]) -> 
A106: 2019-02-20 | E106: =IF(Table2[[#This Row],[Daily Points]]="",NA(),Table2[[#This Row],[Daily Points]]/Table2[[#This Row],[Daily Points Possible]]) -> 
A107: 2019-02-21 | E107: =IF(Table2[[#This Row],[Daily Points]]="",NA(),Table2[[#This Row],[Daily Points]]/Table2[[#This Row],[Daily Points Possible]]) -> 
A108: 2019-02-22 | E108: =IF(Table2[[#This Row],[Daily Points]]="",NA(),Table2[[#This Row],[Daily Points]]/Table2[[#This Row],[Daily Points Possible]]) ->  | F108: week avg | G108: =AVERAGEIF(E104:E108,"<>#N/A") -> 
A109: 2019-02-25 | E109: =IF(Table2[[#This Row],[Daily Points]]="",NA(),Table2[[#This Row],[Daily Points]]/Table2[[#This Row],[Daily Points Possible]]) -> 
A110: 2019-02-26 | E110: =IF(Table2[[#This Row],[Daily Points]]="",NA(),Table2[[#This Row],[Daily Points]]/Table2[[#This Row],[Daily Points Possible]]) -> 
A111: 2019-02-27 | E111: =IF(Table2[[#This Row],[Daily Points]]="",NA(),Table2[[#This Row],[Daily Points]]/Table2[[#This Row],[Daily Points Possible]]) -> 
A112: 2019-02-28 | E112: =IF(Table2[[#This Row],[Daily Points]]="",NA(),Table2[[#This Row],[Daily Points]]/Table2[[#This Row],[Daily Points Possible]]) -> 
A113: 2019-03-01 | E113: =IF(Table2[[#This Row],[Daily Points]]="",NA(),Table2[[#This Row],[Daily Points]]/Table2[[#This Row],[Daily Points Possible]]) ->  | F113: week avg | G113: =AVERAGEIF(E109:E113,"<>#N/A") -> 
A114: 2019-03-04 | E114: =IF(Table2[[#This Row],[Daily Points]]="",NA(),Table2[[#This Row],[Daily Points]]/Table2[[#This Row],[Daily Points Possible]]) -> 
A115: 2019-03-05 | E115: =IF(Table2[[#This Row],[Daily Points]]="",NA(),Table2[[#This Row],[Daily Points]]/Table2[[#This Row],[Daily Points Possible]]) -> 
A116: 2019-03-06 | E116: =IF(Table2[[#This Row],[Daily Points]]="",NA(),Table2[[#This Row],[Daily Points]]/Table2[[#This Row],[Daily Points Possible]]) -> 
A117: 2019-03-07 | E117: =IF(Table2[[#This Row],[Daily Points]]="",NA(),Table2[[#This Row],[Daily Points]]/Table2[[#This Row],[Daily Points Possible]]) -> 
A118: 2019-03-08 | E118: =IF(Table2[[#This Row],[Daily Points]]="",NA(),Table2[[#This Row],[Daily Points]]/Table2[[#This Row],[Daily Points Possible]]) ->  | F118: week avg | G118: =AVERAGEIF(E114:E118,"<>#N/A") -> 
A119: 2019-03-11 | E119: =IF(Table2[[#This Row],[Daily Points]]="",NA(),Table2[[#This Row],[Daily Points]]/Table2[[#This Row],[Daily Points Possible]]) -> 
A120: 2019-03-12 | E120: =IF(Table2[[#This Row],[Daily Points]]="",NA(),Table2[[#This Row],[Daily Points]]/Table2[[#This Row],[Daily Points Possible]]) -> 
A121: 2019-03-13 | E121: =IF(Table2[[#This Row],[Daily Points]]="",NA(),Table2[[#This Row],[Daily Points]]/Table2[[#This Row],[Daily Points Possible]]) -> 
A122: 2019-03-14 | E122: =IF(Table2[[#This Row],[Daily Points]]="",NA(),Table2[[#This Row],[Daily Points]]/Table2[[#This Row],[Daily Points Possible]]) -> 
A123: 2019-03-15 | E123: =IF(Table2[[#This Row],[Daily Points]]="",NA(),Table2[[#This Row],[Daily Points]]/Table2[[#This Row],[Daily Points Possible]]) ->  | F123: week avg | G123: =AVERAGEIF(E119:E123,"<>#N/A") -> 
A124: 2019-03-18 | E124: =IF(Table2[[#This Row],[Daily Points]]="",NA(),Table2[[#This Row],[Daily Points]]/Table2[[#This Row],[Daily Points Possible]]) -> 
A125: 2019-03-19 | E125: =IF(Table2[[#This Row],[Daily Points]]="",NA(),Table2[[#This Row],[Daily Points]]/Table2[[#This Row],[Daily Points Possible]]) -> 
A126: 2019-03-20 | E126: =IF(Table2[[#This Row],[Daily Points]]="",NA(),Table2[[#This Row],[Daily Points]]/Table2[[#This Row],[Daily Points Possible]]) -> 
A127: 2019-03-21 | E127: =IF(Table2[[#This Row],[Daily Points]]="",NA(),Table2[[#This Row],[Daily Points]]/Table2[[#This Row],[Daily Points Possible]]) -> 
A128: 2019-03-22 | E128: =IF(Table2[[#This Row],[Daily Points]]="",NA(),Table2[[#This Row],[Daily Points]]/Table2[[#This Row],[Daily Points Possible]]) ->  | F128: week avg | G128: =AVERAGEIF(E124:E128,"<>#N/A") -> 
A129: 2019-03-25 | E129: =IF(Table2[[#This Row],[Daily Points]]="",NA(),Table2[[#This Row],[Daily Points]]/Table2[[#This Row],[Daily Points Possible]]) -> 
A130: 2019-03-26 | E130: =IF(Table2[[#This Row],[Daily Points]]="",NA(),Table2[[#This Row],[Daily Points]]/Table2[[#This Row],[Daily Points Possible]]) -> 
A131: 2019-03-27 | E131: =IF(Table2[[#This Row],[Daily Points]]="",NA(),Table2[[#This Row],[Daily Points]]/Table2[[#This Row],[Daily Points Possible]]) -> 
A132: 2019-03-28 | E132: =IF(Table2[[#This Row],[Daily Points]]="",NA(),Table2[[#This Row],[Daily Points]]/Table2[[#This Row],[Daily Points Possible]]) -> 
A133: 2019-03-29 | E133: =IF(Table2[[#This Row],[Daily Points]]="",NA(),Table2[[#This Row],[Daily Points]]/Table2[[#This Row],[Daily Points Possible]]) ->  | F133: week avg | G133: =AVERAGEIF(E129:E133,"<>#N/A") -> 
A134: =IF(A133,WORKDAY(A133,1),"") -> 2019-04-01 | E134: =IF(Table2[[#This Row],[Daily Points]]="",NA(),Table2[[#This Row],[Daily Points]]/Table2[[#This Row],[Daily Points Possible]]) -> 
A135: 2019-04-02 | E135: =IF(Table2[[#This Row],[Daily Points]]="",NA(),Table2[[#This Row],[Daily Points]]/Table2[[#This Row],[Daily Points Possible]]) -> 
A136: 2019-04-03 | E136: =IF(Table2[[#This Row],[Daily Points]]="",NA(),Table2[[#This Row],[Daily Points]]/Table2[[#This Row],[Daily Points Possible]]) -> 
A137: 2019-04-04 | E137: =IF(Table2[[#This Row],[Daily Points]]="",NA(),Table2[[#This Row],[Daily Points]]/Table2[[#This Row],[Daily Points Possible]]) -> 
A138: 2019-04-05 | E138: =IF(Table2[[#This Row],[Daily Points]]="",NA(),Table2[[#This Row],[Daily Points]]/Table2[[#This Row],[Daily Points Possible]]) ->  | F138: week avg | G138: =AVERAGEIF(E134:E138,"<>#N/A") -> 
A139: 2019-04-08 | E139: =IF(Table2[[#This Row],[Daily Points]]="",NA(),Table2[[#This Row],[Daily Points]]/Table2[[#This Row],[Daily Points Possible]]) -> 
A140: 2019-04-09 | E140: =IF(Table2[[#This Row],[Daily Points]]="",NA(),Table2[[#This Row],[Daily Points]]/Table2[[#This Row],[Daily Points Possible]]) -> 
A141: 2019-04-10 | E141: =IF(Table2[[#This Row],[Daily Points]]="",NA(),Table2[[#This Row],[Daily Points]]/Table2[[#This Row],[Daily Points Possible]]) -> 
A142: 2019-04-11 | E142: =IF(Table2[[#This Row],[Daily Points]]="",NA(),Table2[[#This Row],[Daily Points]]/Table2[[#This Row],[Daily Points Possible]]) -> 
A143: 2019-04-12 | E143: =IF(Table2[[#This Row],[Daily Points]]="",NA(),Table2[[#This Row],[Daily Points]]/Table2[[#This Row],[Daily Points Possible]]) ->  | F143: week avg | G143: =AVERAGEIF(E139:E143,"<>#N/A") -> 
A144: 2019-04-15 | E144: =IF(Table2[[#This Row],[Daily Points]]="",NA(),Table2[[#This Row],[Daily Points]]/Table2[[#This Row],[Daily Points Possible]]) -> 
A145: 2019-04-16 | E145: =IF(Table2[[#This Row],[Daily Points]]="",NA(),Table2[[#This Row],[Daily Points]]/Table2[[#This Row],[Daily Points Possible]]) -> 
A146: 2019-04-17 | E146: =IF(Table2[[#This Row],[Daily Points]]="",NA(),Table2[[#This Row],[Daily Points]]/Table2[[#This Row],[Daily Points Possible]]) -> 
A147: 2019-04-18 | E147: =IF(Table2[[#This Row],[Daily Points]]="",NA(),Table2[[#This Row],[Daily Points]]/Table2[[#This Row],[Daily Points Possible]]) -> 
A148: 2019-04-19 | E148: =IF(Table2[[#This Row],[Daily Points]]="",NA(),Table2[[#This Row],[Daily Points]]/Table2[[#This Row],[Daily Points Possible]]) ->  | F148: week avg | G148: =AVERAGEIF(E144:E148,"<>#N/A") -> 
A149: 2019-04-22 | E149: =IF(Table2[[#This Row],[Daily Points]]="",NA(),Table2[[#This Row],[Daily Points]]/Table2[[#This Row],[Daily Points Possible]]) -> 
A150: 2019-04-23 | E150: =IF(Table2[[#This Row],[Daily Points]]="",NA(),Table2[[#This Row],[Daily Points]]/Table2[[#This Row],[Daily Points Possible]]) -> 
A151: 2019-04-24 | E151: =IF(Table2[[#This Row],[Daily Points]]="",NA(),Table2[[#This Row],[Daily Points]]/Table2[[#This Row],[Daily Points Possible]]) -> 
A152: 2019-04-25 | E152: =IF(Table2[[#This Row],[Daily Points]]="",NA(),Table2[[#This Row],[Daily Points]]/Table2[[#This Row],[Daily Points Possible]]) -> 
A153: 2019-04-26 | E153: =IF(Table2[[#This Row],[Daily Points]]="",NA(),Table2[[#This Row],[Daily Points]]/Table2[[#This Row],[Daily Points Possible]]) ->  | F153: week avg | G153: =AVERAGEIF(E149:E153,"<>#N/A") -> 
A154: 2019-04-29 | E154: =IF(Table2[[#This Row],[Daily Points]]="",NA(),Table2[[#This Row],[Daily Points]]/Table2[[#This Row],[Daily Points Possible]]) -> 
A155: 2019-04-30 | E155: =IF(Table2[[#This Row],[Daily Points]]="",NA(),Table2[[#This Row],[Daily Points]]/Table2[[#This Row],[Daily Points Possible]]) -> 
A156: 2019-05-01 | E156: =IF(Table2[[#This Row],[Daily Points]]="",NA(),Table2[[#This Row],[Daily Points]]/Table2[[#This Row],[Daily Points Possible]]) -> 
A157: 2019-05-02 | E157: =IF(Table2[[#This Row],[Daily Points]]="",NA(),Table2[[#This Row],[Daily Points]]/Table2[[#This Row],[Daily Points Possible]]) -> 
A158: 2019-05-03 | E158: =IF(Table2[[#This Row],[Daily Points]]="",NA(),Table2[[#This Row],[Daily Points]]/Table2[[#This Row],[Daily Points Possible]]) ->  | F158: week avg | G158: =AVERAGEIF(E154:E158,"<>#N/A") -> 
A159: 2019-05-06 | E159: =IF(Table2[[#This Row],[Daily Points]]="",NA(),Table2[[#This Row],[Daily Points]]/Table2[[#This Row],[Daily Points Possible]]) -> 
A160: 2019-05-07 | E160: =IF(Table2[[#This Row],[Daily Points]]="",NA(),Table2[[#This Row],[Daily Points]]/Table2[[#This Row],[Daily Points Possible]]) -> 
A161: 2019-05-08 | E161: =IF(Table2[[#This Row],[Daily Points]]="",NA(),Table2[[#This Row],[Daily Points]]/Table2[[#This Row],[Daily Points Possible]]) -> 
A162: 2019-05-09 | E162: =IF(Table2[[#This Row],[Daily Points]]="",NA(),Table2[[#This Row],[Daily Points]]/Table2[[#This Row],[Daily Points Possible]]) -> 
A163: 2019-05-10 | E163: =IF(Table2[[#This Row],[Daily Points]]="",NA(),Table2[[#This Row],[Daily Points]]/Table2[[#This Row],[Daily Points Possible]]) ->  | F163: week avg | G163: =AVERAGEIF(E159:E163,"<>#N/A") -> 
A164: 2019-05-13 | E164: =IF(Table2[[#This Row],[Daily Points]]="",NA(),Table2[[#This Row],[Daily Points]]/Table2[[#This Row],[Daily Points Possible]]) -> 
A165: 2019-05-14 | E165: =IF(Table2[[#This Row],[Daily Points]]="",NA(),Table2[[#This Row],[Daily Points]]/Table2[[#This Row],[Daily Points Possible]]) -> 
A166: 2019-05-15 | E166: =IF(Table2[[#This Row],[Daily Points]]="",NA(),Table2[[#This Row],[Daily Points]]/Table2[[#This Row],[Daily Points Possible]]) -> 
A167: 2019-05-16 | E167: =IF(Table2[[#This Row],[Daily Points]]="",NA(),Table2[[#This Row],[Daily Points]]/Table2[[#This Row],[Daily Points Possible]]) -> 
A168: 2019-05-17 | E168: =IF(Table2[[#This Row],[Daily Points]]="",NA(),Table2[[#This Row],[Daily Points]]/Table2[[#This Row],[Daily Points Possible]]) ->  | F168: week avg | G168: =AVERAGEIF(E164:E168,"<>#N/A") -> 
A169: 2019-05-20 | E169: =IF(Table2[[#This Row],[Daily Points]]="",NA(),Table2[[#This Row],[Daily Points]]/Table2[[#This Row],[Daily Points Possible]]) -> 
A170: 2019-05-21 | E170: =IF(Table2[[#This Row],[Daily Points]]="",NA(),Table2[[#This Row],[Daily Points]]/Table2[[#This Row],[Daily Points Possible]]) -> 
A171: 2019-05-22 | E171: =IF(Table2[[#This Row],[Daily Points]]="",NA(),Table2[[#This Row],[Daily Points]]/Table2[[#This Row],[Daily Points Possible]]) -> 
A172: 2019-05-23 | E172: =IF(Table2[[#This Row],[Daily Points]]="",NA(),Table2[[#This Row],[Daily Points]]/Table2[[#This Row],[Daily Points Possible]]) -> 
A173: 2019-05-24 | E173: =IF(Table2[[#This Row],[Daily Points]]="",NA(),Table2[[#This Row],[Daily Points]]/Table2[[#This Row],[Daily Points Possible]]) ->  | F173: week avg | G173: =AVERAGEIF(E169:E173,"<>#N/A") -> 
A174: 2019-05-27 | E174: =IF(Table2[[#This Row],[Daily Points]]="",NA(),Table2[[#This Row],[Daily Points]]/Table2[[#This Row],[Daily Points Possible]]) -> 
A175: 2019-05-28 | E175: =IF(Table2[[#This Row],[Daily Points]]="",NA(),Table2[[#This Row],[Daily Points]]/Table2[[#This Row],[Daily Points Possible]]) -> 
A176: 2019-05-29 | E176: =IF(Table2[[#This Row],[Daily Points]]="",NA(),Table2[[#This Row],[Daily Points]]/Table2[[#This Row],[Daily Points Possible]]) -> 
A177: 2019-05-30 | E177: =IF(Table2[[#This Row],[Daily Points]]="",NA(),Table2[[#This Row],[Daily Points]]/Table2[[#This Row],[Daily Points Possible]]) -> 
A178: 2019-05-31 | E178: =IF(Table2[[#This Row],[Daily Points]]="",NA(),Table2[[#This Row],[Daily Points]]/Table2[[#This Row],[Daily Points Possible]]) ->  | F178: week avg | G178: =AVERAGEIF(E174:E178,"<>#N/A") -> 
A179: 2019-06-03 | E179: =IF(Table2[[#This Row],[Daily Points]]="",NA(),Table2[[#This Row],[Daily Points]]/Table2[[#This Row],[Daily Points Possible]]) -> 
A180: 2019-06-04 | E180: =IF(Table2[[#This Row],[Daily Points]]="",NA(),Table2[[#This Row],[Daily Points]]/Table2[[#This Row],[Daily Points Possible]]) -> 
A181: 2019-06-05 | E181: =IF(Table2[[#This Row],[Daily Points]]="",NA(),Table2[[#This Row],[Daily Points]]/Table2[[#This Row],[Daily Points Possible]]) -> 
A182: 2019-06-06 | E182: =IF(Table2[[#This Row],[Daily Points]]="",NA(),Table2[[#This Row],[Daily Points]]/Table2[[#This Row],[Daily Points Possible]]) -> 
A183: 2019-06-07 | E183: =IF(Table2[[#This Row],[Daily Points]]="",NA(),Table2[[#This Row],[Daily Points]]/Table2[[#This Row],[Daily Points Possible]]) ->  | F183: week avg | G183: =AVERAGEIF(E179:E183,"<>#N/A") -> 
A184: 2019-06-10 | E184: =IF(Table2[[#This Row],[Daily Points]]="",NA(),Table2[[#This Row],[Daily Points]]/Table2[[#This Row],[Daily Points Possible]]) -> 
A185: 2019-06-11 | E185: =IF(Table2[[#This Row],[Daily Points]]="",NA(),Table2[[#This Row],[Daily Points]]/Table2[[#This Row],[Daily Points Possible]]) -> 
A186: 2019-06-12 | E186: =IF(Table2[[#This Row],[Daily Points]]="",NA(),Table2[[#This Row],[Daily Points]]/Table2[[#This Row],[Daily Points Possible]]) -> 
A187: 2019-06-13 | E187: =IF(Table2[[#This Row],[Daily Points]]="",NA(),Table2[[#This Row],[Daily Points]]/Table2[[#This Row],[Daily Points Possible]]) -> 
A188: 2019-06-14 | E188: =IF(Table2[[#This Row],[Daily Points]]="",NA(),Table2[[#This Row],[Daily Points]]/Table2[[#This Row],[Daily Points Possible]]) ->  | F188: week avg | G188: =AVERAGEIF(E184:E188,"<>#N/A") -> 
A189: 2019-06-17 | E189: =IF(Table2[[#This Row],[Daily Points]]="",NA(),Table2[[#This Row],[Daily Points]]/Table2[[#This Row],[Daily Points Possible]]) -> 
A190: 2019-06-18 | E190: =IF(Table2[[#This Row],[Daily Points]]="",NA(),Table2[[#This Row],[Daily Points]]/Table2[[#This Row],[Daily Points Possible]]) -> 
A191: 2019-06-19 | E191: =IF(Table2[[#This Row],[Daily Points]]="",NA(),Table2[[#This Row],[Daily Points]]/Table2[[#This Row],[Daily Points Possible]]) -> 
A192: 2019-06-20 | E192: =IF(Table2[[#This Row],[Daily Points]]="",NA(),Table2[[#This Row],[Daily Points]]/Table2[[#This Row],[Daily Points Possible]]) -> 
A193: 2019-06-21 | E193: =IF(Table2[[#This Row],[Daily Points]]="",NA(),Table2[[#This Row],[Daily Points]]/Table2[[#This Row],[Daily Points Possible]]) ->  | F193: week avg | G193: =AVERAGEIF(E189:E193,"<>#N/A") -> 
A194: 2019-06-24 | E194: =IF(Table2[[#This Row],[Daily Points]]="",NA(),Table2[[#This Row],[Daily Points]]/Table2[[#This Row],[Daily Points Possible]]) -> 
A195: 2019-06-25 | E195: =IF(Table2[[#This Row],[Daily Points]]="",NA(),Table2[[#This Row],[Daily Points]]/Table2[[#This Row],[Daily Points Possible]]) -> 
A196: 2019-06-26 | E196: =IF(Table2[[#This Row],[Daily Points]]="",NA(),Table2[[#This Row],[Daily Points]]/Table2[[#This Row],[Daily Points Possible]]) -> 
A197: 2019-06-27 | E197: =IF(Table2[[#This Row],[Daily Points]]="",NA(),Table2[[#This Row],[Daily Points]]/Table2[[#This Row],[Daily Points Possible]]) -> 
A198: =IF(A197,WORKDAY(A197,1),"") -> 2019-06-28 | E198: =IF(Table2[[#This Row],[Daily Points]]="",NA(),Table2[[#This Row],[Daily Points]]/Table2[[#This Row],[Daily Points Possible]]) ->  | F198: week avg | G198: =AVERAGEIF(E194:E198,"<>#N/A") -> 
A199: 2019-07-01 | E199: =IF(Table2[[#This Row],[Daily Points]]="",NA(),Table2[[#This Row],[Daily Points]]/Table2[[#This Row],[Daily Points Possible]]) -> 
A200: 2019-07-02 | E200: =IF(Table2[[#This Row],[Daily Points]]="",NA(),Table2[[#This Row],[Daily Points]]/Table2[[#This Row],[Daily Points Possible]]) -> 
... 23 more rows

Sheet Student2
F1: GOAL
A2: =StudentInfo!B6 -> Rick Barnes | F2: =StudentInfo!AI6 -> 0.8
A3: Date | B3: Notes | C3: Daily Points Possible | D3: Daily Points | E3: Daily Percent | F3: Avg for Last 10 Days | G3: =AVERAGE(N(OFFSET(E4,LARGE(IF(ISNUMBER(E4:E223),ROW(E4:E223)-ROW(E4)),ROW(1:10)),0))) -> 0.9 | P3: Semester 1
A4: 2018-10-15 | E4: =IF(Table22[[#This Row],[Daily Points]]="",NA(),Table22[[#This Row],[Daily Points]]/Table22[[#This Row],[Daily Points Possible]]) -> 
A5: =IF(A4,WORKDAY(A4,1),"") -> 2018-10-16 | E5: =IF(Table22[[#This Row],[Daily Points]]="",NA(),Table22[[#This Row],[Daily Points]]/Table22[[#This Row],[Daily Points Possible]]) -> 
A6: =IF(A5,WORKDAY(A5,1),"") -> 2018-10-17 | E6: =IF(Table22[[#This Row],[Daily Points]]="",NA(),Table22[[#This Row],[Daily Points]]/Table22[[#This Row],[Daily Points Possible]]) -> 
A7: 2018-10-18 | B7: Int. 1 start | C7: 10 | D7: 6 | E7: =IF(Table22[[#This Row],[Daily Points]]="",NA(),Table22[[#This Row],[Daily Points]]/Table22[[#This Row],[Daily Points Possible]]) -> 0.6
A8: 2018-10-19 | C8: 10 | D8: 6 | E8: =IF(Table22[[#This Row],[Daily Points]]="",NA(),Table22[[#This Row],[Daily Points]]/Table22[[#This Row],[Daily Points Possible]]) -> 0.6 | F8: week avg | G8: =AVERAGEIF(E4:E8,"<>#N/A") -> 0.6
A9: 2018-10-22 | C9: 10 | D9: 6 | E9: =IF(Table22[[#This Row],[Daily Points]]="",NA(),Table22[[#This Row],[Daily Points]]/Table22[[#This Row],[Daily Points Possible]]) -> 0.6
A10: 2018-10-23 | C10: 10 | D10: 7 | E10: =IF(Table22[[#This Row],[Daily Points]]="",NA(),Table22[[#This Row],[Daily Points]]/Table22[[#This Row],[Daily Points Possible]]) -> 0.7
A11: 2018-10-24 | C11: 10 | D11: 6 | E11: =IF(Table22[[#This Row],[Daily Points]]="",NA(),Table22[[#This Row],[Daily Points]]/Table22[[#This Row],[Daily Points Possible]]) -> 0.6
A12: 2018-10-25 | C12: 10 | D12: 7 | E12: =IF(Table22[[#This Row],[Daily Points]]="",NA(),Table22[[#This Row],[Daily Points]]/Table22[[#This Row],[Daily Points Possible]]) -> 0.7
A13: 2018-10-26 | C13: 10 | D13: 6 | E13: =IF(Table22[[#This Row],[Daily Points]]="",NA(),Table22[[#This Row],[Daily Points]]/Table22[[#This Row],[Daily Points Possible]]) -> 0.6 | F13: week avg | G13: =AVERAGEIF(E9:E13,"<>#N/A") -> 0.64
A14: 2018-10-29 | C14: 10 | D14: 7 | E14: =IF(Table22[[#This Row],[Daily Points]]="",NA(),Table22[[#This Row],[Daily Points]]/Table22[[#This Row],[Daily Points Possible]]) -> 0.7
A15: 2018-10-30 | C15: 10 | D15: 7 | E15: =IF(Table22[[#This Row],[Daily Points]]="",NA(),Table22[[#This Row],[Daily Points]]/Table22[[#This Row],[Daily Points Possible]]) -> 0.7
A16: 2018-10-31 | C16: 10 | D16: 7 | E16: =IF(Table22[[#This Row],[Daily Points]]="",NA(),Table22[[#This Row],[Daily Points]]/Table22[[#This Row],[Daily Points Possible]]) -> 0.7
A17: 2018-11-01 | C17: 10 | D17: 8 | E17: =IF(Table22[[#This Row],[Daily Points]]="",NA(),Table22[[#This Row],[Daily Points]]/Table22[[#This Row],[Daily Points Possible]]) -> 0.8
A18: 2018-11-02 | C18: 10 | D18: 8 | E18: =IF(Table22[[#This Row],[Daily Points]]="",NA(),Table22[[#This Row],[Daily Points]]/Table22[[#This Row],[Daily Points Possible]]) -> 0.8 | F18: week avg | G18: =AVERAGEIF(E14:E18,"<>#N/A") -> 0.74
A19: 2018-11-05 | C19: 10 | D19: 8 | E19: =IF(Table22[[#This Row],[Daily Points]]="",NA(),Table22[[#This Row],[Daily Points]]/Table22[[#This Row],[Daily Points Possible]]) -> 0.8
A20: 2018-11-06 | C20: 10 | D20: 8 | E20: =IF(Table22[[#This Row],[Daily Points]]="",NA(),Table22[[#This Row],[Daily Points]]/Table22[[#This Row],[Daily Points Possible]]) -> 0.8
A21: 2018-11-07 | C21: 10 | D21: 8 | E21: =IF(Table22[[#This Row],[Daily Points]]="",NA(),Table22[[#This Row],[Daily Points]]/Table22[[#This Row],[Daily Points Possible]]) -> 0.8
A22: 2018-11-08 | C22: 10 | D22: 8 | E22: =IF(Table22[[#This Row],[Daily Points]]="",NA(),Table22[[#This Row],[Daily Points]]/Table22[[#This Row],[Daily Points Possible]]) -> 0.8 | P22: Semester 2
A23: 2018-11-09 | C23: 10 | D23: 8 | E23: =IF(Table22[[#This Row],[Daily Points]]="",NA(),Table22[[#This Row],[Daily Points]]/Table22[[#This Row],[Daily Points Possible]]) -> 0.8 | F23: week avg | G23: =AVERAGEIF(E19:E23,"<>#N/A") -> 0.8
A24: 2018-11-12 | C24: 10 | D24: 8 | E24: =IF(Table22[[#This Row],[Daily Points]]="",NA(),Table22[[#This Row],[Daily Points]]/Table22[[#This Row],[Daily Points Possible]]) -> 0.8
A25: 2018-11-13 | C25: 10 | D25: 8 | E25: =IF(Table22[[#This Row],[Daily Points]]="",NA(),Table22[[#This Row],[Daily Points]]/Table22[[#This Row],[Daily Points Possible]]) -> 0.8
A26: 2018-11-14 | C26: 10 | D26: 8 | E26: =IF(Table22[[#This Row],[Daily Points]]="",NA(),Table22[[#This Row],[Daily Points]]/Table22[[#This Row],[Daily Points Possible]]) -> 0.8
A27: 2018-11-15 | C27: 10 | D27: 8 | E27: =IF(Table22[[#This Row],[Daily Points]]="",NA(),Table22[[#This Row],[Daily Points]]/Table22[[#This Row],[Daily Points Possible]]) -> 0.8
A28: 2018-11-16 | C28: 10 | D28: 8 | E28: =IF(Table22[[#This Row],[Daily Points]]="",NA(),Table22[[#This Row],[Daily Points]]/Table22[[#This Row],[Daily Points Possible]]) -> 0.8 | F28: week avg | G28: =AVERAGEIF(E24:E28,"<>#N/A") -> 0.8
A29: 2018-11-19 | C29: 10 | D29: 9 | E29: =IF(Table22[[#This Row],[Daily Points]]="",NA(),Table22[[#This Row],[Daily Points]]/Table22[[#This Row],[Daily Points Possible]]) -> 0.9
A30: 2018-11-20 | C30: 10 | D30: 9 | E30: =IF(Table22[[#This Row],[Daily Points]]="",NA(),Table22[[#This Row],[Daily Points]]/Table22[[#This Row],[Daily Points Possible]]) -> 0.9
A31: 2018-11-21 | C31: 10 | D31: 9 | E31: =IF(Table22[[#This Row],[Daily Points]]="",NA(),Table22[[#This Row],[Daily Points]]/Table22[[#This Row],[Daily Points Possible]]) -> 0.9
A32: 2018-11-22 | C32: 10 | D32: 9 | E32: =IF(Table22[[#This Row],[Daily Points]]="",NA(),Table22[[#This Row],[Daily Points]]/Table22[[#This Row],[Daily Points Possible]]) -> 0.9
A33: 2018-11-23 | C33: 10 | D33: 9 | E33: =IF(Table22[[#This Row],[Daily Points]]="",NA(),Table22[[#This Row],[Daily Points]]/Table22[[#This Row],[Daily Points Possible]]) -> 0.9 | F33: week avg | G33: =AVERAGEIF(E29:E33,"<>#N/A") -> 0.9
A34: 2018-11-26 | C34: 10 | D34: 9 | E34: =IF(Table22[[#This Row],[Daily Points]]="",NA(),Table22[[#This Row],[Daily Points]]/Table22[[#This Row],[Daily Points Possible]]) -> 0.9
A35: 2018-11-27 | C35: 10 | D35: 9 | E35: =IF(Table22[[#This Row],[Daily Points]]="",NA(),Table22[[#This Row],[Daily Points]]/Table22[[#This Row],[Daily Points Possible]]) -> 0.9
A36: 2018-11-28 | C36: 10 | D36: 9 | E36: =IF(Table22[[#This Row],[Daily Points]]="",NA(),Table22[[#This Row],[Daily Points]]/Table22[[#This Row],[Daily Points Possible]]) -> 0.9
A37: 2018-11-29 | C37: 10 | D37: 9 | E37: =IF(Table22[[#This Row],[Daily Points]]="",NA(),Table22[[#This Row],[Daily Points]]/Table22[[#This Row],[Daily Points Possible]]) -> 0.9
A38: 2018-11-30 | C38: 10 | D38: 9 | E38: =IF(Table22[[#This Row],[Daily Points]]="",NA(),Table22[[#This Row],[Daily Points]]/Table22[[#This Row],[Daily Points Possible]]) -> 0.9 | F38: week avg | G38: =AVERAGEIF(E34:E38,"<>#N/A") -> 0.9
A39: 2018-12-03 | C39: 10 | D39: 9 | E39: =IF(Table22[[#This Row],[Daily Points]]="",NA(),Table22[[#This Row],[Daily Points]]/Table22[[#This Row],[Daily Points Possible]]) -> 0.9
A40: 2018-12-04 | C40: 10 | D40: 9 | E40: =IF(Table22[[#This Row],[Daily Points]]="",NA(),Table22[[#This Row],[Daily Points]]/Table22[[#This Row],[Daily Points Possible]]) -> 0.9
A41: 2018-12-05 | C41: 10 | D41: 9 | E41: =IF(Table22[[#This Row],[Daily Points]]="",NA(),Table22[[#This Row],[Daily Points]]/Table22[[#This Row],[Daily Points Possible]]) -> 0.9
A42: 2018-12-06 | C42: 10 | D42: 9 | E42: =IF(Table22[[#This Row],[Daily Points]]="",NA(),Table22[[#This Row],[Daily Points]]/Table22[[#This Row],[Daily Points Possible]]) -> 0.9
A43: 2018-12-07 | C43: 10 | D43: 9 | E43: =IF(Table22[[#This Row],[Daily Points]]="",NA(),Table22[[#This Row],[Daily Points]]/Table22[[#This Row],[Daily Points Possible]]) -> 0.9 | F43: week avg | G43: =AVERAGEIF(E39:E43,"<>#N/A") -> 0.9
A44: 2018-12-10 | B44: Int. 1 end | C44: 10 | D44: 9 | E44: =IF(Table22[[#This Row],[Daily Points]]="",NA(),Table22[[#This Row],[Daily Points]]/Table22[[#This Row],[Daily Points Possible]]) -> 0.9
A45: 2018-12-11 | E45: =IF(Table22[[#This Row],[Daily Points]]="",NA(),Table22[[#This Row],[Daily Points]]/Table22[[#This Row],[Daily Points Possible]]) -> 
A46: 2018-12-12 | E46: =IF(Table22[[#This Row],[Daily Points]]="",NA(),Table22[[#This Row],[Daily Points]]/Table22[[#This Row],[Daily Points Possible]]) -> 
A47: 2018-12-13 | E47: =IF(Table22[[#This Row],[Daily Points]]="",NA(),Table22[[#This Row],[Daily Points]]/Table22[[#This Row],[Daily Points Possible]]) -> 
A48: 2018-12-14 | E48: =IF(Table22[[#This Row],[Daily Points]]="",NA(),Table22[[#This Row],[Daily Points]]/Table22[[#This Row],[Daily Points Possible]]) ->  | F48: week avg | G48: =AVERAGEIF(E44:E48,"<>#N/A") -> 0.9
A49: 2018-12-17 | E49: =IF(Table22[[#This Row],[Daily Points]]="",NA(),Table22[[#This Row],[Daily Points]]/Table22[[#This Row],[Daily Points Possible]]) -> 
A50: 2018-12-18 | E50: =IF(Table22[[#This Row],[Daily Points]]="",NA(),Table22[[#This Row],[Daily Points]]/Table22[[#This Row],[Daily Points Possible]]) -> 
A51: 2018-12-19 | E51: =IF(Table22[[#This Row],[Daily Points]]="",NA(),Table22[[#This Row],[Daily Points]]/Table22[[#This Row],[Daily Points Possible]]) -> 
A52: 2018-12-20 | E52: =IF(Table22[[#This Row],[Daily Points]]="",NA(),Table22[[#This Row],[Daily Points]]/Table22[[#This Row],[Daily Points Possible]]) -> 
A53: 2018-12-21 | E53: =IF(Table22[[#This Row],[Daily Points]]="",NA(),Table22[[#This Row],[Daily Points]]/Table22[[#This Row],[Daily Points Possible]]) ->  | F53: week avg | G53: =AVERAGEIF(E49:E53,"<>#N/A") -> 
A54: 2018-12-24 | E54: =IF(Table22[[#This Row],[Daily Points]]="",NA(),Table22[[#This Row],[Daily Points]]/Table22[[#This Row],[Daily Points Possible]]) -> 
A55: 2018-12-25 | E55: =IF(Table22[[#This Row],[Daily Points]]="",NA(),Table22[[#This Row],[Daily Points]]/Table22[[#This Row],[Daily Points Possible]]) -> 
A56: 2018-12-26 | E56: =IF(Table22[[#This Row],[Daily Points]]="",NA(),Table22[[#This Row],[Daily Points]]/Table22[[#This Row],[Daily Points Possible]]) -> 
A57: 2018-12-27 | E57: =IF(Table22[[#This Row],[Daily Points]]="",NA(),Table22[[#This Row],[Daily Points]]/Table22[[#This Row],[Daily Points Possible]]) -> 
A58: 2018-12-28 | E58: =IF(Table22[[#This Row],[Daily Points]]="",NA(),Table22[[#This Row],[Daily Points]]/Table22[[#This Row],[Daily Points Possible]]) ->  | F58: week avg | G58: =AVERAGEIF(E54:E58,"<>#N/A") -> 
A59: 2018-12-31 | E59: =IF(Table22[[#This Row],[Daily Points]]="",NA(),Table22[[#This Row],[Daily Points]]/Table22[[#This Row],[Daily Points Possible]]) -> 
A60: 2019-01-01 | E60: =IF(Table22[[#This Row],[Daily Points]]="",NA(),Table22[[#This Row],[Daily Points]]/Table22[[#This Row],[Daily Points Possible]]) -> 
A61: 2019-01-02 | E61: =IF(Table22[[#This Row],[Daily Points]]="",NA(),Table22[[#This Row],[Daily Points]]/Table22[[#This Row],[Daily Points Possible]]) -> 
A62: 2019-01-03 | E62: =IF(Table22[[#This Row],[Daily Points]]="",NA(),Table22[[#This Row],[Daily Points]]/Table22[[#This Row],[Daily Points Possible]]) -> 
A63: 2019-01-04 | E63: =IF(Table22[[#This Row],[Daily Points]]="",NA(),Table22[[#This Row],[Daily Points]]/Table22[[#This Row],[Daily Points Possible]]) ->  | F63: week avg | G63: =AVERAGEIF(E59:E63,"<>#N/A") -> 
A64: 2019-01-07 | E64: =IF(Table22[[#This Row],[Daily Points]]="",NA(),Table22[[#This Row],[Daily Points]]/Table22[[#This Row],[Daily Points Possible]]) -> 
A65: 2019-01-08 | E65: =IF(Table22[[#This Row],[Daily Points]]="",NA(),Table22[[#This Row],[Daily Points]]/Table22[[#This Row],[Daily Points Possible]]) -> 
A66: 2019-01-09 | E66: =IF(Table22[[#This Row],[Daily Points]]="",NA(),Table22[[#This Row],[Daily Points]]/Table22[[#This Row],[Daily Points Possible]]) -> 
A67: 2019-01-10 | E67: =IF(Table22[[#This Row],[Daily Points]]="",NA(),Table22[[#This Row],[Daily Points]]/Table22[[#This Row],[Daily Points Possible]]) -> 
A68: 2019-01-11 | E68: =IF(Table22[[#This Row],[Daily Points]]="",NA(),Table22[[#This Row],[Daily Points]]/Table22[[#This Row],[Daily Points Possible]]) ->  | F68: week avg | G68: =AVERAGEIF(E64:E68,"<>#N/A") -> 
A69: 2019-01-14 | E69: =IF(Table22[[#This Row],[Daily Points]]="",NA(),Table22[[#This Row],[Daily Points]]/Table22[[#This Row],[Daily Points Possible]]) -> 
A70: =IF(A69,WORKDAY(A69,1),"") -> 2019-01-15 | E70: =IF(Table22[[#This Row],[Daily Points]]="",NA(),Table22[[#This Row],[Daily Points]]/Table22[[#This Row],[Daily Points Possible]]) -> 
A71: 2019-01-16 | E71: =IF(Table22[[#This Row],[Daily Points]]="",NA(),Table22[[#This Row],[Daily Points]]/Table22[[#This Row],[Daily Points Possible]]) -> 
A72: 2019-01-17 | E72: =IF(Table22[[#This Row],[Daily Points]]="",NA(),Table22[[#This Row],[Daily Points]]/Table22[[#This Row],[Daily Points Possible]]) -> 
A73: 2019-01-18 | E73: =IF(Table22[[#This Row],[Daily Points]]="",NA(),Table22[[#This Row],[Daily Points]]/Table22[[#This Row],[Daily Points Possible]]) ->  | F73: week avg | G73: =AVERAGEIF(E69:E73,"<>#N/A") -> 
A74: 2019-01-21 | E74: =IF(Table22[[#This Row],[Daily Points]]="",NA(),Table22[[#This Row],[Daily Points]]/Table22[[#This Row],[Daily Points Possible]]) -> 
A75: 2019-01-22 | E75: =IF(Table22[[#This Row],[Daily Points]]="",NA(),Table22[[#This Row],[Daily Points]]/Table22[[#This Row],[Daily Points Possible]]) -> 
A76: 2019-01-23 | E76: =IF(Table22[[#This Row],[Daily Points]]="",NA(),Table22[[#This Row],[Daily Points]]/Table22[[#This Row],[Daily Points Possible]]) -> 
A77: 2019-01-24 | E77: =IF(Table22[[#This Row],[Daily Points]]="",NA(),Table22[[#This Row],[Daily Points]]/Table22[[#This Row],[Daily Points Possible]]) -> 
A78: 2019-01-25 | E78: =IF(Table22[[#This Row],[Daily Points]]="",NA(),Table22[[#This Row],[Daily Points]]/Table22[[#This Row],[Daily Points Possible]]) ->  | F78: week avg | G78: =AVERAGEIF(E74:E78,"<>#N/A") -> 
A79: 2019-01-28 | E79: =IF(Table22[[#This Row],[Daily Points]]="",NA(),Table22[[#This Row],[Daily Points]]/Table22[[#This Row],[Daily Points Possible]]) -> 
A80: 2019-01-29 | E80: =IF(Table22[[#This Row],[Daily Points]]="",NA(),Table22[[#This Row],[Daily Points]]/Table22[[#This Row],[Daily Points Possible]]) -> 
A81: 2019-01-30 | E81: =IF(Table22[[#This Row],[Daily Points]]="",NA(),Table22[[#This Row],[Daily Points]]/Table22[[#This Row],[Daily Points Possible]]) -> 
A82: 2019-01-31 | E82: =IF(Table22[[#This Row],[Daily Points]]="",NA(),Table22[[#This Row],[Daily Points]]/Table22[[#This Row],[Daily Points Possible]]) -> 
A83: 2019-02-01 | E83: =IF(Table22[[#This Row],[Daily Points]]="",NA(),Table22[[#This Row],[Daily Points]]/Table22[[#This Row],[Daily Points Possible]]) ->  | F83: week avg | G83: =AVERAGEIF(E79:E83,"<>#N/A") -> 
A84: 2019-02-04 | E84: =IF(Table22[[#This Row],[Daily Points]]="",NA(),Table22[[#This Row],[Daily Points]]/Table22[[#This Row],[Daily Points Possible]]) -> 
A85: 2019-02-05 | E85: =IF(Table22[[#This Row],[Daily Points]]="",NA(),Table22[[#This Row],[Daily Points]]/Table22[[#This Row],[Daily Points Possible]]) -> 
A86: 2019-02-06 | E86: =IF(Table22[[#This Row],[Daily Points]]="",NA(),Table22[[#This Row],[Daily Points]]/Table22[[#This Row],[Daily Points Possible]]) -> 
A87: 2019-02-07 | E87: =IF(Table22[[#This Row],[Daily Points]]="",NA(),Table22[[#This Row],[Daily Points]]/Table22[[#This Row],[Daily Points Possible]]) -> 
A88: 2019-02-08 | E88: =IF(Table22[[#This Row],[Daily Points]]="",NA(),Table22[[#This Row],[Daily Points]]/Table22[[#This Row],[Daily Points Possible]]) ->  | F88: week avg | G88: =AVERAGEIF(E84:E88,"<>#N/A") -> 
A89: 2019-02-11 | E89: =IF(Table22[[#This Row],[Daily Points]]="",NA(),Table22[[#This Row],[Daily Points]]/Table22[[#This Row],[Daily Points Possible]]) -> 
A90: 2019-02-12 | E90: =IF(Table22[[#This Row],[Daily Points]]="",NA(),Table22[[#This Row],[Daily Points]]/Table22[[#This Row],[Daily Points Possible]]) -> 
A91: 2019-02-13 | E91: =IF(Table22[[#This Row],[Daily Points]]="",NA(),Table22[[#This Row],[Daily Points]]/Table22[[#This Row],[Daily Points Possible]]) -> 
A92: 2019-02-14 | E92: =IF(Table22[[#This Row],[Daily Points]]="",NA(),Table22[[#This Row],[Daily Points]]/Table22[[#This Row],[Daily Points Possible]]) -> 
A93: 2019-02-15 | E93: =IF(Table22[[#This Row],[Daily Points]]="",NA(),Table22[[#This Row],[Daily Points]]/Table22[[#This Row],[Daily Points Possible]]) ->  | F93: week avg | G93: =AVERAGEIF(E89:E93,"<>#N/A") -> 
A94: 2019-02-18 | E94: =IF(Table22[[#This Row],[Daily Points]]="",NA(),Table22[[#This Row],[Daily Points]]/Table22[[#This Row],[Daily Points Possible]]) -> 
A95: 2019-02-19 | E95: =IF(Table22[[#This Row],[Daily Points]]="",NA(),Table22[[#This Row],[Daily Points]]/Table22[[#This Row],[Daily Points Possible]]) -> 
A96: 2019-02-20 | E96: =IF(Table22[[#This Row],[Daily Points]]="",NA(),Table22[[#This Row],[Daily Points]]/Table22[[#This Row],[Daily Points Possible]]) -> 
A97: 2019-02-21 | E97: =IF(Table22[[#This Row],[Daily Points]]="",NA(),Table22[[#This Row],[Daily Points]]/Table22[[#This Row],[Daily Points Possible]]) -> 
A98: 2019-02-22 | E98: =IF(Table22[[#This Row],[Daily Points]]="",NA(),Table22[[#This Row],[Daily Points]]/Table22[[#This Row],[Daily Points Possible]]) ->  | F98: week avg | G98: =AVERAGEIF(E94:E98,"<>#N/A") -> 
A99: 2019-02-25 | E99: =IF(Table22[[#This Row],[Daily Points]]="",NA(),Table22[[#This Row],[Daily Points]]/Table22[[#This Row],[Daily Points Possible]]) -> 
A100: 2019-02-26 | E100: =IF(Table22[[#This Row],[Daily Points]]="",NA(),Table22[[#This Row],[Daily Points]]/Table22[[#This Row],[Daily Points Possible]]) -> 
A101: 2019-02-27 | E101: =IF(Table22[[#This Row],[Daily Points]]="",NA(),Table22[[#This Row],[Daily Points]]/Table22[[#This Row],[Daily Points Possible]]) -> 
A102: 2019-02-28 | E102: =IF(Table22[[#This Row],[Daily Points]]="",NA(),Table22[[#This Row],[Daily Points]]/Table22[[#This Row],[Daily Points Possible]]) -> 
A103: 2019-03-01 | E103: =IF(Table22[[#This Row],[Daily Points]]="",NA(),Table22[[#This Row],[Daily Points]]/Table22[[#This Row],[Daily Points Possible]]) ->  | F103: week avg | G103: =AVERAGEIF(E99:E103,"<>#N/A") -> 
A104: 2019-03-04 | E104: =IF(Table22[[#This Row],[Daily Points]]="",NA(),Table22[[#This Row],[Daily Points]]/Table22[[#This Row],[Daily Points Possible]]) -> 
A105: 2019-03-05 | E105: =IF(Table22[[#This Row],[Daily Points]]="",NA(),Table22[[#This Row],[Daily Points]]/Table22[[#This Row],[Daily Points Possible]]) -> 
A106: 2019-03-06 | E106: =IF(Table22[[#This Row],[Daily Points]]="",NA(),Table22[[#This Row],[Daily Points]]/Table22[[#This Row],[Daily Points Possible]]) -> 
A107: 2019-03-07 | E107: =IF(Table22[[#This Row],[Daily Points]]="",NA(),Table22[[#This Row],[Daily Points]]/Table22[[#This Row],[Daily Points Possible]]) -> 
A108: 2019-03-08 | E108: =IF(Table22[[#This Row],[Daily Points]]="",NA(),Table22[[#This Row],[Daily Points]]/Table22[[#This Row],[Daily Points Possible]]) ->  | F108: week avg | G108: =AVERAGEIF(E104:E108,"<>#N/A") -> 
A109: 2019-03-11 | E109: =IF(Table22[[#This Row],[Daily Points]]="",NA(),Table22[[#This Row],[Daily Points]]/Table22[[#This Row],[Daily Points Possible]]) -> 
A110: 2019-03-12 | E110: =IF(Table22[[#This Row],[Daily Points]]="",NA(),Table22[[#This Row],[Daily Points]]/Table22[[#This Row],[Daily Points Possible]]) -> 
A111: 2019-03-13 | E111: =IF(Table22[[#This Row],[Daily Points]]="",NA(),Table22[[#This Row],[Daily Points]]/Table22[[#This Row],[Daily Points Possible]]) -> 
A112: 2019-03-14 | E112: =IF(Table22[[#This Row],[Daily Points]]="",NA(),Table22[[#This Row],[Daily Points]]/Table22[[#This Row],[Daily Points Possible]]) -> 
A113: 2019-03-15 | E113: =IF(Table22[[#This Row],[Daily Points]]="",NA(),Table22[[#This Row],[Daily Points]]/Table22[[#This Row],[Daily Points Possible]]) ->  | F113: week avg | G113: =AVERAGEIF(E109:E113,"<>#N/A") -> 
A114: 2019-03-18 | E114: =IF(Table22[[#This Row],[Daily Points]]="",NA(),Table22[[#This Row],[Daily Points]]/Table22[[#This Row],[Daily Points Possible]]) -> 
A115: 2019-03-19 | E115: =IF(Table22[[#This Row],[Daily Points]]="",NA(),Table22[[#This Row],[Daily Points]]/Table22[[#This Row],[Daily Points Possible]]) -> 
A116: 2019-03-20 | E116: =IF(Table22[[#This Row],[Daily Points]]="",NA(),Table22[[#This Row],[Daily Points]]/Table22[[#This Row],[Daily Points Possible]]) -> 
A117: 2019-03-21 | E117: =IF(Table22[[#This Row],[Daily Points]]="",NA(),Table22[[#This Row],[Daily Points]]/Table22[[#This Row],[Daily Points Possible]]) -> 
A118: 2019-03-22 | E118: =IF(Table22[[#This Row],[Daily Points]]="",NA(),Table22[[#This Row],[Daily Points]]/Table22[[#This Row],[Daily Points Possible]]) ->  | F118: week avg | G118: =AVERAGEIF(E114:E118,"<>#N/A") -> 
A119: 2019-03-25 | E119: =IF(Table22[[#This Row],[Daily Points]]="",NA(),Table22[[#This Row],[Daily Points]]/Table22[[#This Row],[Daily Points Possible]]) -> 
A120: 2019-03-26 | E120: =IF(Table22[[#This Row],[Daily Points]]="",NA(),Table22[[#This Row],[Daily Points]]/Table22[[#This Row],[Daily Points Possible]]) -> 
A121: 2019-03-27 | E121: =IF(Table22[[#This Row],[Daily Points]]="",NA(),Table22[[#This Row],[Daily Points]]/Table22[[#This Row],[Daily Points Possible]]) -> 
A122: 2019-03-28 | E122: =IF(Table22[[#This Row],[Daily Points]]="",NA(),Table22[[#This Row],[Daily Points]]/Table22[[#This Row],[Daily Points Possible]]) -> 
A123: 2019-03-29 | E123: =IF(Table22[[#This Row],[Daily Points]]="",NA(),Table22[[#This Row],[Daily Points]]/Table22[[#This Row],[Daily Points Possible]]) ->  | F123: week avg | G123: =AVERAGEIF(E119:E123,"<>#N/A") -> 
A124: 2019-04-01 | E124: =IF(Table22[[#This Row],[Daily Points]]="",NA(),Table22[[#This Row],[Daily Points]]/Table22[[#This Row],[Daily Points Possible]]) -> 
A125: 2019-04-02 | E125: =IF(Table22[[#This Row],[Daily Points]]="",NA(),Table22[[#This Row],[Daily Points]]/Table22[[#This Row],[Daily Points Possible]]) -> 
A126: 2019-04-03 | E126: =IF(Table22[[#This Row],[Daily Points]]="",NA(),Table22[[#This Row],[Daily Points]]/Table22[[#This Row],[Daily Points Possible]]) -> 
A127: 2019-04-04 | E127: =IF(Table22[[#This Row],[Daily Points]]="",NA(),Table22[[#This Row],[Daily Points]]/Table22[[#This Row],[Daily Points Possible]]) -> 
A128: 2019-04-05 | E128: =IF(Table22[[#This Row],[Daily Points]]="",NA(),Table22[[#This Row],[Daily Points]]/Table22[[#This Row],[Daily Points Possible]]) ->  | F128: week avg | G128: =AVERAGEIF(E124:E128,"<>#N/A") -> 
A129: 2019-04-08 | E129: =IF(Table22[[#This Row],[Daily Points]]="",NA(),Table22[[#This Row],[Daily Points]]/Table22[[#This Row],[Daily Points Possible]]) -> 
A130: 2019-04-09 | E130: =IF(Table22[[#This Row],[Daily Points]]="",NA(),Table22[[#This Row],[Daily Points]]/Table22[[#This Row],[Daily Points Possible]]) -> 
A131: 2019-04-10 | E131: =IF(Table22[[#This Row],[Daily Points]]="",NA(),Table22[[#This Row],[Daily Points]]/Table22[[#This Row],[Daily Points Possible]]) -> 
A132: 2019-04-11 | E132: =IF(Table22[[#This Row],[Daily Points]]="",NA(),Table22[[#This Row],[Daily Points]]/Table22[[#This Row],[Daily Points Possible]]) -> 
A133: 2019-04-12 | E133: =IF(Table22[[#This Row],[Daily Points]]="",NA(),Table22[[#This Row],[Daily Points]]/Table22[[#This Row],[Daily Points Possible]]) ->  | F133: week avg | G133: =AVERAGEIF(E129:E133,"<>#N/A") -> 
A134: =IF(A133,WORKDAY(A133,1),"") -> 2019-04-15 | E134: =IF(Table22[[#This Row],[Daily Points]]="",NA(),Table22[[#This Row],[Daily Points]]/Table22[[#This Row],[Daily Points Possible]]) -> 
A135: 2019-04-16 | E135: =IF(Table22[[#This Row],[Daily Points]]="",NA(),Table22[[#This Row],[Daily Points]]/Table22[[#This Row],[Daily Points Possible]]) -> 
A136: 2019-04-17 | E136: =IF(Table22[[#This Row],[Daily Points]]="",NA(),Table22[[#This Row],[Daily Points]]/Table22[[#This Row],[Daily Points Possible]]) -> 
A137: 2019-04-18 | E137: =IF(Table22[[#This Row],[Daily Points]]="",NA(),Table22[[#This Row],[Daily Points]]/Table22[[#This Row],[Daily Points Possible]]) -> 
A138: 2019-04-19 | E138: =IF(Table22[[#This Row],[Daily Points]]="",NA(),Table22[[#This Row],[Daily Points]]/Table22[[#This Row],[Daily Points Possible]]) ->  | F138: week avg | G138: =AVERAGEIF(E134:E138,"<>#N/A") -> 
A139: 2019-04-22 | E139: =IF(Table22[[#This Row],[Daily Points]]="",NA(),Table22[[#This Row],[Daily Points]]/Table22[[#This Row],[Daily Points Possible]]) -> 
A140: 2019-04-23 | E140: =IF(Table22[[#This Row],[Daily Points]]="",NA(),Table22[[#This Row],[Daily Points]]/Table22[[#This Row],[Daily Points Possible]]) -> 
A141: 2019-04-24 | E141: =IF(Table22[[#This Row],[Daily Points]]="",NA(),Table22[[#This Row],[Daily Points]]/Table22[[#This Row],[Daily Points Possible]]) -> 
A142: 2019-04-25 | E142: =IF(Table22[[#This Row],[Daily Points]]="",NA(),Table22[[#This Row],[Daily Points]]/Table22[[#This Row],[Daily Points Possible]]) -> 
A143: 2019-04-26 | E143: =IF(Table22[[#This Row],[Daily Points]]="",NA(),Table22[[#This Row],[Daily Points]]/Table22[[#This Row],[Daily Points Possible]]) ->  | F143: week avg | G143: =AVERAGEIF(E139:E143,"<>#N/A") -> 
A144: 2019-04-29 | E144: =IF(Table22[[#This Row],[Daily Points]]="",NA(),Table22[[#This Row],[Daily Points]]/Table22[[#This Row],[Daily Points Possible]]) -> 
A145: 2019-04-30 | E145: =IF(Table22[[#This Row],[Daily Points]]="",NA(),Table22[[#This Row],[Daily Points]]/Table22[[#This Row],[Daily Points Possible]]) -> 
A146: 2019-05-01 | E146: =IF(Table22[[#This Row],[Daily Points]]="",NA(),Table22[[#This Row],[Daily Points]]/Table22[[#This Row],[Daily Points Possible]]) -> 
A147: 2019-05-02 | E147: =IF(Table22[[#This Row],[Daily Points]]="",NA(),Table22[[#This Row],[Daily Points]]/Table22[[#This Row],[Daily Points Possible]]) -> 
A148: 2019-05-03 | E148: =IF(Table22[[#This Row],[Daily Points]]="",NA(),Table22[[#This Row],[Daily Points]]/Table22[[#This Row],[Daily Points Possible]]) ->  | F148: week avg | G148: =AVERAGEIF(E144:E148,"<>#N/A") -> 
A149: 2019-05-06 | E149: =IF(Table22[[#This Row],[Daily Points]]="",NA(),Table22[[#This Row],[Daily Points]]/Table22[[#This Row],[Daily Points Possible]]) -> 
A150: 2019-05-07 | E150: =IF(Table22[[#This Row],[Daily Points]]="",NA(),Table22[[#This Row],[Daily Points]]/Table22[[#This Row],[Daily Points Possible]]) -> 
A151: 2019-05-08 | E151: =IF(Table22[[#This Row],[Daily Points]]="",NA(),Table22[[#This Row],[Daily Points]]/Table22[[#This Row],[Daily Points Possible]]) -> 
A152: 2019-05-09 | E152: =IF(Table22[[#This Row],[Daily Points]]="",NA(),Table22[[#This Row],[Daily Points]]/Table22[[#This Row],[Daily Points Possible]]) -> 
A153: 2019-05-10 | E153: =IF(Table22[[#This Row],[Daily Points]]="",NA(),Table22[[#This Row],[Daily Points]]/Table22[[#This Row],[Daily Points Possible]]) ->  | F153: week avg | G153: =AVERAGEIF(E149:E153,"<>#N/A") -> 
A154: 2019-05-13 | E154: =IF(Table22[[#This Row],[Daily Points]]="",NA(),Table22[[#This Row],[Daily Points]]/Table22[[#This Row],[Daily Points Possible]]) -> 
A155: 2019-05-14 | E155: =IF(Table22[[#This Row],[Daily Points]]="",NA(),Table22[[#This Row],[Daily Points]]/Table22[[#This Row],[Daily Points Possible]]) -> 
A156: 2019-05-15 | E156: =IF(Table22[[#This Row],[Daily Points]]="",NA(),Table22[[#This Row],[Daily Points]]/Table22[[#This Row],[Daily Points Possible]]) -> 
A157: 2019-05-16 | E157: =IF(Table22[[#This Row],[Daily Points]]="",NA(),Table22[[#This Row],[Daily Points]]/Table22[[#This Row],[Daily Points Possible]]) -> 
A158: 2019-05-17 | E158: =IF(Table22[[#This Row],[Daily Points]]="",NA(),Table22[[#This Row],[Daily Points]]/Table22[[#This Row],[Daily Points Possible]]) ->  | F158: week avg | G158: =AVERAGEIF(E154:E158,"<>#N/A") -> 
A159: 2019-05-20 | E159: =IF(Table22[[#This Row],[Daily Points]]="",NA(),Table22[[#This Row],[Daily Points]]/Table22[[#This Row],[Daily Points Possible]]) -> 
A160: 2019-05-21 | E160: =IF(Table22[[#This Row],[Daily Points]]="",NA(),Table22[[#This Row],[Daily Points]]/Table22[[#This Row],[Daily Points Possible]]) -> 
A161: 2019-05-22 | E161: =IF(Table22[[#This Row],[Daily Points]]="",NA(),Table22[[#This Row],[Daily Points]]/Table22[[#This Row],[Daily Points Possible]]) -> 
A162: 2019-05-23 | E162: =IF(Table22[[#This Row],[Daily Points]]="",NA(),Table22[[#This Row],[Daily Points]]/Table22[[#This Row],[Daily Points Possible]]) -> 
A163: 2019-05-24 | E163: =IF(Table22[[#This Row],[Daily Points]]="",NA(),Table22[[#This Row],[Daily Points]]/Table22[[#This Row],[Daily Points Possible]]) ->  | F163: week avg | G163: =AVERAGEIF(E159:E163,"<>#N/A") -> 
A164: 2019-05-27 | E164: =IF(Table22[[#This Row],[Daily Points]]="",NA(),Table22[[#This Row],[Daily Points]]/Table22[[#This Row],[Daily Points Possible]]) -> 
A165: 2019-05-28 | E165: =IF(Table22[[#This Row],[Daily Points]]="",NA(),Table22[[#This Row],[Daily Points]]/Table22[[#This Row],[Daily Points Possible]]) -> 
A166: 2019-05-29 | E166: =IF(Table22[[#This Row],[Daily Points]]="",NA(),Table22[[#This Row],[Daily Points]]/Table22[[#This Row],[Daily Points Possible]]) -> 
A167: 2019-05-30 | E167: =IF(Table22[[#This Row],[Daily Points]]="",NA(),Table22[[#This Row],[Daily Points]]/Table22[[#This Row],[Daily Points Possible]]) -> 
A168: 2019-05-31 | E168: =IF(Table22[[#This Row],[Daily Points]]="",NA(),Table22[[#This Row],[Daily Points]]/Table22[[#This Row],[Daily Points Possible]]) ->  | F168: week avg | G168: =AVERAGEIF(E164:E168,"<>#N/A") -> 
A169: 2019-06-03 | E169: =IF(Table22[[#This Row],[Daily Points]]="",NA(),Table22[[#This Row],[Daily Points]]/Table22[[#This Row],[Daily Points Possible]]) -> 
A170: 2019-06-04 | E170: =IF(Table22[[#This Row],[Daily Points]]="",NA(),Table22[[#This Row],[Daily Points]]/Table22[[#This Row],[Daily Points Possible]]) -> 
A171: 2019-06-05 | E171: =IF(Table22[[#This Row],[Daily Points]]="",NA(),Table22[[#This Row],[Daily Points]]/Table22[[#This Row],[Daily Points Possible]]) -> 
A172: 2019-06-06 | E172: =IF(Table22[[#This Row],[Daily Points]]="",NA(),Table22[[#This Row],[Daily Points]]/Table22[[#This Row],[Daily Points Possible]]) -> 
A173: 2019-06-07 | E173: =IF(Table22[[#This Row],[Daily Points]]="",NA(),Table22[[#This Row],[Daily Points]]/Table22[[#This Row],[Daily Points Possible]]) ->  | F173: week avg | G173: =AVERAGEIF(E169:E173,"<>#N/A") -> 
A174: 2019-06-10 | E174: =IF(Table22[[#This Row],[Daily Points]]="",NA(),Table22[[#This Row],[Daily Points]]/Table22[[#This Row],[Daily Points Possible]]) -> 
A175: 2019-06-11 | E175: =IF(Table22[[#This Row],[Daily Points]]="",NA(),Table22[[#This Row],[Daily Points]]/Table22[[#This Row],[Daily Points Possible]]) -> 
A176: 2019-06-12 | E176: =IF(Table22[[#This Row],[Daily Points]]="",NA(),Table22[[#This Row],[Daily Points]]/Table22[[#This Row],[Daily Points Possible]]) -> 
A177: 2019-06-13 | E177: =IF(Table22[[#This Row],[Daily Points]]="",NA(),Table22[[#This Row],[Daily Points]]/Table22[[#This Row],[Daily Points Possible]]) -> 
A178: 2019-06-14 | E178: =IF(Table22[[#This Row],[Daily Points]]="",NA(),Table22[[#This Row],[Daily Points]]/Table22[[#This Row],[Daily Points Possible]]) ->  | F178: week avg | G178: =AVERAGEIF(E174:E178,"<>#N/A") -> 
A179: 2019-06-17 | E179: =IF(Table22[[#This Row],[Daily Points]]="",NA(),Table22[[#This Row],[Daily Points]]/Table22[[#This Row],[Daily Points Possible]]) -> 
A180: 2019-06-18 | E180: =IF(Table22[[#This Row],[Daily Points]]="",NA(),Table22[[#This Row],[Daily Points]]/Table22[[#This Row],[Daily Points Possible]]) -> 
A181: 2019-06-19 | E181: =IF(Table22[[#This Row],[Daily Points]]="",NA(),Table22[[#This Row],[Daily Points]]/Table22[[#This Row],[Daily Points Possible]]) -> 
A182: 2019-06-20 | E182: =IF(Table22[[#This Row],[Daily Points]]="",NA(),Table22[[#This Row],[Daily Points]]/Table22[[#This Row],[Daily Points Possible]]) -> 
A183: 2019-06-21 | E183: =IF(Table22[[#This Row],[Daily Points]]="",NA(),Table22[[#This Row],[Daily Points]]/Table22[[#This Row],[Daily Points Possible]]) ->  | F183: week avg | G183: =AVERAGEIF(E179:E183,"<>#N/A") -> 
A184: 2019-06-24 | E184: =IF(Table22[[#This Row],[Daily Points]]="",NA(),Table22[[#This Row],[Daily Points]]/Table22[[#This Row],[Daily Points Possible]]) -> 
A185: 2019-06-25 | E185: =IF(Table22[[#This Row],[Daily Points]]="",NA(),Table22[[#This Row],[Daily Points]]/Table22[[#This Row],[Daily Points Possible]]) -> 
A186: 2019-06-26 | E186: =IF(Table22[[#This Row],[Daily Points]]="",NA(),Table22[[#This Row],[Daily Points]]/Table22[[#This Row],[Daily Points Possible]]) -> 
A187: 2019-06-27 | E187: =IF(Table22[[#This Row],[Daily Points]]="",NA(),Table22[[#This Row],[Daily Points]]/Table22[[#This Row],[Daily Points Possible]]) -> 
A188: 2019-06-28 | E188: =IF(Table22[[#This Row],[Daily Points]]="",NA(),Table22[[#This Row],[Daily Points]]/Table22[[#This Row],[Daily Points Possible]]) ->  | F188: week avg | G188: =AVERAGEIF(E184:E188,"<>#N/A") -> 
A189: 2019-07-01 | E189: =IF(Table22[[#This Row],[Daily Points]]="",NA(),Table22[[#This Row],[Daily Points]]/Table22[[#This Row],[Daily Points Possible]]) -> 
A190: 2019-07-02 | E190: =IF(Table22[[#This Row],[Daily Points]]="",NA(),Table22[[#This Row],[Daily Points]]/Table22[[#This Row],[Daily Points Possible]]) -> 
A191: 2019-07-03 | E191: =IF(Table22[[#This Row],[Daily Points]]="",NA(),Table22[[#This Row],[Daily Points]]/Table22[[#This Row],[Daily Points Possible]]) -> 
A192: 2019-07-04 | E192: =IF(Table22[[#This Row],[Daily Points]]="",NA(),Table22[[#This Row],[Daily Points]]/Table22[[#This Row],[Daily Points Possible]]) -> 
A193: 2019-07-05 | E193: =IF(Table22[[#This Row],[Daily Points]]="",NA(),Table22[[#This Row],[Daily Points]]/Table22[[#This Row],[Daily Points Possible]]) ->  | F193: week avg | G193: =AVERAGEIF(E189:E193,"<>#N/A") -> 
A194: 2019-07-08 | E194: =IF(Table22[[#This Row],[Daily Points]]="",NA(),Table22[[#This Row],[Daily Points]]/Table22[[#This Row],[Daily Points Possible]]) -> 
A195: 2019-07-09 | E195: =IF(Table22[[#This Row],[Daily Points]]="",NA(),Table22[[#This Row],[Daily Points]]/Table22[[#This Row],[Daily Points Possible]]) -> 
A196: 2019-07-10 | E196: =IF(Table22[[#This Row],[Daily Points]]="",NA(),Table22[[#This Row],[Daily Points]]/Table22[[#This Row],[Daily Points Possible]]) -> 
A197: 2019-07-11 | E197: =IF(Table22[[#This Row],[Daily Points]]="",NA(),Table22[[#This Row],[Daily Points]]/Table22[[#This Row],[Daily Points Possible]]) -> 
A198: =IF(A197,WORKDAY(A197,1),"") -> 2019-07-12 | E198: =IF(Table22[[#This Row],[Daily Points]]="",NA(),Table22[[#This Row],[Daily Points]]/Table22[[#This Row],[Daily Points Possible]]) ->  | F198: week avg | G198: =AVERAGEIF(E194:E198,"<>#N/A") -> 
A199: 2019-07-15 | E199: =IF(Table22[[#This Row],[Daily Points]]="",NA(),Table22[[#This Row],[Daily Points]]/Table22[[#This Row],[Daily Points Possible]]) -> 
A200: 2019-07-16 | E200: =IF(Table22[[#This Row],[Daily Points]]="",NA(),Table22[[#This Row],[Daily Points]]/Table22[[#This Row],[Daily Points Possible]]) -> 
... 23 more rows

Sheet Student3
F1: GOAL
A2: =StudentInfo!B7 -> Derek Mason | F2: =StudentInfo!AI7 -> Completion of group
A3: Date | B3: Notes | C3: Daily Points Possible | D3: Daily Points | E3: Daily Percent | F3: Avg for Last 10 Days | G3: =AVERAGE(N(OFFSET(E4,LARGE(IF(ISNUMBER(E4:E223),ROW(E4:E223)-ROW(E4)),ROW(1:10)),0))) ->  | Q3: Semester 1
E4: =IF(Table225[[#This Row],[Daily Points]]="",NA(),Table225[[#This Row],[Daily Points]]/Table225[[#This Row],[Daily Points Possible]]) -> 
A5: =IF(A4,WORKDAY(A4,1),"") ->  | E5: =IF(Table225[[#This Row],[Daily Points]]="",NA(),Table225[[#This Row],[Daily Points]]/Table225[[#This Row],[Daily Points Possible]]) -> 
E6: =IF(Table225[[#This Row],[Daily Points]]="",NA(),Table225[[#This Row],[Daily Points]]/Table225[[#This Row],[Daily Points Possible]]) -> 
E7: =IF(Table225[[#This Row],[Daily Points]]="",NA(),Table225[[#This Row],[Daily Points]]/Table225[[#This Row],[Daily Points Possible]]) -> 
E8: =IF(Table225[[#This Row],[Daily Points]]="",NA(),Table225[[#This Row],[Daily Points]]/Table225[[#This Row],[Daily Points Possible]]) ->  | F8: week avg | G8: =AVERAGEIF(E4:E8,"<>#N/A") -> 
E9: =IF(Table225[[#This Row],[Daily Points]]="",NA(),Table225[[#This Row],[Daily Points]]/Table225[[#This Row],[Daily Points Possible]]) -> 
E10: =IF(Table225[[#This Row],[Daily Points]]="",NA(),Table225[[#This Row],[Daily Points]]/Table225[[#This Row],[Daily Points Possible]]) -> 
E11: =IF(Table225[[#This Row],[Daily Points]]="",NA(),Table225[[#This Row],[Daily Points]]/Table225[[#This Row],[Daily Points Possible]]) -> 
E12: =IF(Table225[[#This Row],[Daily Points]]="",NA(),Table225[[#This Row],[Daily Points]]/Table225[[#This Row],[Daily Points Possible]]) -> 
E13: =IF(Table225[[#This Row],[Daily Points]]="",NA(),Table225[[#This Row],[Daily Points]]/Table225[[#This Row],[Daily Points Possible]]) ->  | F13: week avg | G13: =AVERAGEIF(E9:E13,"<>#N/A") -> 
E14: =IF(Table225[[#This Row],[Daily Points]]="",NA(),Table225[[#This Row],[Daily Points]]/Table225[[#This Row],[Daily Points Possible]]) -> 
E15: =IF(Table225[[#This Row],[Daily Points]]="",NA(),Table225[[#This Row],[Daily Points]]/Table225[[#This Row],[Daily Points Possible]]) -> 
E16: =IF(Table225[[#This Row],[Daily Points]]="",NA(),Table225[[#This Row],[Daily Points]]/Table225[[#This Row],[Daily Points Possible]]) -> 
E17: =IF(Table225[[#This Row],[Daily Points]]="",NA(),Table225[[#This Row],[Daily Points]]/Table225[[#This Row],[Daily Points Possible]]) -> 
E18: =IF(Table225[[#This Row],[Daily Points]]="",NA(),Table225[[#This Row],[Daily Points]]/Table225[[#This Row],[Daily Points Possible]]) ->  | F18: week avg | G18: =AVERAGEIF(E14:E18,"<>#N/A") -> 
E19: =IF(Table225[[#This Row],[Daily Points]]="",NA(),Table225[[#This Row],[Daily Points]]/Table225[[#This Row],[Daily Points Possible]]) -> 
E20: =IF(Table225[[#This Row],[Daily Points]]="",NA(),Table225[[#This Row],[Daily Points]]/Table225[[#This Row],[Daily Points Possible]]) -> 
E21: =IF(Table225[[#This Row],[Daily Points]]="",NA(),Table225[[#This Row],[Daily Points]]/Table225[[#This Row],[Daily Points Possible]]) -> 
E22: =IF(Table225[[#This Row],[Daily Points]]="",NA(),Table225[[#This Row],[Daily Points]]/Table225[[#This Row],[Daily Points Possible]]) ->  | Q22: Semester 2
E23: =IF(Table225[[#This Row],[Daily Points]]="",NA(),Table225[[#This Row],[Daily Points]]/Table225[[#This Row],[Daily Points Possible]]) ->  | F23: week avg | G23: =AVERAGEIF(E19:E23,"<>#N/A") -> 
E24: =IF(Table225[[#This Row],[Daily Points]]="",NA(),Table225[[#This Row],[Daily Points]]/Table225[[#This Row],[Daily Points Possible]]) -> 
E25: =IF(Table225[[#This Row],[Daily Points]]="",NA(),Table225[[#This Row],[Daily Points]]/Table225[[#This Row],[Daily Points Possible]]) -> 
E26: =IF(Table225[[#This Row],[Daily Points]]="",NA(),Table225[[#This Row],[Daily Points]]/Table225[[#This Row],[Daily Points Possible]]) -> 
E27: =IF(Table225[[#This Row],[Daily Points]]="",NA(),Table225[[#This Row],[Daily Points]]/Table225[[#This Row],[Daily Points Possible]]) -> 
E28: =IF(Table225[[#This Row],[Daily Points]]="",NA(),Table225[[#This Row],[Daily Points]]/Table225[[#This Row],[Daily Points Possible]]) ->  | F28: week avg | G28: =AVERAGEIF(E24:E28,"<>#N/A") -> 
E29: =IF(Table225[[#This Row],[Daily Points]]="",NA(),Table225[[#This Row],[Daily Points]]/Table225[[#This Row],[Daily Points Possible]]) -> 
E30: =IF(Table225[[#This Row],[Daily Points]]="",NA(),Table225[[#This Row],[Daily Points]]/Table225[[#This Row],[Daily Points Possible]]) -> 
E31: =IF(Table225[[#This Row],[Daily Points]]="",NA(),Table225[[#This Row],[Daily Points]]/Table225[[#This Row],[Daily Points Possible]]) -> 
E32: =IF(Table225[[#This Row],[Daily Points]]="",NA(),Table225[[#This Row],[Daily Points]]/Table225[[#This Row],[Daily Points Possible]]) -> 
E33: =IF(Table225[[#This Row],[Daily Points]]="",NA(),Table225[[#This Row],[Daily Points]]/Table225[[#This Row],[Daily Points Possible]]) ->  | F33: week avg | G33: =AVERAGEIF(E29:E33,"<>#N/A") -> 
E34: =IF(Table225[[#This Row],[Daily Points]]="",NA(),Table225[[#This Row],[Daily Points]]/Table225[[#This Row],[Daily Points Possible]]) -> 
E35: =IF(Table225[[#This Row],[Daily Points]]="",NA(),Table225[[#This Row],[Daily Points]]/Table225[[#This Row],[Daily Points Possible]]) -> 
E36: =IF(Table225[[#This Row],[Daily Points]]="",NA(),Table225[[#This Row],[Daily Points]]/Table225[[#This Row],[Daily Points Possible]]) -> 
E37: =IF(Table225[[#This Row],[Daily Points]]="",NA(),Table225[[#This Row],[Daily Points]]/Table225[[#This Row],[Daily Points Possible]]) -> 
E38: =IF(Table225[[#This Row],[Daily Points]]="",NA(),Table225[[#This Row],[Daily Points]]/Table225[[#This Row],[Daily Points Possible]]) ->  | F38: week avg | G38: =AVERAGEIF(E34:E38,"<>#N/A") -> 
E39: =IF(Table225[[#This Row],[Daily Points]]="",NA(),Table225[[#This Row],[Daily Points]]/Table225[[#This Row],[Daily Points Possible]]) -> 
E40: =IF(Table225[[#This Row],[Daily Points]]="",NA(),Table225[[#This Row],[Daily Points]]/Table225[[#This Row],[Daily Points Possible]]) -> 
E41: =IF(Table225[[#This Row],[Daily Points]]="",NA(),Table225[[#This Row],[Daily Points]]/Table225[[#This Row],[Daily Points Possible]]) -> 
E42: =IF(Table225[[#This Row],[Daily Points]]="",NA(),Table225[[#This Row],[Daily Points]]/Table225[[#This Row],[Daily Points Possible]]) -> 
E43: =IF(Table225[[#This Row],[Daily Points]]="",NA(),Table225[[#This Row],[Daily Points]]/Table225[[#This Row],[Daily Points Possible]]) ->  | F43: week avg | G43: =AVERAGEIF(E39:E43,"<>#N/A") -> 
E44: =IF(Table225[[#This Row],[Daily Points]]="",NA(),Table225[[#This Row],[Daily Points]]/Table225[[#This Row],[Daily Points Possible]]) -> 
E45: =IF(Table225[[#This Row],[Daily Points]]="",NA(),Table225[[#This Row],[Daily Points]]/Table225[[#This Row],[Daily Points Possible]]) -> 
E46: =IF(Table225[[#This Row],[Daily Points]]="",NA(),Table225[[#This Row],[Daily Points]]/Table225[[#This Row],[Daily Points Possible]]) -> 
E47: =IF(Table225[[#This Row],[Daily Points]]="",NA(),Table225[[#This Row],[Daily Points]]/Table225[[#This Row],[Daily Points Possible]]) -> 
E48: =IF(Table225[[#This Row],[Daily Points]]="",NA(),Table225[[#This Row],[Daily Points]]/Table225[[#This Row],[Daily Points Possible]]) ->  | F48: week avg | G48: =AVERAGEIF(E44:E48,"<>#N/A") -> 
E49: =IF(Table225[[#This Row],[Daily Points]]="",NA(),Table225[[#This Row],[Daily Points]]/Table225[[#This Row],[Daily Points Possible]]) -> 
E50: =IF(Table225[[#This Row],[Daily Points]]="",NA(),Table225[[#This Row],[Daily Points]]/Table225[[#This Row],[Daily Points Possible]]) -> 
E51: =IF(Table225[[#This Row],[Daily Points]]="",NA(),Table225[[#This Row],[Daily Points]]/Table225[[#This Row],[Daily Points Possible]]) -> 
E52: =IF(Table225[[#This Row],[Daily Points]]="",NA(),Table225[[#This Row],[Daily Points]]/Table225[[#This Row],[Daily Points Possible]]) -> 
E53: =IF(Table225[[#This Row],[Daily Points]]="",NA(),Table225[[#This Row],[Daily Points]]/Table225[[#This Row],[Daily Points Possible]]) ->  | F53: week avg | G53: =AVERAGEIF(E49:E53,"<>#N/A") -> 
E54: =IF(Table225[[#This Row],[Daily Points]]="",NA(),Table225[[#This Row],[Daily Points]]/Table225[[#This Row],[Daily Points Possible]]) -> 
E55: =IF(Table225[[#This Row],[Daily Points]]="",NA(),Table225[[#This Row],[Daily Points]]/Table225[[#This Row],[Daily Points Possible]]) -> 
E56: =IF(Table225[[#This Row],[Daily Points]]="",NA(),Table225[[#This Row],[Daily Points]]/Table225[[#This Row],[Daily Points Possible]]) -> 
E57: =IF(Table225[[#This Row],[Daily Points]]="",NA(),Table225[[#This Row],[Daily Points]]/Table225[[#This Row],[Daily Points Possible]]) -> 
E58: =IF(Table225[[#This Row],[Daily Points]]="",NA(),Table225[[#This Row],[Daily Points]]/Table225[[#This Row],[Daily Points Possible]]) ->  | F58: week avg | G58: =AVERAGEIF(E54:E58,"<>#N/A") -> 
E59: =IF(Table225[[#This Row],[Daily Points]]="",NA(),Table225[[#This Row],[Daily Points]]/Table225[[#This Row],[Daily Points Possible]]) -> 
E60: =IF(Table225[[#This Row],[Daily Points]]="",NA(),Table225[[#This Row],[Daily Points]]/Table225[[#This Row],[Daily Points Possible]]) -> 
E61: =IF(Table225[[#This Row],[Daily Points]]="",NA(),Table225[[#This Row],[Daily Points]]/Table225[[#This Row],[Daily Points Possible]]) -> 
E62: =IF(Table225[[#This Row],[Daily Points]]="",NA(),Table225[[#This Row],[Daily Points]]/Table225[[#This Row],[Daily Points Possible]]) -> 
E63: =IF(Table225[[#This Row],[Daily Points]]="",NA(),Table225[[#This Row],[Daily Points]]/Table225[[#This Row],[Daily Points Possible]]) ->  | F63: week avg | G63: =AVERAGEIF(E59:E63,"<>#N/A") -> 
E64: =IF(Table225[[#This Row],[Daily Points]]="",NA(),Table225[[#This Row],[Daily Points]]/Table225[[#This Row],[Daily Points Possible]]) -> 
E65: =IF(Table225[[#This Row],[Daily Points]]="",NA(),Table225[[#This Row],[Daily Points]]/Table225[[#This Row],[Daily Points Possible]]) -> 
E66: =IF(Table225[[#This Row],[Daily Points]]="",NA(),Table225[[#This Row],[Daily Points]]/Table225[[#This Row],[Daily Points Possible]]) -> 
E67: =IF(Table225[[#This Row],[Daily Points]]="",NA(),Table225[[#This Row],[Daily Points]]/Table225[[#This Row],[Daily Points Possible]]) -> 
A68: =IF(A67,WORKDAY(A67,1),"") ->  | E68: =IF(Table225[[#This Row],[Daily Points]]="",NA(),Table225[[#This Row],[Daily Points]]/Table225[[#This Row],[Daily Points Possible]]) ->  | F68: week avg | G68: =AVERAGEIF(E64:E68,"<>#N/A") -> 
E69: =IF(Table225[[#This Row],[Daily Points]]="",NA(),Table225[[#This Row],[Daily Points]]/Table225[[#This Row],[Daily Points Possible]]) -> 
E70: =IF(Table225[[#This Row],[Daily Points]]="",NA(),Table225[[#This Row],[Daily Points]]/Table225[[#This Row],[Daily Points Possible]]) -> 
E71: =IF(Table225[[#This Row],[Daily Points]]="",NA(),Table225[[#This Row],[Daily Points]]/Table225[[#This Row],[Daily Points Possible]]) -> 
E72: =IF(Table225[[#This Row],[Daily Points]]="",NA(),Table225[[#This Row],[Daily Points]]/Table225[[#This Row],[Daily Points Possible]]) -> 
E73: =IF(Table225[[#This Row],[Daily Points]]="",NA(),Table225[[#This Row],[Daily Points]]/Table225[[#This Row],[Daily Points Possible]]) ->  | F73: week avg | G73: =AVERAGEIF(E69:E73,"<>#N/A") -> 
E74: =IF(Table225[[#This Row],[Daily Points]]="",NA(),Table225[[#This Row],[Daily Points]]/Table225[[#This Row],[Daily Points Possible]]) -> 
E75: =IF(Table225[[#This Row],[Daily Points]]="",NA(),Table225[[#This Row],[Daily Points]]/Table225[[#This Row],[Daily Points Possible]]) -> 
E76: =IF(Table225[[#This Row],[Daily Points]]="",NA(),Table225[[#This Row],[Daily Points]]/Table225[[#This Row],[Daily Points Possible]]) -> 
E77: =IF(Table225[[#This Row],[Daily Points]]="",NA(),Table225[[#This Row],[Daily Points]]/Table225[[#This Row],[Daily Points Possible]]) -> 
E78: =IF(Table225[[#This Row],[Daily Points]]="",NA(),Table225[[#This Row],[Daily Points]]/Table225[[#This Row],[Daily Points Possible]]) ->  | F78: week avg | G78: =AVERAGEIF(E74:E78,"<>#N/A") -> 
E79: =IF(Table225[[#This Row],[Daily Points]]="",NA(),Table225[[#This Row],[Daily Points]]/Table225[[#This Row],[Daily Points Possible]]) -> 
E80: =IF(Table225[[#This Row],[Daily Points]]="",NA(),Table225[[#This Row],[Daily Points]]/Table225[[#This Row],[Daily Points Possible]]) -> 
E81: =IF(Table225[[#This Row],[Daily Points]]="",NA(),Table225[[#This Row],[Daily Points]]/Table225[[#This Row],[Daily Points Possible]]) -> 
E82: =IF(Table225[[#This Row],[Daily Points]]="",NA(),Table225[[#This Row],[Daily Points]]/Table225[[#This Row],[Daily Points Possible]]) -> 
E83: =IF(Table225[[#This Row],[Daily Points]]="",NA(),Table225[[#This Row],[Daily Points]]/Table225[[#This Row],[Daily Points Possible]]) ->  | F83: week avg | G83: =AVERAGEIF(E79:E83,"<>#N/A") -> 
E84: =IF(Table225[[#This Row],[Daily Points]]="",NA(),Table225[[#This Row],[Daily Points]]/Table225[[#This Row],[Daily Points Possible]]) -> 
E85: =IF(Table225[[#This Row],[Daily Points]]="",NA(),Table225[[#This Row],[Daily Points]]/Table225[[#This Row],[Daily Points Possible]]) -> 
E86: =IF(Table225[[#This Row],[Daily Points]]="",NA(),Table225[[#This Row],[Daily Points]]/Table225[[#This Row],[Daily Points Possible]]) -> 
E87: =IF(Table225[[#This Row],[Daily Points]]="",NA(),Table225[[#This Row],[Daily Points]]/Table225[[#This Row],[Daily Points Possible]]) -> 
E88: =IF(Table225[[#This Row],[Daily Points]]="",NA(),Table225[[#This Row],[Daily Points]]/Table225[[#This Row],[Daily Points Possible]]) ->  | F88: week avg | G88: =AVERAGEIF(E84:E88,"<>#N/A") -> 
E89: =IF(Table225[[#This Row],[Daily Points]]="",NA(),Table225[[#This Row],[Daily Points]]/Table225[[#This Row],[Daily Points Possible]]) -> 
E90: =IF(Table225[[#This Row],[Daily Points]]="",NA(),Table225[[#This Row],[Daily Points]]/Table225[[#This Row],[Daily Points Possible]]) -> 
E91: =IF(Table225[[#This Row],[Daily Points]]="",NA(),Table225[[#This Row],[Daily Points]]/Table225[[#This Row],[Daily Points Possible]]) -> 
E92: =IF(Table225[[#This Row],[Daily Points]]="",NA(),Table225[[#This Row],[Daily Points]]/Table225[[#This Row],[Daily Points Possible]]) -> 
E93: =IF(Table225[[#This Row],[Daily Points]]="",NA(),Table225[[#This Row],[Daily Points]]/Table225[[#This Row],[Daily Points Possible]]) ->  | F93: week avg | G93: =AVERAGEIF(E89:E93,"<>#N/A") -> 
E94: =IF(Table225[[#This Row],[Daily Points]]="",NA(),Table225[[#This Row],[Daily Points]]/Table225[[#This Row],[Daily Points Possible]]) -> 
E95: =IF(Table225[[#This Row],[Daily Points]]="",NA(),Table225[[#This Row],[Daily Points]]/Table225[[#This Row],[Daily Points Possible]]) -> 
E96: =IF(Table225[[#This Row],[Daily Points]]="",NA(),Table225[[#This Row],[Daily Points]]/Table225[[#This Row],[Daily Points Possible]]) -> 
E97: =IF(Table225[[#This Row],[Daily Points]]="",NA(),Table225[[#This Row],[Daily Points]]/Table225[[#This Row],[Daily Points Possible]]) -> 
E98: =IF(Table225[[#This Row],[Daily Points]]="",NA(),Table225[[#This Row],[Daily Points]]/Table225[[#This Row],[Daily Points Possible]]) ->  | F98: week avg | G98: =AVERAGEIF(E94:E98,"<>#N/A") -> 
E99: =IF(Table225[[#This Row],[Daily Points]]="",NA(),Table225[[#This Row],[Daily Points]]/Table225[[#This Row],[Daily Points Possible]]) -> 
E100: =IF(Table225[[#This Row],[Daily Points]]="",NA(),Table225[[#This Row],[Daily Points]]/Table225[[#This Row],[Daily Points Possible]]) -> 
E101: =IF(Table225[[#This Row],[Daily Points]]="",NA(),Table225[[#This Row],[Daily Points]]/Table225[[#This Row],[Daily Points Possible]]) -> 
E102: =IF(Table225[[#This Row],[Daily Points]]="",NA(),Table225[[#This Row],[Daily Points]]/Table225[[#This Row],[Daily Points Possible]]) -> 
E103: =IF(Table225[[#This Row],[Daily Points]]="",NA(),Table225[[#This Row],[Daily Points]]/Table225[[#This Row],[Daily Points Possible]]) ->  | F103: week avg | G103: =AVERAGEIF(E99:E103,"<>#N/A") -> 
E104: =IF(Table225[[#This Row],[Daily Points]]="",NA(),Table225[[#This Row],[Daily Points]]/Table225[[#This Row],[Daily Points Possible]]) -> 
E105: =IF(Table225[[#This Row],[Daily Points]]="",NA(),Table225[[#This Row],[Daily Points]]/Table225[[#This Row],[Daily Points Possible]]) -> 
E106: =IF(Table225[[#This Row],[Daily Points]]="",NA(),Table225[[#This Row],[Daily Points]]/Table225[[#This Row],[Daily Points Possible]]) -> 
E107: =IF(Table225[[#This Row],[Daily Points]]="",NA(),Table225[[#This Row],[Daily Points]]/Table225[[#This Row],[Daily Points Possible]]) -> 
E108: =IF(Table225[[#This Row],[Daily Points]]="",NA(),Table225[[#This Row],[Daily Points]]/Table225[[#This Row],[Daily Points Possible]]) ->  | F108: week avg | G108: =AVERAGEIF(E104:E108,"<>#N/A") -> 
E109: =IF(Table225[[#This Row],[Daily Points]]="",NA(),Table225[[#This Row],[Daily Points]]/Table225[[#This Row],[Daily Points Possible]]) -> 
E110: =IF(Table225[[#This Row],[Daily Points]]="",NA(),Table225[[#This Row],[Daily Points]]/Table225[[#This Row],[Daily Points Possible]]) -> 
E111: =IF(Table225[[#This Row],[Daily Points]]="",NA(),Table225[[#This Row],[Daily Points]]/Table225[[#This Row],[Daily Points Possible]]) -> 
E112: =IF(Table225[[#This Row],[Daily Points]]="",NA(),Table225[[#This Row],[Daily Points]]/Table225[[#This Row],[Daily Points Possible]]) -> 
E113: =IF(Table225[[#This Row],[Daily Points]]="",NA(),Table225[[#This Row],[Daily Points]]/Table225[[#This Row],[Daily Points Possible]]) ->  | F113: week avg | G113: =AVERAGEIF(E109:E113,"<>#N/A") -> 
E114: =IF(Table225[[#This Row],[Daily Points]]="",NA(),Table225[[#This Row],[Daily Points]]/Table225[[#This Row],[Daily Points Possible]]) -> 
E115: =IF(Table225[[#This Row],[Daily Points]]="",NA(),Table225[[#This Row],[Daily Points]]/Table225[[#This Row],[Daily Points Possible]]) -> 
E116: =IF(Table225[[#This Row],[Daily Points]]="",NA(),Table225[[#This Row],[Daily Points]]/Table225[[#This Row],[Daily Points Possible]]) -> 
E117: =IF(Table225[[#This Row],[Daily Points]]="",NA(),Table225[[#This Row],[Daily Points]]/Table225[[#This Row],[Daily Points Possible]]) -> 
E118: =IF(Table225[[#This Row],[Daily Points]]="",NA(),Table225[[#This Row],[Daily Points]]/Table225[[#This Row],[Daily Points Possible]]) ->  | F118: week avg | G118: =AVERAGEIF(E114:E118,"<>#N/A") -> 
E119: =IF(Table225[[#This Row],[Daily Points]]="",NA(),Table225[[#This Row],[Daily Points]]/Table225[[#This Row],[Daily Points Possible]]) -> 
E120: =IF(Table225[[#This Row],[Daily Points]]="",NA(),Table225[[#This Row],[Daily Points]]/Table225[[#This Row],[Daily Points Possible]]) -> 
E121: =IF(Table225[[#This Row],[Daily Points]]="",NA(),Table225[[#This Row],[Daily Points]]/Table225[[#This Row],[Daily Points Possible]]) -> 
E122: =IF(Table225[[#This Row],[Daily Points]]="",NA(),Table225[[#This Row],[Daily Points]]/Table225[[#This Row],[Daily Points Possible]]) -> 
E123: =IF(Table225[[#This Row],[Daily Points]]="",NA(),Table225[[#This Row],[Daily Points]]/Table225[[#This Row],[Daily Points Possible]]) ->  | F123: week avg | G123: =AVERAGEIF(E119:E123,"<>#N/A") -> 
E124: =IF(Table225[[#This Row],[Daily Points]]="",NA(),Table225[[#This Row],[Daily Points]]/Table225[[#This Row],[Daily Points Possible]]) -> 
E125: =IF(Table225[[#This Row],[Daily Points]]="",NA(),Table225[[#This Row],[Daily Points]]/Table225[[#This Row],[Daily Points Possible]]) -> 
E126: =IF(Table225[[#This Row],[Daily Points]]="",NA(),Table225[[#This Row],[Daily Points]]/Table225[[#This Row],[Daily Points Possible]]) -> 
E127: =IF(Table225[[#This Row],[Daily Points]]="",NA(),Table225[[#This Row],[Daily Points]]/Table225[[#This Row],[Daily Points Possible]]) -> 
E128: =IF(Table225[[#This Row],[Daily Points]]="",NA(),Table225[[#This Row],[Daily Points]]/Table225[[#This Row],[Daily Points Possible]]) ->  | F128: week avg | G128: =AVERAGEIF(E124:E128,"<>#N/A") -> 
E129: =IF(Table225[[#This Row],[Daily Points]]="",NA(),Table225[[#This Row],[Daily Points]]/Table225[[#This Row],[Daily Points Possible]]) -> 
E130: =IF(Table225[[#This Row],[Daily Points]]="",NA(),Table225[[#This Row],[Daily Points]]/Table225[[#This Row],[Daily Points Possible]]) -> 
E131: =IF(Table225[[#This Row],[Daily Points]]="",NA(),Table225[[#This Row],[Daily Points]]/Table225[[#This Row],[Daily Points Possible]]) -> 
A132: =IF(A131,WORKDAY(A131,1),"") ->  | E132: =IF(Table225[[#This Row],[Daily Points]]="",NA(),Table225[[#This Row],[Daily Points]]/Table225[[#This Row],[Daily Points Possible]]) -> 
E133: =IF(Table225[[#This Row],[Daily Points]]="",NA(),Table225[[#This Row],[Daily Points]]/Table225[[#This Row],[Daily Points Possible]]) ->  | F133: week avg | G133: =AVERAGEIF(E129:E133,"<>#N/A") -> 
E134: =IF(Table225[[#This Row],[Daily Points]]="",NA(),Table225[[#This Row],[Daily Points]]/Table225[[#This Row],[Daily Points Possible]]) -> 
E135: =IF(Table225[[#This Row],[Daily Points]]="",NA(),Table225[[#This Row],[Daily Points]]/Table225[[#This Row],[Daily Points Possible]]) -> 
E136: =IF(Table225[[#This Row],[Daily Points]]="",NA(),Table225[[#This Row],[Daily Points]]/Table225[[#This Row],[Daily Points Possible]]) -> 
E137: =IF(Table225[[#This Row],[Daily Points]]="",NA(),Table225[[#This Row],[Daily Points]]/Table225[[#This Row],[Daily Points Possible]]) -> 
E138: =IF(Table225[[#This Row],[Daily Points]]="",NA(),Table225[[#This Row],[Daily Points]]/Table225[[#This Row],[Daily Points Possible]]) ->  | F138: week avg | G138: =AVERAGEIF(E134:E138,"<>#N/A") -> 
E139: =IF(Table225[[#This Row],[Daily Points]]="",NA(),Table225[[#This Row],[Daily Points]]/Table225[[#This Row],[Daily Points Possible]]) -> 
E140: =IF(Table225[[#This Row],[Daily Points]]="",NA(),Table225[[#This Row],[Daily Points]]/Table225[[#This Row],[Daily Points Possible]]) -> 
E141: =IF(Table225[[#This Row],[Daily Points]]="",NA(),Table225[[#This Row],[Daily Points]]/Table225[[#This Row],[Daily Points Possible]]) -> 
E142: =IF(Table225[[#This Row],[Daily Points]]="",NA(),Table225[[#This Row],[Daily Points]]/Table225[[#This Row],[Daily Points Possible]]) -> 
E143: =IF(Table225[[#This Row],[Daily Points]]="",NA(),Table225[[#This Row],[Daily Points]]/Table225[[#This Row],[Daily Points Possible]]) ->  | F143: week avg | G143: =AVERAGEIF(E139:E143,"<>#N/A") -> 
E144: =IF(Table225[[#This Row],[Daily Points]]="",NA(),Table225[[#This Row],[Daily Points]]/Table225[[#This Row],[Daily Points Possible]]) -> 
E145: =IF(Table225[[#This Row],[Daily Points]]="",NA(),Table225[[#This Row],[Daily Points]]/Table225[[#This Row],[Daily Points Possible]]) -> 
E146: =IF(Table225[[#This Row],[Daily Points]]="",NA(),Table225[[#This Row],[Daily Points]]/Table225[[#This Row],[Daily Points Possible]]) -> 
E147: =IF(Table225[[#This Row],[Daily Points]]="",NA(),Table225[[#This Row],[Daily Points]]/Table225[[#This Row],[Daily Points Possible]]) -> 
E148: =IF(Table225[[#This Row],[Daily Points]]="",NA(),Table225[[#This Row],[Daily Points]]/Table225[[#This Row],[Daily Points Possible]]) ->  | F148: week avg | G148: =AVERAGEIF(E144:E148,"<>#N/A") -> 
E149: =IF(Table225[[#This Row],[Daily Points]]="",NA(),Table225[[#This Row],[Daily Points]]/Table225[[#This Row],[Daily Points Possible]]) -> 
E150: =IF(Table225[[#This Row],[Daily Points]]="",NA(),Table225[[#This Row],[Daily Points]]/Table225[[#This Row],[Daily Points Possible]]) -> 
E151: =IF(Table225[[#This Row],[Daily Points]]="",NA(),Table225[[#This Row],[Daily Points]]/Table225[[#This Row],[Daily Points Possible]]) -> 
E152: =IF(Table225[[#This Row],[Daily Points]]="",NA(),Table225[[#This Row],[Daily Points]]/Table225[[#This Row],[Daily Points Possible]]) -> 
E153: =IF(Table225[[#This Row],[Daily Points]]="",NA(),Table225[[#This Row],[Daily Points]]/Table225[[#This Row],[Daily Points Possible]]) ->  | F153: week avg | G153: =AVERAGEIF(E149:E153,"<>#N/A") -> 
E154: =IF(Table225[[#This Row],[Daily Points]]="",NA(),Table225[[#This Row],[Daily Points]]/Table225[[#This Row],[Daily Points Possible]]) -> 
E155: =IF(Table225[[#This Row],[Daily Points]]="",NA(),Table225[[#This Row],[Daily Points]]/Table225[[#This Row],[Daily Points Possible]]) -> 
E156: =IF(Table225[[#This Row],[Daily Points]]="",NA(),Table225[[#This Row],[Daily Points]]/Table225[[#This Row],[Daily Points Possible]]) -> 
E157: =IF(Table225[[#This Row],[Daily Points]]="",NA(),Table225[[#This Row],[Daily Points]]/Table225[[#This Row],[Daily Points Possible]]) -> 
E158: =IF(Table225[[#This Row],[Daily Points]]="",NA(),Table225[[#This Row],[Daily Points]]/Table225[[#This Row],[Daily Points Possible]]) ->  | F158: week avg | G158: =AVERAGEIF(E154:E158,"<>#N/A") -> 
E159: =IF(Table225[[#This Row],[Daily Points]]="",NA(),Table225[[#This Row],[Daily Points]]/Table225[[#This Row],[Daily Points Possible]]) -> 
E160: =IF(Table225[[#This Row],[Daily Points]]="",NA(),Table225[[#This Row],[Daily Points]]/Table225[[#This Row],[Daily Points Possible]]) -> 
E161: =IF(Table225[[#This Row],[Daily Points]]="",NA(),Table225[[#This Row],[Daily Points]]/Table225[[#This Row],[Daily Points Possible]]) -> 
E162: =IF(Table225[[#This Row],[Daily Points]]="",NA(),Table225[[#This Row],[Daily Points]]/Table225[[#This Row],[Daily Points Possible]]) -> 
E163: =IF(Table225[[#This Row],[Daily Points]]="",NA(),Table225[[#This Row],[Daily Points]]/Table225[[#This Row],[Daily Points Possible]]) ->  | F163: week avg | G163: =AVERAGEIF(E159:E163,"<>#N/A") -> 
E164: =IF(Table225[[#This Row],[Daily Points]]="",NA(),Table225[[#This Row],[Daily Points]]/Table225[[#This Row],[Daily Points Possible]]) -> 
E165: =IF(Table225[[#This Row],[Daily Points]]="",NA(),Table225[[#This Row],[Daily Points]]/Table225[[#This Row],[Daily Points Possible]]) -> 
E166: =IF(Table225[[#This Row],[Daily Points]]="",NA(),Table225[[#This Row],[Daily Points]]/Table225[[#This Row],[Daily Points Possible]]) -> 
E167: =IF(Table225[[#This Row],[Daily Points]]="",NA(),Table225[[#This Row],[Daily Points]]/Table225[[#This Row],[Daily Points Possible]]) -> 
E168: =IF(Table225[[#This Row],[Daily Points]]="",NA(),Table225[[#This Row],[Daily Points]]/Table225[[#This Row],[Daily Points Possible]]) ->  | F168: week avg | G168: =AVERAGEIF(E164:E168,"<>#N/A") -> 
E169: =IF(Table225[[#This Row],[Daily Points]]="",NA(),Table225[[#This Row],[Daily Points]]/Table225[[#This Row],[Daily Points Possible]]) -> 
E170: =IF(Table225[[#This Row],[Daily Points]]="",NA(),Table225[[#This Row],[Daily Points]]/Table225[[#This Row],[Daily Points Possible]]) -> 
E171: =IF(Table225[[#This Row],[Daily Points]]="",NA(),Table225[[#This Row],[Daily Points]]/Table225[[#This Row],[Daily Points Possible]]) -> 
E172: =IF(Table225[[#This Row],[Daily Points]]="",NA(),Table225[[#This Row],[Daily Points]]/Table225[[#This Row],[Daily Points Possible]]) -> 
E173: =IF(Table225[[#This Row],[Daily Points]]="",NA(),Table225[[#This Row],[Daily Points]]/Table225[[#This Row],[Daily Points Possible]]) ->  | F173: week avg | G173: =AVERAGEIF(E169:E173,"<>#N/A") -> 
E174: =IF(Table225[[#This Row],[Daily Points]]="",NA(),Table225[[#This Row],[Daily Points]]/Table225[[#This Row],[Daily Points Possible]]) -> 
E175: =IF(Table225[[#This Row],[Daily Points]]="",NA(),Table225[[#This Row],[Daily Points]]/Table225[[#This Row],[Daily Points Possible]]) -> 
E176: =IF(Table225[[#This Row],[Daily Points]]="",NA(),Table225[[#This Row],[Daily Points]]/Table225[[#This Row],[Daily Points Possible]]) -> 
E177: =IF(Table225[[#This Row],[Daily Points]]="",NA(),Table225[[#This Row],[Daily Points]]/Table225[[#This Row],[Daily Points Possible]]) -> 
E178: =IF(Table225[[#This Row],[Daily Points]]="",NA(),Table225[[#This Row],[Daily Points]]/Table225[[#This Row],[Daily Points Possible]]) ->  | F178: week avg | G178: =AVERAGEIF(E174:E178,"<>#N/A") -> 
E179: =IF(Table225[[#This Row],[Daily Points]]="",NA(),Table225[[#This Row],[Daily Points]]/Table225[[#This Row],[Daily Points Possible]]) -> 
E180: =IF(Table225[[#This Row],[Daily Points]]="",NA(),Table225[[#This Row],[Daily Points]]/Table225[[#This Row],[Daily Points Possible]]) -> 
E181: =IF(Table225[[#This Row],[Daily Points]]="",NA(),Table225[[#This Row],[Daily Points]]/Table225[[#This Row],[Daily Points Possible]]) -> 
E182: =IF(Table225[[#This Row],[Daily Points]]="",NA(),Table225[[#This Row],[Daily Points]]/Table225[[#This Row],[Daily Points Possible]]) -> 
E183: =IF(Table225[[#This Row],[Daily Points]]="",NA(),Table225[[#This Row],[Daily Points]]/Table225[[#This Row],[Daily Points Possible]]) ->  | F183: week avg | G183: =AVERAGEIF(E179:E183,"<>#N/A") -> 
E184: =IF(Table225[[#This Row],[Daily Points]]="",NA(),Table225[[#This Row],[Daily Points]]/Table225[[#This Row],[Daily Points Possible]]) -> 
E185: =IF(Table225[[#This Row],[Daily Points]]="",NA(),Table225[[#This Row],[Daily Points]]/Table225[[#This Row],[Daily Points Possible]]) -> 
E186: =IF(Table225[[#This Row],[Daily Points]]="",NA(),Table225[[#This Row],[Daily Points]]/Table225[[#This Row],[Daily Points Possible]]) -> 
E187: =IF(Table225[[#This Row],[Daily Points]]="",NA(),Table225[[#This Row],[Daily Points]]/Table225[[#This Row],[Daily Points Possible]]) -> 
E188: =IF(Table225[[#This Row],[Daily Points]]="",NA(),Table225[[#This Row],[Daily Points]]/Table225[[#This Row],[Daily Points Possible]]) ->  | F188: week avg | G188: =AVERAGEIF(E184:E188,"<>#N/A") -> 
E189: =IF(Table225[[#This Row],[Daily Points]]="",NA(),Table225[[#This Row],[Daily Points]]/Table225[[#This Row],[Daily Points Possible]]) -> 
E190: =IF(Table225[[#This Row],[Daily Points]]="",NA(),Table225[[#This Row],[Daily Points]]/Table225[[#This Row],[Daily Points Possible]]) -> 
E191: =IF(Table225[[#This Row],[Daily Points]]="",NA(),Table225[[#This Row],[Daily Points]]/Table225[[#This Row],[Daily Points Possible]]) -> 
E192: =IF(Table225[[#This Row],[Daily Points]]="",NA(),Table225[[#This Row],[Daily Points]]/Table225[[#This Row],[Daily Points Possible]]) -> 
E193: =IF(Table225[[#This Row],[Daily Points]]="",NA(),Table225[[#This Row],[Daily Points]]/Table225[[#This Row],[Daily Points Possible]]) ->  | F193: week avg | G193: =AVERAGEIF(E189:E193,"<>#N/A") -> 
E194: =IF(Table225[[#This Row],[Daily Points]]="",NA(),Table225[[#This Row],[Daily Points]]/Table225[[#This Row],[Daily Points Possible]]) -> 
E195: =IF(Table225[[#This Row],[Daily Points]]="",NA(),Table225[[#This Row],[Daily Points]]/Table225[[#This Row],[Daily Points Possible]]) -> 
A196: =IF(A195,WORKDAY(A195,1),"") ->  | E196: =IF(Table225[[#This Row],[Daily Points]]="",NA(),Table225[[#This Row],[Daily Points]]/Table225[[#This Row],[Daily Points Possible]]) -> 
E197: =IF(Table225[[#This Row],[Daily Points]]="",NA(),Table225[[#This Row],[Daily Points]]/Table225[[#This Row],[Daily Points Possible]]) -> 
E198: =IF(Table225[[#This Row],[Daily Points]]="",NA(),Table225[[#This Row],[Daily Points]]/Table225[[#This Row],[Daily Points Possible]]) ->  | F198: week avg | G198: =AVERAGEIF(E194:E198,"<>#N/A") -> 
E199: =IF(Table225[[#This Row],[Daily Points]]="",NA(),Table225[[#This Row],[Daily Points]]/Table225[[#This Row],[Daily Points Possible]]) -> 
E200: =IF(Table225[[#This Row],[Daily Points]]="",NA(),Table225[[#This Row],[Daily Points]]/Table225[[#This Row],[Daily Points Possible]]) -> 
... 23 more rows

Sheet Student4
F1: GOAL
A2: =StudentInfo!B8 -> Mike Norvel | F2: =StudentInfo!AI8 -> 0.7
A3: Date | B3: Notes | C3: Daily Points Possible | D3: Daily Points | E3: Daily Percent | F3: Avg for Last 10 Days | G3: =AVERAGE(N(OFFSET(E4,LARGE(IF(ISNUMBER(E4:E223),ROW(E4:E223)-ROW(E4)),ROW(1:10)),0))) -> 0.46 | P3: Semester 1
A4: 2018-10-15 | E4: =IF(Table226[[#This Row],[Daily Points]]="",NA(),Table226[[#This Row],[Daily Points]]/Table226[[#This Row],[Daily Points Possible]]) -> 
A5: =IF(A4,WORKDAY(A4,1),"") -> 2018-10-16 | E5: =IF(Table226[[#This Row],[Daily Points]]="",NA(),Table226[[#This Row],[Daily Points]]/Table226[[#This Row],[Daily Points Possible]]) -> 
A6: =IF(A5,WORKDAY(A5,1),"") -> 2018-10-17 | E6: =IF(Table226[[#This Row],[Daily Points]]="",NA(),Table226[[#This Row],[Daily Points]]/Table226[[#This Row],[Daily Points Possible]]) -> 
A7: =IF(A6,WORKDAY(A6,1),"") -> 2018-10-18 | B7: Int. 1 start | C7: 10 | D7: 3 | E7: =IF(Table226[[#This Row],[Daily Points]]="",NA(),Table226[[#This Row],[Daily Points]]/Table226[[#This Row],[Daily Points Possible]]) -> 0.3
A8: 2018-10-19 | C8: 10 | D8: 4 | E8: =IF(Table226[[#This Row],[Daily Points]]="",NA(),Table226[[#This Row],[Daily Points]]/Table226[[#This Row],[Daily Points Possible]]) -> 0.4 | F8: week avg | G8: =AVERAGEIF(E4:E8,"<>#N/A") -> 0.35
A9: 2018-10-22 | C9: 10 | D9: 3 | E9: =IF(Table226[[#This Row],[Daily Points]]="",NA(),Table226[[#This Row],[Daily Points]]/Table226[[#This Row],[Daily Points Possible]]) -> 0.3
A10: 2018-10-23 | C10: 10 | D10: 3 | E10: =IF(Table226[[#This Row],[Daily Points]]="",NA(),Table226[[#This Row],[Daily Points]]/Table226[[#This Row],[Daily Points Possible]]) -> 0.3
A11: 2018-10-24 | C11: 10 | D11: 3 | E11: =IF(Table226[[#This Row],[Daily Points]]="",NA(),Table226[[#This Row],[Daily Points]]/Table226[[#This Row],[Daily Points Possible]]) -> 0.3
A12: 2018-10-25 | C12: 10 | D12: 4 | E12: =IF(Table226[[#This Row],[Daily Points]]="",NA(),Table226[[#This Row],[Daily Points]]/Table226[[#This Row],[Daily Points Possible]]) -> 0.4
A13: 2018-10-26 | C13: 10 | D13: 3 | E13: =IF(Table226[[#This Row],[Daily Points]]="",NA(),Table226[[#This Row],[Daily Points]]/Table226[[#This Row],[Daily Points Possible]]) -> 0.3 | F13: week avg | G13: =AVERAGEIF(E9:E13,"<>#N/A") -> 0.32
A14: 2018-10-29 | C14: 10 | D14: 3 | E14: =IF(Table226[[#This Row],[Daily Points]]="",NA(),Table226[[#This Row],[Daily Points]]/Table226[[#This Row],[Daily Points Possible]]) -> 0.3
A15: 2018-10-30 | C15: 10 | D15: 4 | E15: =IF(Table226[[#This Row],[Daily Points]]="",NA(),Table226[[#This Row],[Daily Points]]/Table226[[#This Row],[Daily Points Possible]]) -> 0.4
A16: 2018-10-31 | C16: 10 | D16: 3 | E16: =IF(Table226[[#This Row],[Daily Points]]="",NA(),Table226[[#This Row],[Daily Points]]/Table226[[#This Row],[Daily Points Possible]]) -> 0.3
A17: 2018-11-01 | B17: Int. 1 end | C17: 10 | D17: 3 | E17: =IF(Table226[[#This Row],[Daily Points]]="",NA(),Table226[[#This Row],[Daily Points]]/Table226[[#This Row],[Daily Points Possible]]) -> 0.3
A18: 2018-11-02 | B18: Int. 2 start | C18: 10 | D18: 4 | E18: =IF(Table226[[#This Row],[Daily Points]]="",NA(),Table226[[#This Row],[Daily Points]]/Table226[[#This Row],[Daily Points Possible]]) -> 0.4 | F18: week avg | G18: =AVERAGEIF(E14:E18,"<>#N/A") -> 0.34
A19: 2018-11-05 | C19: 10 | D19: 4 | E19: =IF(Table226[[#This Row],[Daily Points]]="",NA(),Table226[[#This Row],[Daily Points]]/Table226[[#This Row],[Daily Points Possible]]) -> 0.4
A20: 2018-11-06 | C20: 10 | D20: 4 | E20: =IF(Table226[[#This Row],[Daily Points]]="",NA(),Table226[[#This Row],[Daily Points]]/Table226[[#This Row],[Daily Points Possible]]) -> 0.4
A21: 2018-11-07 | C21: 10 | D21: 4 | E21: =IF(Table226[[#This Row],[Daily Points]]="",NA(),Table226[[#This Row],[Daily Points]]/Table226[[#This Row],[Daily Points Possible]]) -> 0.4
A22: 2018-11-08 | C22: 10 | D22: 4 | E22: =IF(Table226[[#This Row],[Daily Points]]="",NA(),Table226[[#This Row],[Daily Points]]/Table226[[#This Row],[Daily Points Possible]]) -> 0.4 | P22: Semester 2
A23: 2018-11-09 | C23: 10 | D23: 4 | E23: =IF(Table226[[#This Row],[Daily Points]]="",NA(),Table226[[#This Row],[Daily Points]]/Table226[[#This Row],[Daily Points Possible]]) -> 0.4 | F23: week avg | G23: =AVERAGEIF(E19:E23,"<>#N/A") -> 0.4
A24: 2018-11-12 | C24: 10 | D24: 4 | E24: =IF(Table226[[#This Row],[Daily Points]]="",NA(),Table226[[#This Row],[Daily Points]]/Table226[[#This Row],[Daily Points Possible]]) -> 0.4
A25: 2018-11-13 | C25: 10 | D25: 4 | E25: =IF(Table226[[#This Row],[Daily Points]]="",NA(),Table226[[#This Row],[Daily Points]]/Table226[[#This Row],[Daily Points Possible]]) -> 0.4
A26: 2018-11-14 | C26: 10 | D26: 4 | E26: =IF(Table226[[#This Row],[Daily Points]]="",NA(),Table226[[#This Row],[Daily Points]]/Table226[[#This Row],[Daily Points Possible]]) -> 0.4
A27: 2018-11-15 | C27: 10 | D27: 4 | E27: =IF(Table226[[#This Row],[Daily Points]]="",NA(),Table226[[#This Row],[Daily Points]]/Table226[[#This Row],[Daily Points Possible]]) -> 0.4
A28: 2018-11-16 | B28: Int. 2 end | C28: 10 | D28: 4 | E28: =IF(Table226[[#This Row],[Daily Points]]="",NA(),Table226[[#This Row],[Daily Points]]/Table226[[#This Row],[Daily Points Possible]]) -> 0.4 | F28: week avg | G28: =AVERAGEIF(E24:E28,"<>#N/A") -> 0.4
A29: 2018-11-19 | B29: Int. 3 start | C29: 10 | D29: 6 | E29: =IF(Table226[[#This Row],[Daily Points]]="",NA(),Table226[[#This Row],[Daily Points]]/Table226[[#This Row],[Daily Points Possible]]) -> 0.6
A30: 2018-11-20 | C30: 10 | D30: 6 | E30: =IF(Table226[[#This Row],[Daily Points]]="",NA(),Table226[[#This Row],[Daily Points]]/Table226[[#This Row],[Daily Points Possible]]) -> 0.6
A31: 2018-11-21 | C31: 10 | D31: 5 | E31: =IF(Table226[[#This Row],[Daily Points]]="",NA(),Table226[[#This Row],[Daily Points]]/Table226[[#This Row],[Daily Points Possible]]) -> 0.5
A32: 2018-11-22 | C32: 10 | D32: 6 | E32: =IF(Table226[[#This Row],[Daily Points]]="",NA(),Table226[[#This Row],[Daily Points]]/Table226[[#This Row],[Daily Points Possible]]) -> 0.6
A33: 2018-11-23 | C33: 10 | D33: 5 | E33: =IF(Table226[[#This Row],[Daily Points]]="",NA(),Table226[[#This Row],[Daily Points]]/Table226[[#This Row],[Daily Points Possible]]) -> 0.5 | F33: week avg | G33: =AVERAGEIF(E29:E33,"<>#N/A") -> 0.56
A34: 2018-11-26 | C34: 10 | D34: 5 | E34: =IF(Table226[[#This Row],[Daily Points]]="",NA(),Table226[[#This Row],[Daily Points]]/Table226[[#This Row],[Daily Points Possible]]) -> 0.5
A35: 2018-11-27 | C35: 10 | D35: 5 | E35: =IF(Table226[[#This Row],[Daily Points]]="",NA(),Table226[[#This Row],[Daily Points]]/Table226[[#This Row],[Daily Points Possible]]) -> 0.5
A36: 2018-11-28 | C36: 10 | D36: 5 | E36: =IF(Table226[[#This Row],[Daily Points]]="",NA(),Table226[[#This Row],[Daily Points]]/Table226[[#This Row],[Daily Points Possible]]) -> 0.5
A37: 2018-11-29 | C37: 10 | D37: 5 | E37: =IF(Table226[[#This Row],[Daily Points]]="",NA(),Table226[[#This Row],[Daily Points]]/Table226[[#This Row],[Daily Points Possible]]) -> 0.5
A38: 2018-11-30 | C38: 10 | D38: 5 | E38: =IF(Table226[[#This Row],[Daily Points]]="",NA(),Table226[[#This Row],[Daily Points]]/Table226[[#This Row],[Daily Points Possible]]) -> 0.5 | F38: week avg | G38: =AVERAGEIF(E34:E38,"<>#N/A") -> 0.5
A39: 2018-12-03 | C39: 10 | D39: 5 | E39: =IF(Table226[[#This Row],[Daily Points]]="",NA(),Table226[[#This Row],[Daily Points]]/Table226[[#This Row],[Daily Points Possible]]) -> 0.5
A40: 2018-12-04 | C40: 10 | D40: 5 | E40: =IF(Table226[[#This Row],[Daily Points]]="",NA(),Table226[[#This Row],[Daily Points]]/Table226[[#This Row],[Daily Points Possible]]) -> 0.5
A41: 2018-12-05 | C41: 10 | D41: 5 | E41: =IF(Table226[[#This Row],[Daily Points]]="",NA(),Table226[[#This Row],[Daily Points]]/Table226[[#This Row],[Daily Points Possible]]) -> 0.5
A42: 2018-12-06 | C42: 10 | D42: 5 | E42: =IF(Table226[[#This Row],[Daily Points]]="",NA(),Table226[[#This Row],[Daily Points]]/Table226[[#This Row],[Daily Points Possible]]) -> 0.5
A43: 2018-12-07 | C43: 10 | D43: 5 | E43: =IF(Table226[[#This Row],[Daily Points]]="",NA(),Table226[[#This Row],[Daily Points]]/Table226[[#This Row],[Daily Points Possible]]) -> 0.5 | F43: week avg | G43: =AVERAGEIF(E39:E43,"<>#N/A") -> 0.5
A44: 2018-12-10 | B44: Int. 3 end | C44: 10 | D44: 5 | E44: =IF(Table226[[#This Row],[Daily Points]]="",NA(),Table226[[#This Row],[Daily Points]]/Table226[[#This Row],[Daily Points Possible]]) -> 0.5
A45: 2018-12-11 | B45: Int. 4 start | C45: 10 | D45: 6 | E45: =IF(Table226[[#This Row],[Daily Points]]="",NA(),Table226[[#This Row],[Daily Points]]/Table226[[#This Row],[Daily Points Possible]]) -> 0.6
A46: 2018-12-12 | C46: 10 | D46: 5 | E46: =IF(Table226[[#This Row],[Daily Points]]="",NA(),Table226[[#This Row],[Daily Points]]/Table226[[#This Row],[Daily Points Possible]]) -> 0.5
A47: 2018-12-13 | C47: 10 | D47: 6 | E47: =IF(Table226[[#This Row],[Daily Points]]="",NA(),Table226[[#This Row],[Daily Points]]/Table226[[#This Row],[Daily Points Possible]]) -> 0.6
A48: 2018-12-14 | C48: 10 | D48: 6 | E48: =IF(Table226[[#This Row],[Daily Points]]="",NA(),Table226[[#This Row],[Daily Points]]/Table226[[#This Row],[Daily Points Possible]]) -> 0.6 | F48: week avg | G48: =AVERAGEIF(E44:E48,"<>#N/A") -> 0.56
A49: 2018-12-17 | C49: 10 | D49: 6 | E49: =IF(Table226[[#This Row],[Daily Points]]="",NA(),Table226[[#This Row],[Daily Points]]/Table226[[#This Row],[Daily Points Possible]]) -> 0.6
A50: 2018-12-18 | C50: 10 | D50: 5 | E50: =IF(Table226[[#This Row],[Daily Points]]="",NA(),Table226[[#This Row],[Daily Points]]/Table226[[#This Row],[Daily Points Possible]]) -> 0.5
A51: 2018-12-19 | C51: 10 | D51: 6 | E51: =IF(Table226[[#This Row],[Daily Points]]="",NA(),Table226[[#This Row],[Daily Points]]/Table226[[#This Row],[Daily Points Possible]]) -> 0.6
A52: 2018-12-20 | E52: =IF(Table226[[#This Row],[Daily Points]]="",NA(),Table226[[#This Row],[Daily Points]]/Table226[[#This Row],[Daily Points Possible]]) -> 
A53: 2018-12-21 | E53: =IF(Table226[[#This Row],[Daily Points]]="",NA(),Table226[[#This Row],[Daily Points]]/Table226[[#This Row],[Daily Points Possible]]) ->  | F53: week avg | G53: =AVERAGEIF(E49:E53,"<>#N/A") -> 0.5666666667
A54: 2018-12-24 | E54: =IF(Table226[[#This Row],[Daily Points]]="",NA(),Table226[[#This Row],[Daily Points]]/Table226[[#This Row],[Daily Points Possible]]) -> 
A55: 2018-12-25 | E55: =IF(Table226[[#This Row],[Daily Points]]="",NA(),Table226[[#This Row],[Daily Points]]/Table226[[#This Row],[Daily Points Possible]]) -> 
A56: 2018-12-26 | E56: =IF(Table226[[#This Row],[Daily Points]]="",NA(),Table226[[#This Row],[Daily Points]]/Table226[[#This Row],[Daily Points Possible]]) -> 
A57: 2018-12-27 | E57: =IF(Table226[[#This Row],[Daily Points]]="",NA(),Table226[[#This Row],[Daily Points]]/Table226[[#This Row],[Daily Points Possible]]) -> 
A58: 2018-12-28 | E58: =IF(Table226[[#This Row],[Daily Points]]="",NA(),Table226[[#This Row],[Daily Points]]/Table226[[#This Row],[Daily Points Possible]]) ->  | F58: week avg | G58: =AVERAGEIF(E54:E58,"<>#N/A") -> 
A59: 2018-12-31 | E59: =IF(Table226[[#This Row],[Daily Points]]="",NA(),Table226[[#This Row],[Daily Points]]/Table226[[#This Row],[Daily Points Possible]]) -> 
A60: 2019-01-01 | E60: =IF(Table226[[#This Row],[Daily Points]]="",NA(),Table226[[#This Row],[Daily Points]]/Table226[[#This Row],[Daily Points Possible]]) -> 
A61: 2019-01-02 | E61: =IF(Table226[[#This Row],[Daily Points]]="",NA(),Table226[[#This Row],[Daily Points]]/Table226[[#This Row],[Daily Points Possible]]) -> 
A62: 2019-01-03 | E62: =IF(Table226[[#This Row],[Daily Points]]="",NA(),Table226[[#This Row],[Daily Points]]/Table226[[#This Row],[Daily Points Possible]]) -> 
A63: 2019-01-04 | C63: 10 | D63: 3 | E63: =IF(Table226[[#This Row],[Daily Points]]="",NA(),Table226[[#This Row],[Daily Points]]/Table226[[#This Row],[Daily Points Possible]]) -> 0.3 | F63: week avg | G63: =AVERAGEIF(E59:E63,"<>#N/A") -> 0.3
A64: 2019-01-07 | C64: 10 | D64: 4 | E64: =IF(Table226[[#This Row],[Daily Points]]="",NA(),Table226[[#This Row],[Daily Points]]/Table226[[#This Row],[Daily Points Possible]]) -> 0.4
A65: 2019-01-08 | C65: 10 | D65: 4 | E65: =IF(Table226[[#This Row],[Daily Points]]="",NA(),Table226[[#This Row],[Daily Points]]/Table226[[#This Row],[Daily Points Possible]]) -> 0.4
A66: 2019-01-09 | C66: 10 | D66: 3 | E66: =IF(Table226[[#This Row],[Daily Points]]="",NA(),Table226[[#This Row],[Daily Points]]/Table226[[#This Row],[Daily Points Possible]]) -> 0.3
A67: 2019-01-10 | C67: 10 | D67: 4 | E67: =IF(Table226[[#This Row],[Daily Points]]="",NA(),Table226[[#This Row],[Daily Points]]/Table226[[#This Row],[Daily Points Possible]]) -> 0.4
A68: =IF(A67,WORKDAY(A67,1),"") -> 2019-01-11 | C68: 10 | D68: 5 | E68: =IF(Table226[[#This Row],[Daily Points]]="",NA(),Table226[[#This Row],[Daily Points]]/Table226[[#This Row],[Daily Points Possible]]) -> 0.5 | F68: week avg | G68: =AVERAGEIF(E64:E68,"<>#N/A") -> 0.4
A69: 2019-01-14 | C69: 10 | D69: 5 | E69: =IF(Table226[[#This Row],[Daily Points]]="",NA(),Table226[[#This Row],[Daily Points]]/Table226[[#This Row],[Daily Points Possible]]) -> 0.5
A70: 2019-01-15 | C70: 10 | D70: 5 | E70: =IF(Table226[[#This Row],[Daily Points]]="",NA(),Table226[[#This Row],[Daily Points]]/Table226[[#This Row],[Daily Points Possible]]) -> 0.5
A71: 2019-01-16 | C71: 10 | D71: 5 | E71: =IF(Table226[[#This Row],[Daily Points]]="",NA(),Table226[[#This Row],[Daily Points]]/Table226[[#This Row],[Daily Points Possible]]) -> 0.5
A72: 2019-01-17 | C72: 10 | D72: 5 | E72: =IF(Table226[[#This Row],[Daily Points]]="",NA(),Table226[[#This Row],[Daily Points]]/Table226[[#This Row],[Daily Points Possible]]) -> 0.5
A73: 2019-01-18 | C73: 10 | D73: 5 | E73: =IF(Table226[[#This Row],[Daily Points]]="",NA(),Table226[[#This Row],[Daily Points]]/Table226[[#This Row],[Daily Points Possible]]) -> 0.5 | F73: week avg | G73: =AVERAGEIF(E69:E73,"<>#N/A") -> 0.5
A74: 2019-01-21 | B74: Int. 4 end | C74: 10 | D74: 5 | E74: =IF(Table226[[#This Row],[Daily Points]]="",NA(),Table226[[#This Row],[Daily Points]]/Table226[[#This Row],[Daily Points Possible]]) -> 0.5
A75: 2019-01-22 | E75: =IF(Table226[[#This Row],[Daily Points]]="",NA(),Table226[[#This Row],[Daily Points]]/Table226[[#This Row],[Daily Points Possible]]) -> 
A76: 2019-01-23 | E76: =IF(Table226[[#This Row],[Daily Points]]="",NA(),Table226[[#This Row],[Daily Points]]/Table226[[#This Row],[Daily Points Possible]]) -> 
A77: 2019-01-24 | E77: =IF(Table226[[#This Row],[Daily Points]]="",NA(),Table226[[#This Row],[Daily Points]]/Table226[[#This Row],[Daily Points Possible]]) -> 
A78: 2019-01-25 | E78: =IF(Table226[[#This Row],[Daily Points]]="",NA(),Table226[[#This Row],[Daily Points]]/Table226[[#This Row],[Daily Points Possible]]) ->  | F78: week avg | G78: =AVERAGEIF(E74:E78,"<>#N/A") -> 0.5
A79: 2019-01-28 | E79: =IF(Table226[[#This Row],[Daily Points]]="",NA(),Table226[[#This Row],[Daily Points]]/Table226[[#This Row],[Daily Points Possible]]) -> 
A80: 2019-01-29 | E80: =IF(Table226[[#This Row],[Daily Points]]="",NA(),Table226[[#This Row],[Daily Points]]/Table226[[#This Row],[Daily Points Possible]]) -> 
A81: 2019-01-30 | E81: =IF(Table226[[#This Row],[Daily Points]]="",NA(),Table226[[#This Row],[Daily Points]]/Table226[[#This Row],[Daily Points Possible]]) -> 
A82: 2019-01-31 | E82: =IF(Table226[[#This Row],[Daily Points]]="",NA(),Table226[[#This Row],[Daily Points]]/Table226[[#This Row],[Daily Points Possible]]) -> 
A83: 2019-02-01 | E83: =IF(Table226[[#This Row],[Daily Points]]="",NA(),Table226[[#This Row],[Daily Points]]/Table226[[#This Row],[Daily Points Possible]]) ->  | F83: week avg | G83: =AVERAGEIF(E79:E83,"<>#N/A") -> 
A84: 2019-02-04 | E84: =IF(Table226[[#This Row],[Daily Points]]="",NA(),Table226[[#This Row],[Daily Points]]/Table226[[#This Row],[Daily Points Possible]]) -> 
A85: 2019-02-05 | E85: =IF(Table226[[#This Row],[Daily Points]]="",NA(),Table226[[#This Row],[Daily Points]]/Table226[[#This Row],[Daily Points Possible]]) -> 
A86: 2019-02-06 | E86: =IF(Table226[[#This Row],[Daily Points]]="",NA(),Table226[[#This Row],[Daily Points]]/Table226[[#This Row],[Daily Points Possible]]) -> 
A87: 2019-02-07 | E87: =IF(Table226[[#This Row],[Daily Points]]="",NA(),Table226[[#This Row],[Daily Points]]/Table226[[#This Row],[Daily Points Possible]]) -> 
A88: 2019-02-08 | E88: =IF(Table226[[#This Row],[Daily Points]]="",NA(),Table226[[#This Row],[Daily Points]]/Table226[[#This Row],[Daily Points Possible]]) ->  | F88: week avg | G88: =AVERAGEIF(E84:E88,"<>#N/A") -> 
A89: 2019-02-11 | E89: =IF(Table226[[#This Row],[Daily Points]]="",NA(),Table226[[#This Row],[Daily Points]]/Table226[[#This Row],[Daily Points Possible]]) -> 
A90: 2019-02-12 | E90: =IF(Table226[[#This Row],[Daily Points]]="",NA(),Table226[[#This Row],[Daily Points]]/Table226[[#This Row],[Daily Points Possible]]) -> 
A91: 2019-02-13 | E91: =IF(Table226[[#This Row],[Daily Points]]="",NA(),Table226[[#This Row],[Daily Points]]/Table226[[#This Row],[Daily Points Possible]]) -> 
A92: 2019-02-14 | E92: =IF(Table226[[#This Row],[Daily Points]]="",NA(),Table226[[#This Row],[Daily Points]]/Table226[[#This Row],[Daily Points Possible]]) -> 
A93: 2019-02-15 | E93: =IF(Table226[[#This Row],[Daily Points]]="",NA(),Table226[[#This Row],[Daily Points]]/Table226[[#This Row],[Daily Points Possible]]) ->  | F93: week avg | G93: =AVERAGEIF(E89:E93,"<>#N/A") -> 
A94: 2019-02-18 | E94: =IF(Table226[[#This Row],[Daily Points]]="",NA(),Table226[[#This Row],[Daily Points]]/Table226[[#This Row],[Daily Points Possible]]) -> 
A95: 2019-02-19 | E95: =IF(Table226[[#This Row],[Daily Points]]="",NA(),Table226[[#This Row],[Daily Points]]/Table226[[#This Row],[Daily Points Possible]]) -> 
A96: 2019-02-20 | E96: =IF(Table226[[#This Row],[Daily Points]]="",NA(),Table226[[#This Row],[Daily Points]]/Table226[[#This Row],[Daily Points Possible]]) -> 
A97: 2019-02-21 | E97: =IF(Table226[[#This Row],[Daily Points]]="",NA(),Table226[[#This Row],[Daily Points]]/Table226[[#This Row],[Daily Points Possible]]) -> 
A98: 2019-02-22 | E98: =IF(Table226[[#This Row],[Daily Points]]="",NA(),Table226[[#This Row],[Daily Points]]/Table226[[#This Row],[Daily Points Possible]]) ->  | F98: week avg | G98: =AVERAGEIF(E94:E98,"<>#N/A") -> 
A99: 2019-02-25 | E99: =IF(Table226[[#This Row],[Daily Points]]="",NA(),Table226[[#This Row],[Daily Points]]/Table226[[#This Row],[Daily Points Possible]]) -> 
A100: 2019-02-26 | E100: =IF(Table226[[#This Row],[Daily Points]]="",NA(),Table226[[#This Row],[Daily Points]]/Table226[[#This Row],[Daily Points Possible]]) -> 
A101: 2019-02-27 | E101: =IF(Table226[[#This Row],[Daily Points]]="",NA(),Table226[[#This Row],[Daily Points]]/Table226[[#This Row],[Daily Points Possible]]) -> 
A102: 2019-02-28 | E102: =IF(Table226[[#This Row],[Daily Points]]="",NA(),Table226[[#This Row],[Daily Points]]/Table226[[#This Row],[Daily Points Possible]]) -> 
A103: 2019-03-01 | E103: =IF(Table226[[#This Row],[Daily Points]]="",NA(),Table226[[#This Row],[Daily Points]]/Table226[[#This Row],[Daily Points Possible]]) ->  | F103: week avg | G103: =AVERAGEIF(E99:E103,"<>#N/A") -> 
A104: 2019-03-04 | E104: =IF(Table226[[#This Row],[Daily Points]]="",NA(),Table226[[#This Row],[Daily Points]]/Table226[[#This Row],[Daily Points Possible]]) -> 
A105: 2019-03-05 | E105: =IF(Table226[[#This Row],[Daily Points]]="",NA(),Table226[[#This Row],[Daily Points]]/Table226[[#This Row],[Daily Points Possible]]) -> 
A106: 2019-03-06 | E106: =IF(Table226[[#This Row],[Daily Points]]="",NA(),Table226[[#This Row],[Daily Points]]/Table226[[#This Row],[Daily Points Possible]]) -> 
A107: 2019-03-07 | E107: =IF(Table226[[#This Row],[Daily Points]]="",NA(),Table226[[#This Row],[Daily Points]]/Table226[[#This Row],[Daily Points Possible]]) -> 
A108: 2019-03-08 | E108: =IF(Table226[[#This Row],[Daily Points]]="",NA(),Table226[[#This Row],[Daily Points]]/Table226[[#This Row],[Daily Points Possible]]) ->  | F108: week avg | G108: =AVERAGEIF(E104:E108,"<>#N/A") -> 
A109: 2019-03-11 | E109: =IF(Table226[[#This Row],[Daily Points]]="",NA(),Table226[[#This Row],[Daily Points]]/Table226[[#This Row],[Daily Points Possible]]) -> 
A110: 2019-03-12 | E110: =IF(Table226[[#This Row],[Daily Points]]="",NA(),Table226[[#This Row],[Daily Points]]/Table226[[#This Row],[Daily Points Possible]]) -> 
A111: 2019-03-13 | E111: =IF(Table226[[#This Row],[Daily Points]]="",NA(),Table226[[#This Row],[Daily Points]]/Table226[[#This Row],[Daily Points Possible]]) -> 
A112: 2019-03-14 | E112: =IF(Table226[[#This Row],[Daily Points]]="",NA(),Table226[[#This Row],[Daily Points]]/Table226[[#This Row],[Daily Points Possible]]) -> 
A113: 2019-03-15 | E113: =IF(Table226[[#This Row],[Daily Points]]="",NA(),Table226[[#This Row],[Daily Points]]/Table226[[#This Row],[Daily Points Possible]]) ->  | F113: week avg | G113: =AVERAGEIF(E109:E113,"<>#N/A") -> 
A114: 2019-03-18 | E114: =IF(Table226[[#This Row],[Daily Points]]="",NA(),Table226[[#This Row],[Daily Points]]/Table226[[#This Row],[Daily Points Possible]]) -> 
A115: 2019-03-19 | E115: =IF(Table226[[#This Row],[Daily Points]]="",NA(),Table226[[#This Row],[Daily Points]]/Table226[[#This Row],[Daily Points Possible]]) -> 
A116: 2019-03-20 | E116: =IF(Table226[[#This Row],[Daily Points]]="",NA(),Table226[[#This Row],[Daily Points]]/Table226[[#This Row],[Daily Points Possible]]) -> 
A117: 2019-03-21 | E117: =IF(Table226[[#This Row],[Daily Points]]="",NA(),Table226[[#This Row],[Daily Points]]/Table226[[#This Row],[Daily Points Possible]]) -> 
A118: 2019-03-22 | E118: =IF(Table226[[#This Row],[Daily Points]]="",NA(),Table226[[#This Row],[Daily Points]]/Table226[[#This Row],[Daily Points Possible]]) ->  | F118: week avg | G118: =AVERAGEIF(E114:E118,"<>#N/A") -> 
A119: 2019-03-25 | E119: =IF(Table226[[#This Row],[Daily Points]]="",NA(),Table226[[#This Row],[Daily Points]]/Table226[[#This Row],[Daily Points Possible]]) -> 
A120: 2019-03-26 | E120: =IF(Table226[[#This Row],[Daily Points]]="",NA(),Table226[[#This Row],[Daily Points]]/Table226[[#This Row],[Daily Points Possible]]) -> 
A121: 2019-03-27 | E121: =IF(Table226[[#This Row],[Daily Points]]="",NA(),Table226[[#This Row],[Daily Points]]/Table226[[#This Row],[Daily Points Possible]]) -> 
A122: 2019-03-28 | E122: =IF(Table226[[#This Row],[Daily Points]]="",NA(),Table226[[#This Row],[Daily Points]]/Table226[[#This Row],[Daily Points Possible]]) -> 
A123: 2019-03-29 | E123: =IF(Table226[[#This Row],[Daily Points]]="",NA(),Table226[[#This Row],[Daily Points]]/Table226[[#This Row],[Daily Points Possible]]) ->  | F123: week avg | G123: =AVERAGEIF(E119:E123,"<>#N/A") -> 
A124: 2019-04-01 | E124: =IF(Table226[[#This Row],[Daily Points]]="",NA(),Table226[[#This Row],[Daily Points]]/Table226[[#This Row],[Daily Points Possible]]) -> 
A125: 2019-04-02 | E125: =IF(Table226[[#This Row],[Daily Points]]="",NA(),Table226[[#This Row],[Daily Points]]/Table226[[#This Row],[Daily Points Possible]]) -> 
A126: 2019-04-03 | E126: =IF(Table226[[#This Row],[Daily Points]]="",NA(),Table226[[#This Row],[Daily Points]]/Table226[[#This Row],[Daily Points Possible]]) -> 
A127: 2019-04-04 | E127: =IF(Table226[[#This Row],[Daily Points]]="",NA(),Table226[[#This Row],[Daily Points]]/Table226[[#This Row],[Daily Points Possible]]) -> 
A128: 2019-04-05 | E128: =IF(Table226[[#This Row],[Daily Points]]="",NA(),Table226[[#This Row],[Daily Points]]/Table226[[#This Row],[Daily Points Possible]]) ->  | F128: week avg | G128: =AVERAGEIF(E124:E128,"<>#N/A") -> 
A129: 2019-04-08 | E129: =IF(Table226[[#This Row],[Daily Points]]="",NA(),Table226[[#This Row],[Daily Points]]/Table226[[#This Row],[Daily Points Possible]]) -> 
A130: 2019-04-09 | E130: =IF(Table226[[#This Row],[Daily Points]]="",NA(),Table226[[#This Row],[Daily Points]]/Table226[[#This Row],[Daily Points Possible]]) -> 
A131: 2019-04-10 | E131: =IF(Table226[[#This Row],[Daily Points]]="",NA(),Table226[[#This Row],[Daily Points]]/Table226[[#This Row],[Daily Points Possible]]) -> 
A132: =IF(A131,WORKDAY(A131,1),"") -> 2019-04-11 | E132: =IF(Table226[[#This Row],[Daily Points]]="",NA(),Table226[[#This Row],[Daily Points]]/Table226[[#This Row],[Daily Points Possible]]) -> 
A133: 2019-04-12 | E133: =IF(Table226[[#This Row],[Daily Points]]="",NA(),Table226[[#This Row],[Daily Points]]/Table226[[#This Row],[Daily Points Possible]]) ->  | F133: week avg | G133: =AVERAGEIF(E129:E133,"<>#N/A") -> 
A134: 2019-04-15 | E134: =IF(Table226[[#This Row],[Daily Points]]="",NA(),Table226[[#This Row],[Daily Points]]/Table226[[#This Row],[Daily Points Possible]]) -> 
A135: 2019-04-16 | E135: =IF(Table226[[#This Row],[Daily Points]]="",NA(),Table226[[#This Row],[Daily Points]]/Table226[[#This Row],[Daily Points Possible]]) -> 
A136: 2019-04-17 | E136: =IF(Table226[[#This Row],[Daily Points]]="",NA(),Table226[[#This Row],[Daily Points]]/Table226[[#This Row],[Daily Points Possible]]) -> 
A137: 2019-04-18 | E137: =IF(Table226[[#This Row],[Daily Points]]="",NA(),Table226[[#This Row],[Daily Points]]/Table226[[#This Row],[Daily Points Possible]]) -> 
A138: 2019-04-19 | E138: =IF(Table226[[#This Row],[Daily Points]]="",NA(),Table226[[#This Row],[Daily Points]]/Table226[[#This Row],[Daily Points Possible]]) ->  | F138: week avg | G138: =AVERAGEIF(E134:E138,"<>#N/A") -> 
A139: 2019-04-22 | E139: =IF(Table226[[#This Row],[Daily Points]]="",NA(),Table226[[#This Row],[Daily Points]]/Table226[[#This Row],[Daily Points Possible]]) -> 
A140: 2019-04-23 | E140: =IF(Table226[[#This Row],[Daily Points]]="",NA(),Table226[[#This Row],[Daily Points]]/Table226[[#This Row],[Daily Points Possible]]) -> 
A141: 2019-04-24 | E141: =IF(Table226[[#This Row],[Daily Points]]="",NA(),Table226[[#This Row],[Daily Points]]/Table226[[#This Row],[Daily Points Possible]]) -> 
A142: 2019-04-25 | E142: =IF(Table226[[#This Row],[Daily Points]]="",NA(),Table226[[#This Row],[Daily Points]]/Table226[[#This Row],[Daily Points Possible]]) -> 
A143: 2019-04-26 | E143: =IF(Table226[[#This Row],[Daily Points]]="",NA(),Table226[[#This Row],[Daily Points]]/Table226[[#This Row],[Daily Points Possible]]) ->  | F143: week avg | G143: =AVERAGEIF(E139:E143,"<>#N/A") -> 
A144: 2019-04-29 | E144: =IF(Table226[[#This Row],[Daily Points]]="",NA(),Table226[[#This Row],[Daily Points]]/Table226[[#This Row],[Daily Points Possible]]) -> 
A145: 2019-04-30 | E145: =IF(Table226[[#This Row],[Daily Points]]="",NA(),Table226[[#This Row],[Daily Points]]/Table226[[#This Row],[Daily Points Possible]]) -> 
A146: 2019-05-01 | E146: =IF(Table226[[#This Row],[Daily Points]]="",NA(),Table226[[#This Row],[Daily Points]]/Table226[[#This Row],[Daily Points Possible]]) -> 
A147: 2019-05-02 | E147: =IF(Table226[[#This Row],[Daily Points]]="",NA(),Table226[[#This Row],[Daily Points]]/Table226[[#This Row],[Daily Points Possible]]) -> 
A148: 2019-05-03 | E148: =IF(Table226[[#This Row],[Daily Points]]="",NA(),Table226[[#This Row],[Daily Points]]/Table226[[#This Row],[Daily Points Possible]]) ->  | F148: week avg | G148: =AVERAGEIF(E144:E148,"<>#N/A") -> 
A149: 2019-05-06 | E149: =IF(Table226[[#This Row],[Daily Points]]="",NA(),Table226[[#This Row],[Daily Points]]/Table226[[#This Row],[Daily Points Possible]]) -> 
A150: 2019-05-07 | E150: =IF(Table226[[#This Row],[Daily Points]]="",NA(),Table226[[#This Row],[Daily Points]]/Table226[[#This Row],[Daily Points Possible]]) -> 
A151: 2019-05-08 | E151: =IF(Table226[[#This Row],[Daily Points]]="",NA(),Table226[[#This Row],[Daily Points]]/Table226[[#This Row],[Daily Points Possible]]) -> 
A152: 2019-05-09 | E152: =IF(Table226[[#This Row],[Daily Points]]="",NA(),Table226[[#This Row],[Daily Points]]/Table226[[#This Row],[Daily Points Possible]]) -> 
A153: 2019-05-10 | E153: =IF(Table226[[#This Row],[Daily Points]]="",NA(),Table226[[#This Row],[Daily Points]]/Table226[[#This Row],[Daily Points Possible]]) ->  | F153: week avg | G153: =AVERAGEIF(E149:E153,"<>#N/A") -> 
A154: 2019-05-13 | E154: =IF(Table226[[#This Row],[Daily Points]]="",NA(),Table226[[#This Row],[Daily Points]]/Table226[[#This Row],[Daily Points Possible]]) -> 
A155: 2019-05-14 | E155: =IF(Table226[[#This Row],[Daily Points]]="",NA(),Table226[[#This Row],[Daily Points]]/Table226[[#This Row],[Daily Points Possible]]) -> 
A156: 2019-05-15 | E156: =IF(Table226[[#This Row],[Daily Points]]="",NA(),Table226[[#This Row],[Daily Points]]/Table226[[#This Row],[Daily Points Possible]]) -> 
A157: 2019-05-16 | E157: =IF(Table226[[#This Row],[Daily Points]]="",NA(),Table226[[#This Row],[Daily Points]]/Table226[[#This Row],[Daily Points Possible]]) -> 
A158: 2019-05-17 | E158: =IF(Table226[[#This Row],[Daily Points]]="",NA(),Table226[[#This Row],[Daily Points]]/Table226[[#This Row],[Daily Points Possible]]) ->  | F158: week avg | G158: =AVERAGEIF(E154:E158,"<>#N/A") -> 
A159: 2019-05-20 | E159: =IF(Table226[[#This Row],[Daily Points]]="",NA(),Table226[[#This Row],[Daily Points]]/Table226[[#This Row],[Daily Points Possible]]) -> 
A160: 2019-05-21 | E160: =IF(Table226[[#This Row],[Daily Points]]="",NA(),Table226[[#This Row],[Daily Points]]/Table226[[#This Row],[Daily Points Possible]]) -> 
A161: 2019-05-22 | E161: =IF(Table226[[#This Row],[Daily Points]]="",NA(),Table226[[#This Row],[Daily Points]]/Table226[[#This Row],[Daily Points Possible]]) -> 
A162: 2019-05-23 | E162: =IF(Table226[[#This Row],[Daily Points]]="",NA(),Table226[[#This Row],[Daily Points]]/Table226[[#This Row],[Daily Points Possible]]) -> 
A163: 2019-05-24 | E163: =IF(Table226[[#This Row],[Daily Points]]="",NA(),Table226[[#This Row],[Daily Points]]/Table226[[#This Row],[Daily Points Possible]]) ->  | F163: week avg | G163: =AVERAGEIF(E159:E163,"<>#N/A") -> 
A164: 2019-05-27 | E164: =IF(Table226[[#This Row],[Daily Points]]="",NA(),Table226[[#This Row],[Daily Points]]/Table226[[#This Row],[Daily Points Possible]]) -> 
A165: 2019-05-28 | E165: =IF(Table226[[#This Row],[Daily Points]]="",NA(),Table226[[#This Row],[Daily Points]]/Table226[[#This Row],[Daily Points Possible]]) -> 
A166: 2019-05-29 | E166: =IF(Table226[[#This Row],[Daily Points]]="",NA(),Table226[[#This Row],[Daily Points]]/Table226[[#This Row],[Daily Points Possible]]) -> 
A167: 2019-05-30 | E167: =IF(Table226[[#This Row],[Daily Points]]="",NA(),Table226[[#This Row],[Daily Points]]/Table226[[#This Row],[Daily Points Possible]]) -> 
A168: 2019-05-31 | E168: =IF(Table226[[#This Row],[Daily Points]]="",NA(),Table226[[#This Row],[Daily Points]]/Table226[[#This Row],[Daily Points Possible]]) ->  | F168: week avg | G168: =AVERAGEIF(E164:E168,"<>#N/A") -> 
A169: 2019-06-03 | E169: =IF(Table226[[#This Row],[Daily Points]]="",NA(),Table226[[#This Row],[Daily Points]]/Table226[[#This Row],[Daily Points Possible]]) -> 
A170: 2019-06-04 | E170: =IF(Table226[[#This Row],[Daily Points]]="",NA(),Table226[[#This Row],[Daily Points]]/Table226[[#This Row],[Daily Points Possible]]) -> 
A171: 2019-06-05 | E171: =IF(Table226[[#This Row],[Daily Points]]="",NA(),Table226[[#This Row],[Daily Points]]/Table226[[#This Row],[Daily Points Possible]]) -> 
A172: 2019-06-06 | E172: =IF(Table226[[#This Row],[Daily Points]]="",NA(),Table226[[#This Row],[Daily Points]]/Table226[[#This Row],[Daily Points Possible]]) -> 
A173: 2019-06-07 | E173: =IF(Table226[[#This Row],[Daily Points]]="",NA(),Table226[[#This Row],[Daily Points]]/Table226[[#This Row],[Daily Points Possible]]) ->  | F173: week avg | G173: =AVERAGEIF(E169:E173,"<>#N/A") -> 
A174: 2019-06-10 | E174: =IF(Table226[[#This Row],[Daily Points]]="",NA(),Table226[[#This Row],[Daily Points]]/Table226[[#This Row],[Daily Points Possible]]) -> 
A175: 2019-06-11 | E175: =IF(Table226[[#This Row],[Daily Points]]="",NA(),Table226[[#This Row],[Daily Points]]/Table226[[#This Row],[Daily Points Possible]]) -> 
A176: 2019-06-12 | E176: =IF(Table226[[#This Row],[Daily Points]]="",NA(),Table226[[#This Row],[Daily Points]]/Table226[[#This Row],[Daily Points Possible]]) -> 
A177: 2019-06-13 | E177: =IF(Table226[[#This Row],[Daily Points]]="",NA(),Table226[[#This Row],[Daily Points]]/Table226[[#This Row],[Daily Points Possible]]) -> 
A178: 2019-06-14 | E178: =IF(Table226[[#This Row],[Daily Points]]="",NA(),Table226[[#This Row],[Daily Points]]/Table226[[#This Row],[Daily Points Possible]]) ->  | F178: week avg | G178: =AVERAGEIF(E174:E178,"<>#N/A") -> 
A179: 2019-06-17 | E179: =IF(Table226[[#This Row],[Daily Points]]="",NA(),Table226[[#This Row],[Daily Points]]/Table226[[#This Row],[Daily Points Possible]]) -> 
A180: 2019-06-18 | E180: =IF(Table226[[#This Row],[Daily Points]]="",NA(),Table226[[#This Row],[Daily Points]]/Table226[[#This Row],[Daily Points Possible]]) -> 
A181: 2019-06-19 | E181: =IF(Table226[[#This Row],[Daily Points]]="",NA(),Table226[[#This Row],[Daily Points]]/Table226[[#This Row],[Daily Points Possible]]) -> 
A182: 2019-06-20 | E182: =IF(Table226[[#This Row],[Daily Points]]="",NA(),Table226[[#This Row],[Daily Points]]/Table226[[#This Row],[Daily Points Possible]]) -> 
A183: 2019-06-21 | E183: =IF(Table226[[#This Row],[Daily Points]]="",NA(),Table226[[#This Row],[Daily Points]]/Table226[[#This Row],[Daily Points Possible]]) ->  | F183: week avg | G183: =AVERAGEIF(E179:E183,"<>#N/A") -> 
A184: 2019-06-24 | E184: =IF(Table226[[#This Row],[Daily Points]]="",NA(),Table226[[#This Row],[Daily Points]]/Table226[[#This Row],[Daily Points Possible]]) -> 
A185: 2019-06-25 | E185: =IF(Table226[[#This Row],[Daily Points]]="",NA(),Table226[[#This Row],[Daily Points]]/Table226[[#This Row],[Daily Points Possible]]) -> 
A186: 2019-06-26 | E186: =IF(Table226[[#This Row],[Daily Points]]="",NA(),Table226[[#This Row],[Daily Points]]/Table226[[#This Row],[Daily Points Possible]]) -> 
A187: 2019-06-27 | E187: =IF(Table226[[#This Row],[Daily Points]]="",NA(),Table226[[#This Row],[Daily Points]]/Table226[[#This Row],[Daily Points Possible]]) -> 
A188: 2019-06-28 | E188: =IF(Table226[[#This Row],[Daily Points]]="",NA(),Table226[[#This Row],[Daily Points]]/Table226[[#This Row],[Daily Points Possible]]) ->  | F188: week avg | G188: =AVERAGEIF(E184:E188,"<>#N/A") -> 
A189: 2019-07-01 | E189: =IF(Table226[[#This Row],[Daily Points]]="",NA(),Table226[[#This Row],[Daily Points]]/Table226[[#This Row],[Daily Points Possible]]) -> 
A190: 2019-07-02 | E190: =IF(Table226[[#This Row],[Daily Points]]="",NA(),Table226[[#This Row],[Daily Points]]/Table226[[#This Row],[Daily Points Possible]]) -> 
A191: 2019-07-03 | E191: =IF(Table226[[#This Row],[Daily Points]]="",NA(),Table226[[#This Row],[Daily Points]]/Table226[[#This Row],[Daily Points Possible]]) -> 
A192: 2019-07-04 | E192: =IF(Table226[[#This Row],[Daily Points]]="",NA(),Table226[[#This Row],[Daily Points]]/Table226[[#This Row],[Daily Points Possible]]) -> 
A193: 2019-07-05 | E193: =IF(Table226[[#This Row],[Daily Points]]="",NA(),Table226[[#This Row],[Daily Points]]/Table226[[#This Row],[Daily Points Possible]]) ->  | F193: week avg | G193: =AVERAGEIF(E189:E193,"<>#N/A") -> 
A194: 2019-07-08 | E194: =IF(Table226[[#This Row],[Daily Points]]="",NA(),Table226[[#This Row],[Daily Points]]/Table226[[#This Row],[Daily Points Possible]]) -> 
A195: 2019-07-09 | E195: =IF(Table226[[#This Row],[Daily Points]]="",NA(),Table226[[#This Row],[Daily Points]]/Table226[[#This Row],[Daily Points Possible]]) -> 
A196: =IF(A195,WORKDAY(A195,1),"") -> 2019-07-10 | E196: =IF(Table226[[#This Row],[Daily Points]]="",NA(),Table226[[#This Row],[Daily Points]]/Table226[[#This Row],[Daily Points Possible]]) -> 
A197: 2019-07-11 | E197: =IF(Table226[[#This Row],[Daily Points]]="",NA(),Table226[[#This Row],[Daily Points]]/Table226[[#This Row],[Daily Points Possible]]) -> 
A198: 2019-07-12 | E198: =IF(Table226[[#This Row],[Daily Points]]="",NA(),Table226[[#This Row],[Daily Points]]/Table226[[#This Row],[Daily Points Possible]]) ->  | F198: week avg | G198: =AVERAGEIF(E194:E198,"<>#N/A") -> 
A199: 2019-07-15 | E199: =IF(Table226[[#This Row],[Daily Points]]="",NA(),Table226[[#This Row],[Daily Points]]/Table226[[#This Row],[Daily Points Possible]]) -> 
A200: 2019-07-16 | E200: =IF(Table226[[#This Row],[Daily Points]]="",NA(),Table226[[#This Row],[Daily Points]]/Table226[[#This Row],[Daily Points Possible]]) -> 
... 23 more rows

Sheet Student5
F1: GOAL
A2: =StudentInfo!B9 -> 0 | F2: =StudentInfo!AI9 -> 0
A3: Date | B3: Notes | C3: Daily Points Possible | D3: Daily Points | E3: Daily Percent | F3: Avg for Last 10 Days | G3: =AVERAGE(N(OFFSET(E4,LARGE(IF(ISNUMBER(E4:E223),ROW(E4:E223)-ROW(E4)),ROW(1:10)),0))) ->  | P3: Semester 1
E4: =IF(Table227[[#This Row],[Daily Points]]="",NA(),Table227[[#This Row],[Daily Points]]/Table227[[#This Row],[Daily Points Possible]]) -> 
A5: =IF(A4,WORKDAY(A4,1),"") ->  | E5: =IF(Table227[[#This Row],[Daily Points]]="",NA(),Table227[[#This Row],[Daily Points]]/Table227[[#This Row],[Daily Points Possible]]) -> 
A6: =IF(A5,WORKDAY(A5,1),"") ->  | E6: =IF(Table227[[#This Row],[Daily Points]]="",NA(),Table227[[#This Row],[Daily Points]]/Table227[[#This Row],[Daily Points Possible]]) -> 
E7: =IF(Table227[[#This Row],[Daily Points]]="",NA(),Table227[[#This Row],[Daily Points]]/Table227[[#This Row],[Daily Points Possible]]) -> 
E8: =IF(Table227[[#This Row],[Daily Points]]="",NA(),Table227[[#This Row],[Daily Points]]/Table227[[#This Row],[Daily Points Possible]]) ->  | F8: week avg | G8: =AVERAGEIF(E4:E8,"<>#N/A") -> 
E9: =IF(Table227[[#This Row],[Daily Points]]="",NA(),Table227[[#This Row],[Daily Points]]/Table227[[#This Row],[Daily Points Possible]]) -> 
E10: =IF(Table227[[#This Row],[Daily Points]]="",NA(),Table227[[#This Row],[Daily Points]]/Table227[[#This Row],[Daily Points Possible]]) -> 
E11: =IF(Table227[[#This Row],[Daily Points]]="",NA(),Table227[[#This Row],[Daily Points]]/Table227[[#This Row],[Daily Points Possible]]) -> 
E12: =IF(Table227[[#This Row],[Daily Points]]="",NA(),Table227[[#This Row],[Daily Points]]/Table227[[#This Row],[Daily Points Possible]]) -> 
E13: =IF(Table227[[#This Row],[Daily Points]]="",NA(),Table227[[#This Row],[Daily Points]]/Table227[[#This Row],[Daily Points Possible]]) ->  | F13: week avg | G13: =AVERAGEIF(E9:E13,"<>#N/A") -> 
E14: =IF(Table227[[#This Row],[Daily Points]]="",NA(),Table227[[#This Row],[Daily Points]]/Table227[[#This Row],[Daily Points Possible]]) -> 
E15: =IF(Table227[[#This Row],[Daily Points]]="",NA(),Table227[[#This Row],[Daily Points]]/Table227[[#This Row],[Daily Points Possible]]) -> 
E16: =IF(Table227[[#This Row],[Daily Points]]="",NA(),Table227[[#This Row],[Daily Points]]/Table227[[#This Row],[Daily Points Possible]]) -> 
E17: =IF(Table227[[#This Row],[Daily Points]]="",NA(),Table227[[#This Row],[Daily Points]]/Table227[[#This Row],[Daily Points Possible]]) -> 
E18: =IF(Table227[[#This Row],[Daily Points]]="",NA(),Table227[[#This Row],[Daily Points]]/Table227[[#This Row],[Daily Points Possible]]) ->  | F18: week avg | G18: =AVERAGEIF(E14:E18,"<>#N/A") -> 
E19: =IF(Table227[[#This Row],[Daily Points]]="",NA(),Table227[[#This Row],[Daily Points]]/Table227[[#This Row],[Daily Points Possible]]) -> 
E20: =IF(Table227[[#This Row],[Daily Points]]="",NA(),Table227[[#This Row],[Daily Points]]/Table227[[#This Row],[Daily Points Possible]]) -> 
E21: =IF(Table227[[#This Row],[Daily Points]]="",NA(),Table227[[#This Row],[Daily Points]]/Table227[[#This Row],[Daily Points Possible]]) -> 
E22: =IF(Table227[[#This Row],[Daily Points]]="",NA(),Table227[[#This Row],[Daily Points]]/Table227[[#This Row],[Daily Points Possible]]) ->  | P22: Semester 2
E23: =IF(Table227[[#This Row],[Daily Points]]="",NA(),Table227[[#This Row],[Daily Points]]/Table227[[#This Row],[Daily Points Possible]]) ->  | F23: week avg | G23: =AVERAGEIF(E19:E23,"<>#N/A") -> 
E24: =IF(Table227[[#This Row],[Daily Points]]="",NA(),Table227[[#This Row],[Daily Points]]/Table227[[#This Row],[Daily Points Possible]]) -> 
E25: =IF(Table227[[#This Row],[Daily Points]]="",NA(),Table227[[#This Row],[Daily Points]]/Table227[[#This Row],[Daily Points Possible]]) -> 
E26: =IF(Table227[[#This Row],[Daily Points]]="",NA(),Table227[[#This Row],[Daily Points]]/Table227[[#This Row],[Daily Points Possible]]) -> 
E27: =IF(Table227[[#This Row],[Daily Points]]="",NA(),Table227[[#This Row],[Daily Points]]/Table227[[#This Row],[Daily Points Possible]]) -> 
E28: =IF(Table227[[#This Row],[Daily Points]]="",NA(),Table227[[#This Row],[Daily Points]]/Table227[[#This Row],[Daily Points Possible]]) ->  | F28: week avg | G28: =AVERAGEIF(E24:E28,"<>#N/A") -> 
E29: =IF(Table227[[#This Row],[Daily Points]]="",NA(),Table227[[#This Row],[Daily Points]]/Table227[[#This Row],[Daily Points Possible]]) -> 
E30: =IF(Table227[[#This Row],[Daily Points]]="",NA(),Table227[[#This Row],[Daily Points]]/Table227[[#This Row],[Daily Points Possible]]) -> 
E31: =IF(Table227[[#This Row],[Daily Points]]="",NA(),Table227[[#This Row],[Daily Points]]/Table227[[#This Row],[Daily Points Possible]]) -> 
E32: =IF(Table227[[#This Row],[Daily Points]]="",NA(),Table227[[#This Row],[Daily Points]]/Table227[[#This Row],[Daily Points Possible]]) -> 
E33: =IF(Table227[[#This Row],[Daily Points]]="",NA(),Table227[[#This Row],[Daily Points]]/Table227[[#This Row],[Daily Points Possible]]) ->  | F33: week avg | G33: =AVERAGEIF(E29:E33,"<>#N/A") -> 
E34: =IF(Table227[[#This Row],[Daily Points]]="",NA(),Table227[[#This Row],[Daily Points]]/Table227[[#This Row],[Daily Points Possible]]) -> 
E35: =IF(Table227[[#This Row],[Daily Points]]="",NA(),Table227[[#This Row],[Daily Points]]/Table227[[#This Row],[Daily Points Possible]]) -> 
E36: =IF(Table227[[#This Row],[Daily Points]]="",NA(),Table227[[#This Row],[Daily Points]]/Table227[[#This Row],[Daily Points Possible]]) -> 
E37: =IF(Table227[[#This Row],[Daily Points]]="",NA(),Table227[[#This Row],[Daily Points]]/Table227[[#This Row],[Daily Points Possible]]) -> 
E38: =IF(Table227[[#This Row],[Daily Points]]="",NA(),Table227[[#This Row],[Daily Points]]/Table227[[#This Row],[Daily Points Possible]]) ->  | F38: week avg | G38: =AVERAGEIF(E34:E38,"<>#N/A") -> 
E39: =IF(Table227[[#This Row],[Daily Points]]="",NA(),Table227[[#This Row],[Daily Points]]/Table227[[#This Row],[Daily Points Possible]]) -> 
E40: =IF(Table227[[#This Row],[Daily Points]]="",NA(),Table227[[#This Row],[Daily Points]]/Table227[[#This Row],[Daily Points Possible]]) -> 
E41: =IF(Table227[[#This Row],[Daily Points]]="",NA(),Table227[[#This Row],[Daily Points]]/Table227[[#This Row],[Daily Points Possible]]) -> 
E42: =IF(Table227[[#This Row],[Daily Points]]="",NA(),Table227[[#This Row],[Daily Points]]/Table227[[#This Row],[Daily Points Possible]]) -> 
E43: =IF(Table227[[#This Row],[Daily Points]]="",NA(),Table227[[#This Row],[Daily Points]]/Table227[[#This Row],[Daily Points Possible]]) ->  | F43: week avg | G43: =AVERAGEIF(E39:E43,"<>#N/A") -> 
E44: =IF(Table227[[#This Row],[Daily Points]]="",NA(),Table227[[#This Row],[Daily Points]]/Table227[[#This Row],[Daily Points Possible]]) -> 
E45: =IF(Table227[[#This Row],[Daily Points]]="",NA(),Table227[[#This Row],[Daily Points]]/Table227[[#This Row],[Daily Points Possible]]) -> 
E46: =IF(Table227[[#This Row],[Daily Points]]="",NA(),Table227[[#This Row],[Daily Points]]/Table227[[#This Row],[Daily Points Possible]]) -> 
E47: =IF(Table227[[#This Row],[Daily Points]]="",NA(),Table227[[#This Row],[Daily Points]]/Table227[[#This Row],[Daily Points Possible]]) -> 
E48: =IF(Table227[[#This Row],[Daily Points]]="",NA(),Table227[[#This Row],[Daily Points]]/Table227[[#This Row],[Daily Points Possible]]) ->  | F48: week avg | G48: =AVERAGEIF(E44:E48,"<>#N/A") -> 
E49: =IF(Table227[[#This Row],[Daily Points]]="",NA(),Table227[[#This Row],[Daily Points]]/Table227[[#This Row],[Daily Points Possible]]) -> 
E50: =IF(Table227[[#This Row],[Daily Points]]="",NA(),Table227[[#This Row],[Daily Points]]/Table227[[#This Row],[Daily Points Possible]]) -> 
E51: =IF(Table227[[#This Row],[Daily Points]]="",NA(),Table227[[#This Row],[Daily Points]]/Table227[[#This Row],[Daily Points Possible]]) -> 
E52: =IF(Table227[[#This Row],[Daily Points]]="",NA(),Table227[[#This Row],[Daily Points]]/Table227[[#This Row],[Daily Points Possible]]) -> 
E53: =IF(Table227[[#This Row],[Daily Points]]="",NA(),Table227[[#This Row],[Daily Points]]/Table227[[#This Row],[Daily Points Possible]]) ->  | F53: week avg | G53: =AVERAGEIF(E49:E53,"<>#N/A") -> 
E54: =IF(Table227[[#This Row],[Daily Points]]="",NA(),Table227[[#This Row],[Daily Points]]/Table227[[#This Row],[Daily Points Possible]]) -> 
E55: =IF(Table227[[#This Row],[Daily Points]]="",NA(),Table227[[#This Row],[Daily Points]]/Table227[[#This Row],[Daily Points Possible]]) -> 
E56: =IF(Table227[[#This Row],[Daily Points]]="",NA(),Table227[[#This Row],[Daily Points]]/Table227[[#This Row],[Daily Points Possible]]) -> 
E57: =IF(Table227[[#This Row],[Daily Points]]="",NA(),Table227[[#This Row],[Daily Points]]/Table227[[#This Row],[Daily Points Possible]]) -> 
E58: =IF(Table227[[#This Row],[Daily Points]]="",NA(),Table227[[#This Row],[Daily Points]]/Table227[[#This Row],[Daily Points Possible]]) ->  | F58: week avg | G58: =AVERAGEIF(E54:E58,"<>#N/A") -> 
E59: =IF(Table227[[#This Row],[Daily Points]]="",NA(),Table227[[#This Row],[Daily Points]]/Table227[[#This Row],[Daily Points Possible]]) -> 
E60: =IF(Table227[[#This Row],[Daily Points]]="",NA(),Table227[[#This Row],[Daily Points]]/Table227[[#This Row],[Daily Points Possible]]) -> 
E61: =IF(Table227[[#This Row],[Daily Points]]="",NA(),Table227[[#This Row],[Daily Points]]/Table227[[#This Row],[Daily Points Possible]]) -> 
E62: =IF(Table227[[#This Row],[Daily Points]]="",NA(),Table227[[#This Row],[Daily Points]]/Table227[[#This Row],[Daily Points Possible]]) -> 
E63: =IF(Table227[[#This Row],[Daily Points]]="",NA(),Table227[[#This Row],[Daily Points]]/Table227[[#This Row],[Daily Points Possible]]) ->  | F63: week avg | G63: =AVERAGEIF(E59:E63,"<>#N/A") -> 
E64: =IF(Table227[[#This Row],[Daily Points]]="",NA(),Table227[[#This Row],[Daily Points]]/Table227[[#This Row],[Daily Points Possible]]) -> 
E65: =IF(Table227[[#This Row],[Daily Points]]="",NA(),Table227[[#This Row],[Daily Points]]/Table227[[#This Row],[Daily Points Possible]]) -> 
E66: =IF(Table227[[#This Row],[Daily Points]]="",NA(),Table227[[#This Row],[Daily Points]]/Table227[[#This Row],[Daily Points Possible]]) -> 
E67: =IF(Table227[[#This Row],[Daily Points]]="",NA(),Table227[[#This Row],[Daily Points]]/Table227[[#This Row],[Daily Points Possible]]) -> 
A68: =IF(A67,WORKDAY(A67,1),"") ->  | E68: =IF(Table227[[#This Row],[Daily Points]]="",NA(),Table227[[#This Row],[Daily Points]]/Table227[[#This Row],[Daily Points Possible]]) ->  | F68: week avg | G68: =AVERAGEIF(E64:E68,"<>#N/A") -> 
E69: =IF(Table227[[#This Row],[Daily Points]]="",NA(),Table227[[#This Row],[Daily Points]]/Table227[[#This Row],[Daily Points Possible]]) -> 
E70: =IF(Table227[[#This Row],[Daily Points]]="",NA(),Table227[[#This Row],[Daily Points]]/Table227[[#This Row],[Daily Points Possible]]) -> 
E71: =IF(Table227[[#This Row],[Daily Points]]="",NA(),Table227[[#This Row],[Daily Points]]/Table227[[#This Row],[Daily Points Possible]]) -> 
E72: =IF(Table227[[#This Row],[Daily Points]]="",NA(),Table227[[#This Row],[Daily Points]]/Table227[[#This Row],[Daily Points Possible]]) -> 
E73: =IF(Table227[[#This Row],[Daily Points]]="",NA(),Table227[[#This Row],[Daily Points]]/Table227[[#This Row],[Daily Points Possible]]) ->  | F73: week avg | G73: =AVERAGEIF(E69:E73,"<>#N/A") -> 
E74: =IF(Table227[[#This Row],[Daily Points]]="",NA(),Table227[[#This Row],[Daily Points]]/Table227[[#This Row],[Daily Points Possible]]) -> 
E75: =IF(Table227[[#This Row],[Daily Points]]="",NA(),Table227[[#This Row],[Daily Points]]/Table227[[#This Row],[Daily Points Possible]]) -> 
E76: =IF(Table227[[#This Row],[Daily Points]]="",NA(),Table227[[#This Row],[Daily Points]]/Table227[[#This Row],[Daily Points Possible]]) -> 
E77: =IF(Table227[[#This Row],[Daily Points]]="",NA(),Table227[[#This Row],[Daily Points]]/Table227[[#This Row],[Daily Points Possible]]) -> 
E78: =IF(Table227[[#This Row],[Daily Points]]="",NA(),Table227[[#This Row],[Daily Points]]/Table227[[#This Row],[Daily Points Possible]]) ->  | F78: week avg | G78: =AVERAGEIF(E74:E78,"<>#N/A") -> 
E79: =IF(Table227[[#This Row],[Daily Points]]="",NA(),Table227[[#This Row],[Daily Points]]/Table227[[#This Row],[Daily Points Possible]]) -> 
E80: =IF(Table227[[#This Row],[Daily Points]]="",NA(),Table227[[#This Row],[Daily Points]]/Table227[[#This Row],[Daily Points Possible]]) -> 
E81: =IF(Table227[[#This Row],[Daily Points]]="",NA(),Table227[[#This Row],[Daily Points]]/Table227[[#This Row],[Daily Points Possible]]) -> 
E82: =IF(Table227[[#This Row],[Daily Points]]="",NA(),Table227[[#This Row],[Daily Points]]/Table227[[#This Row],[Daily Points Possible]]) -> 
E83: =IF(Table227[[#This Row],[Daily Points]]="",NA(),Table227[[#This Row],[Daily Points]]/Table227[[#This Row],[Daily Points Possible]]) ->  | F83: week avg | G83: =AVERAGEIF(E79:E83,"<>#N/A") -> 
E84: =IF(Table227[[#This Row],[Daily Points]]="",NA(),Table227[[#This Row],[Daily Points]]/Table227[[#This Row],[Daily Points Possible]]) -> 
E85: =IF(Table227[[#This Row],[Daily Points]]="",NA(),Table227[[#This Row],[Daily Points]]/Table227[[#This Row],[Daily Points Possible]]) -> 
E86: =IF(Table227[[#This Row],[Daily Points]]="",NA(),Table227[[#This Row],[Daily Points]]/Table227[[#This Row],[Daily Points Possible]]) -> 
E87: =IF(Table227[[#This Row],[Daily Points]]="",NA(),Table227[[#This Row],[Daily Points]]/Table227[[#This Row],[Daily Points Possible]]) -> 
E88: =IF(Table227[[#This Row],[Daily Points]]="",NA(),Table227[[#This Row],[Daily Points]]/Table227[[#This Row],[Daily Points Possible]]) ->  | F88: week avg | G88: =AVERAGEIF(E84:E88,"<>#N/A") -> 
E89: =IF(Table227[[#This Row],[Daily Points]]="",NA(),Table227[[#This Row],[Daily Points]]/Table227[[#This Row],[Daily Points Possible]]) -> 
E90: =IF(Table227[[#This Row],[Daily Points]]="",NA(),Table227[[#This Row],[Daily Points]]/Table227[[#This Row],[Daily Points Possible]]) -> 
E91: =IF(Table227[[#This Row],[Daily Points]]="",NA(),Table227[[#This Row],[Daily Points]]/Table227[[#This Row],[Daily Points Possible]]) -> 
E92: =IF(Table227[[#This Row],[Daily Points]]="",NA(),Table227[[#This Row],[Daily Points]]/Table227[[#This Row],[Daily Points Possible]]) -> 
E93: =IF(Table227[[#This Row],[Daily Points]]="",NA(),Table227[[#This Row],[Daily Points]]/Table227[[#This Row],[Daily Points Possible]]) ->  | F93: week avg | G93: =AVERAGEIF(E89:E93,"<>#N/A") -> 
E94: =IF(Table227[[#This Row],[Daily Points]]="",NA(),Table227[[#This Row],[Daily Points]]/Table227[[#This Row],[Daily Points Possible]]) -> 
E95: =IF(Table227[[#This Row],[Daily Points]]="",NA(),Table227[[#This Row],[Daily Points]]/Table227[[#This Row],[Daily Points Possible]]) -> 
E96: =IF(Table227[[#This Row],[Daily Points]]="",NA(),Table227[[#This Row],[Daily Points]]/Table227[[#This Row],[Daily Points Possible]]) -> 
E97: =IF(Table227[[#This Row],[Daily Points]]="",NA(),Table227[[#This Row],[Daily Points]]/Table227[[#This Row],[Daily Points Possible]]) -> 
E98: =IF(Table227[[#This Row],[Daily Points]]="",NA(),Table227[[#This Row],[Daily Points]]/Table227[[#This Row],[Daily Points Possible]]) ->  | F98: week avg | G98: =AVERAGEIF(E94:E98,"<>#N/A") -> 
E99: =IF(Table227[[#This Row],[Daily Points]]="",NA(),Table227[[#This Row],[Daily Points]]/Table227[[#This Row],[Daily Points Possible]]) -> 
E100: =IF(Table227[[#This Row],[Daily Points]]="",NA(),Table227[[#This Row],[Daily Points]]/Table227[[#This Row],[Daily Points Possible]]) -> 
E101: =IF(Table227[[#This Row],[Daily Points]]="",NA(),Table227[[#This Row],[Daily Points]]/Table227[[#This Row],[Daily Points Possible]]) -> 
E102: =IF(Table227[[#This Row],[Daily Points]]="",NA(),Table227[[#This Row],[Daily Points]]/Table227[[#This Row],[Daily Points Possible]]) -> 
E103: =IF(Table227[[#This Row],[Daily Points]]="",NA(),Table227[[#This Row],[Daily Points]]/Table227[[#This Row],[Daily Points Possible]]) ->  | F103: week avg | G103: =AVERAGEIF(E99:E103,"<>#N/A") -> 
E104: =IF(Table227[[#This Row],[Daily Points]]="",NA(),Table227[[#This Row],[Daily Points]]/Table227[[#This Row],[Daily Points Possible]]) -> 
E105: =IF(Table227[[#This Row],[Daily Points]]="",NA(),Table227[[#This Row],[Daily Points]]/Table227[[#This Row],[Daily Points Possible]]) -> 
E106: =IF(Table227[[#This Row],[Daily Points]]="",NA(),Table227[[#This Row],[Daily Points]]/Table227[[#This Row],[Daily Points Possible]]) -> 
E107: =IF(Table227[[#This Row],[Daily Points]]="",NA(),Table227[[#This Row],[Daily Points]]/Table227[[#This Row],[Daily Points Possible]]) -> 
E108: =IF(Table227[[#This Row],[Daily Points]]="",NA(),Table227[[#This Row],[Daily Points]]/Table227[[#This Row],[Daily Points Possible]]) ->  | F108: week avg | G108: =AVERAGEIF(E104:E108,"<>#N/A") -> 
E109: =IF(Table227[[#This Row],[Daily Points]]="",NA(),Table227[[#This Row],[Daily Points]]/Table227[[#This Row],[Daily Points Possible]]) -> 
E110: =IF(Table227[[#This Row],[Daily Points]]="",NA(),Table227[[#This Row],[Daily Points]]/Table227[[#This Row],[Daily Points Possible]]) -> 
E111: =IF(Table227[[#This Row],[Daily Points]]="",NA(),Table227[[#This Row],[Daily Points]]/Table227[[#This Row],[Daily Points Possible]]) -> 
E112: =IF(Table227[[#This Row],[Daily Points]]="",NA(),Table227[[#This Row],[Daily Points]]/Table227[[#This Row],[Daily Points Possible]]) -> 
E113: =IF(Table227[[#This Row],[Daily Points]]="",NA(),Table227[[#This Row],[Daily Points]]/Table227[[#This Row],[Daily Points Possible]]) ->  | F113: week avg | G113: =AVERAGEIF(E109:E113,"<>#N/A") -> 
E114: =IF(Table227[[#This Row],[Daily Points]]="",NA(),Table227[[#This Row],[Daily Points]]/Table227[[#This Row],[Daily Points Possible]]) -> 
E115: =IF(Table227[[#This Row],[Daily Points]]="",NA(),Table227[[#This Row],[Daily Points]]/Table227[[#This Row],[Daily Points Possible]]) -> 
E116: =IF(Table227[[#This Row],[Daily Points]]="",NA(),Table227[[#This Row],[Daily Points]]/Table227[[#This Row],[Daily Points Possible]]) -> 
E117: =IF(Table227[[#This Row],[Daily Points]]="",NA(),Table227[[#This Row],[Daily Points]]/Table227[[#This Row],[Daily Points Possible]]) -> 
E118: =IF(Table227[[#This Row],[Daily Points]]="",NA(),Table227[[#This Row],[Daily Points]]/Table227[[#This Row],[Daily Points Possible]]) ->  | F118: week avg | G118: =AVERAGEIF(E114:E118,"<>#N/A") -> 
E119: =IF(Table227[[#This Row],[Daily Points]]="",NA(),Table227[[#This Row],[Daily Points]]/Table227[[#This Row],[Daily Points Possible]]) -> 
E120: =IF(Table227[[#This Row],[Daily Points]]="",NA(),Table227[[#This Row],[Daily Points]]/Table227[[#This Row],[Daily Points Possible]]) -> 
E121: =IF(Table227[[#This Row],[Daily Points]]="",NA(),Table227[[#This Row],[Daily Points]]/Table227[[#This Row],[Daily Points Possible]]) -> 
E122: =IF(Table227[[#This Row],[Daily Points]]="",NA(),Table227[[#This Row],[Daily Points]]/Table227[[#This Row],[Daily Points Possible]]) -> 
E123: =IF(Table227[[#This Row],[Daily Points]]="",NA(),Table227[[#This Row],[Daily Points]]/Table227[[#This Row],[Daily Points Possible]]) ->  | F123: week avg | G123: =AVERAGEIF(E119:E123,"<>#N/A") -> 
E124: =IF(Table227[[#This Row],[Daily Points]]="",NA(),Table227[[#This Row],[Daily Points]]/Table227[[#This Row],[Daily Points Possible]]) -> 
E125: =IF(Table227[[#This Row],[Daily Points]]="",NA(),Table227[[#This Row],[Daily Points]]/Table227[[#This Row],[Daily Points Possible]]) -> 
E126: =IF(Table227[[#This Row],[Daily Points]]="",NA(),Table227[[#This Row],[Daily Points]]/Table227[[#This Row],[Daily Points Possible]]) -> 
E127: =IF(Table227[[#This Row],[Daily Points]]="",NA(),Table227[[#This Row],[Daily Points]]/Table227[[#This Row],[Daily Points Possible]]) -> 
E128: =IF(Table227[[#This Row],[Daily Points]]="",NA(),Table227[[#This Row],[Daily Points]]/Table227[[#This Row],[Daily Points Possible]]) ->  | F128: week avg | G128: =AVERAGEIF(E124:E128,"<>#N/A") -> 
E129: =IF(Table227[[#This Row],[Daily Points]]="",NA(),Table227[[#This Row],[Daily Points]]/Table227[[#This Row],[Daily Points Possible]]) -> 
E130: =IF(Table227[[#This Row],[Daily Points]]="",NA(),Table227[[#This Row],[Daily Points]]/Table227[[#This Row],[Daily Points Possible]]) -> 
E131: =IF(Table227[[#This Row],[Daily Points]]="",NA(),Table227[[#This Row],[Daily Points]]/Table227[[#This Row],[Daily Points Possible]]) -> 
A132: =IF(A131,WORKDAY(A131,1),"") ->  | E132: =IF(Table227[[#This Row],[Daily Points]]="",NA(),Table227[[#This Row],[Daily Points]]/Table227[[#This Row],[Daily Points Possible]]) -> 
E133: =IF(Table227[[#This Row],[Daily Points]]="",NA(),Table227[[#This Row],[Daily Points]]/Table227[[#This Row],[Daily Points Possible]]) ->  | F133: week avg | G133: =AVERAGEIF(E129:E133,"<>#N/A") -> 
E134: =IF(Table227[[#This Row],[Daily Points]]="",NA(),Table227[[#This Row],[Daily Points]]/Table227[[#This Row],[Daily Points Possible]]) -> 
E135: =IF(Table227[[#This Row],[Daily Points]]="",NA(),Table227[[#This Row],[Daily Points]]/Table227[[#This Row],[Daily Points Possible]]) -> 
E136: =IF(Table227[[#This Row],[Daily Points]]="",NA(),Table227[[#This Row],[Daily Points]]/Table227[[#This Row],[Daily Points Possible]]) -> 
E137: =IF(Table227[[#This Row],[Daily Points]]="",NA(),Table227[[#This Row],[Daily Points]]/Table227[[#This Row],[Daily Points Possible]]) -> 
E138: =IF(Table227[[#This Row],[Daily Points]]="",NA(),Table227[[#This Row],[Daily Points]]/Table227[[#This Row],[Daily Points Possible]]) ->  | F138: week avg | G138: =AVERAGEIF(E134:E138,"<>#N/A") -> 
E139: =IF(Table227[[#This Row],[Daily Points]]="",NA(),Table227[[#This Row],[Daily Points]]/Table227[[#This Row],[Daily Points Possible]]) -> 
E140: =IF(Table227[[#This Row],[Daily Points]]="",NA(),Table227[[#This Row],[Daily Points]]/Table227[[#This Row],[Daily Points Possible]]) -> 
E141: =IF(Table227[[#This Row],[Daily Points]]="",NA(),Table227[[#This Row],[Daily Points]]/Table227[[#This Row],[Daily Points Possible]]) -> 
E142: =IF(Table227[[#This Row],[Daily Points]]="",NA(),Table227[[#This Row],[Daily Points]]/Table227[[#This Row],[Daily Points Possible]]) -> 
E143: =IF(Table227[[#This Row],[Daily Points]]="",NA(),Table227[[#This Row],[Daily Points]]/Table227[[#This Row],[Daily Points Possible]]) ->  | F143: week avg | G143: =AVERAGEIF(E139:E143,"<>#N/A") -> 
E144: =IF(Table227[[#This Row],[Daily Points]]="",NA(),Table227[[#This Row],[Daily Points]]/Table227[[#This Row],[Daily Points Possible]]) -> 
E145: =IF(Table227[[#This Row],[Daily Points]]="",NA(),Table227[[#This Row],[Daily Points]]/Table227[[#This Row],[Daily Points Possible]]) -> 
E146: =IF(Table227[[#This Row],[Daily Points]]="",NA(),Table227[[#This Row],[Daily Points]]/Table227[[#This Row],[Daily Points Possible]]) -> 
E147: =IF(Table227[[#This Row],[Daily Points]]="",NA(),Table227[[#This Row],[Daily Points]]/Table227[[#This Row],[Daily Points Possible]]) -> 
E148: =IF(Table227[[#This Row],[Daily Points]]="",NA(),Table227[[#This Row],[Daily Points]]/Table227[[#This Row],[Daily Points Possible]]) ->  | F148: week avg | G148: =AVERAGEIF(E144:E148,"<>#N/A") -> 
E149: =IF(Table227[[#This Row],[Daily Points]]="",NA(),Table227[[#This Row],[Daily Points]]/Table227[[#This Row],[Daily Points Possible]]) -> 
E150: =IF(Table227[[#This Row],[Daily Points]]="",NA(),Table227[[#This Row],[Daily Points]]/Table227[[#This Row],[Daily Points Possible]]) -> 
E151: =IF(Table227[[#This Row],[Daily Points]]="",NA(),Table227[[#This Row],[Daily Points]]/Table227[[#This Row],[Daily Points Possible]]) -> 
E152: =IF(Table227[[#This Row],[Daily Points]]="",NA(),Table227[[#This Row],[Daily Points]]/Table227[[#This Row],[Daily Points Possible]]) -> 
E153: =IF(Table227[[#This Row],[Daily Points]]="",NA(),Table227[[#This Row],[Daily Points]]/Table227[[#This Row],[Daily Points Possible]]) ->  | F153: week avg | G153: =AVERAGEIF(E149:E153,"<>#N/A") -> 
E154: =IF(Table227[[#This Row],[Daily Points]]="",NA(),Table227[[#This Row],[Daily Points]]/Table227[[#This Row],[Daily Points Possible]]) -> 
E155: =IF(Table227[[#This Row],[Daily Points]]="",NA(),Table227[[#This Row],[Daily Points]]/Table227[[#This Row],[Daily Points Possible]]) -> 
E156: =IF(Table227[[#This Row],[Daily Points]]="",NA(),Table227[[#This Row],[Daily Points]]/Table227[[#This Row],[Daily Points Possible]]) -> 
E157: =IF(Table227[[#This Row],[Daily Points]]="",NA(),Table227[[#This Row],[Daily Points]]/Table227[[#This Row],[Daily Points Possible]]) -> 
E158: =IF(Table227[[#This Row],[Daily Points]]="",NA(),Table227[[#This Row],[Daily Points]]/Table227[[#This Row],[Daily Points Possible]]) ->  | F158: week avg | G158: =AVERAGEIF(E154:E158,"<>#N/A") -> 
E159: =IF(Table227[[#This Row],[Daily Points]]="",NA(),Table227[[#This Row],[Daily Points]]/Table227[[#This Row],[Daily Points Possible]]) -> 
E160: =IF(Table227[[#This Row],[Daily Points]]="",NA(),Table227[[#This Row],[Daily Points]]/Table227[[#This Row],[Daily Points Possible]]) -> 
E161: =IF(Table227[[#This Row],[Daily Points]]="",NA(),Table227[[#This Row],[Daily Points]]/Table227[[#This Row],[Daily Points Possible]]) -> 
E162: =IF(Table227[[#This Row],[Daily Points]]="",NA(),Table227[[#This Row],[Daily Points]]/Table227[[#This Row],[Daily Points Possible]]) -> 
E163: =IF(Table227[[#This Row],[Daily Points]]="",NA(),Table227[[#This Row],[Daily Points]]/Table227[[#This Row],[Daily Points Possible]]) ->  | F163: week avg | G163: =AVERAGEIF(E159:E163,"<>#N/A") -> 
E164: =IF(Table227[[#This Row],[Daily Points]]="",NA(),Table227[[#This Row],[Daily Points]]/Table227[[#This Row],[Daily Points Possible]]) -> 
E165: =IF(Table227[[#This Row],[Daily Points]]="",NA(),Table227[[#This Row],[Daily Points]]/Table227[[#This Row],[Daily Points Possible]]) -> 
E166: =IF(Table227[[#This Row],[Daily Points]]="",NA(),Table227[[#This Row],[Daily Points]]/Table227[[#This Row],[Daily Points Possible]]) -> 
E167: =IF(Table227[[#This Row],[Daily Points]]="",NA(),Table227[[#This Row],[Daily Points]]/Table227[[#This Row],[Daily Points Possible]]) -> 
E168: =IF(Table227[[#This Row],[Daily Points]]="",NA(),Table227[[#This Row],[Daily Points]]/Table227[[#This Row],[Daily Points Possible]]) ->  | F168: week avg | G168: =AVERAGEIF(E164:E168,"<>#N/A") -> 
E169: =IF(Table227[[#This Row],[Daily Points]]="",NA(),Table227[[#This Row],[Daily Points]]/Table227[[#This Row],[Daily Points Possible]]) -> 
E170: =IF(Table227[[#This Row],[Daily Points]]="",NA(),Table227[[#This Row],[Daily Points]]/Table227[[#This Row],[Daily Points Possible]]) -> 
E171: =IF(Table227[[#This Row],[Daily Points]]="",NA(),Table227[[#This Row],[Daily Points]]/Table227[[#This Row],[Daily Points Possible]]) -> 
E172: =IF(Table227[[#This Row],[Daily Points]]="",NA(),Table227[[#This Row],[Daily Points]]/Table227[[#This Row],[Daily Points Possible]]) -> 
E173: =IF(Table227[[#This Row],[Daily Points]]="",NA(),Table227[[#This Row],[Daily Points]]/Table227[[#This Row],[Daily Points Possible]]) ->  | F173: week avg | G173: =AVERAGEIF(E169:E173,"<>#N/A") -> 
E174: =IF(Table227[[#This Row],[Daily Points]]="",NA(),Table227[[#This Row],[Daily Points]]/Table227[[#This Row],[Daily Points Possible]]) -> 
E175: =IF(Table227[[#This Row],[Daily Points]]="",NA(),Table227[[#This Row],[Daily Points]]/Table227[[#This Row],[Daily Points Possible]]) -> 
E176: =IF(Table227[[#This Row],[Daily Points]]="",NA(),Table227[[#This Row],[Daily Points]]/Table227[[#This Row],[Daily Points Possible]]) -> 
E177: =IF(Table227[[#This Row],[Daily Points]]="",NA(),Table227[[#This Row],[Daily Points]]/Table227[[#This Row],[Daily Points Possible]]) -> 
E178: =IF(Table227[[#This Row],[Daily Points]]="",NA(),Table227[[#This Row],[Daily Points]]/Table227[[#This Row],[Daily Points Possible]]) ->  | F178: week avg | G178: =AVERAGEIF(E174:E178,"<>#N/A") -> 
E179: =IF(Table227[[#This Row],[Daily Points]]="",NA(),Table227[[#This Row],[Daily Points]]/Table227[[#This Row],[Daily Points Possible]]) -> 
E180: =IF(Table227[[#This Row],[Daily Points]]="",NA(),Table227[[#This Row],[Daily Points]]/Table227[[#This Row],[Daily Points Possible]]) -> 
E181: =IF(Table227[[#This Row],[Daily Points]]="",NA(),Table227[[#This Row],[Daily Points]]/Table227[[#This Row],[Daily Points Possible]]) -> 
E182: =IF(Table227[[#This Row],[Daily Points]]="",NA(),Table227[[#This Row],[Daily Points]]/Table227[[#This Row],[Daily Points Possible]]) -> 
E183: =IF(Table227[[#This Row],[Daily Points]]="",NA(),Table227[[#This Row],[Daily Points]]/Table227[[#This Row],[Daily Points Possible]]) ->  | F183: week avg | G183: =AVERAGEIF(E179:E183,"<>#N/A") -> 
E184: =IF(Table227[[#This Row],[Daily Points]]="",NA(),Table227[[#This Row],[Daily Points]]/Table227[[#This Row],[Daily Points Possible]]) -> 
E185: =IF(Table227[[#This Row],[Daily Points]]="",NA(),Table227[[#This Row],[Daily Points]]/Table227[[#This Row],[Daily Points Possible]]) -> 
E186: =IF(Table227[[#This Row],[Daily Points]]="",NA(),Table227[[#This Row],[Daily Points]]/Table227[[#This Row],[Daily Points Possible]]) -> 
E187: =IF(Table227[[#This Row],[Daily Points]]="",NA(),Table227[[#This Row],[Daily Points]]/Table227[[#This Row],[Daily Points Possible]]) -> 
E188: =IF(Table227[[#This Row],[Daily Points]]="",NA(),Table227[[#This Row],[Daily Points]]/Table227[[#This Row],[Daily Points Possible]]) ->  | F188: week avg | G188: =AVERAGEIF(E184:E188,"<>#N/A") -> 
E189: =IF(Table227[[#This Row],[Daily Points]]="",NA(),Table227[[#This Row],[Daily Points]]/Table227[[#This Row],[Daily Points Possible]]) -> 
E190: =IF(Table227[[#This Row],[Daily Points]]="",NA(),Table227[[#This Row],[Daily Points]]/Table227[[#This Row],[Daily Points Possible]]) -> 
E191: =IF(Table227[[#This Row],[Daily Points]]="",NA(),Table227[[#This Row],[Daily Points]]/Table227[[#This Row],[Daily Points Possible]]) -> 
E192: =IF(Table227[[#This Row],[Daily Points]]="",NA(),Table227[[#This Row],[Daily Points]]/Table227[[#This Row],[Daily Points Possible]]) -> 
E193: =IF(Table227[[#This Row],[Daily Points]]="",NA(),Table227[[#This Row],[Daily Points]]/Table227[[#This Row],[Daily Points Possible]]) ->  | F193: week avg | G193: =AVERAGEIF(E189:E193,"<>#N/A") -> 
E194: =IF(Table227[[#This Row],[Daily Points]]="",NA(),Table227[[#This Row],[Daily Points]]/Table227[[#This Row],[Daily Points Possible]]) -> 
E195: =IF(Table227[[#This Row],[Daily Points]]="",NA(),Table227[[#This Row],[Daily Points]]/Table227[[#This Row],[Daily Points Possible]]) -> 
A196: =IF(A195,WORKDAY(A195,1),"") ->  | E196: =IF(Table227[[#This Row],[Daily Points]]="",NA(),Table227[[#This Row],[Daily Points]]/Table227[[#This Row],[Daily Points Possible]]) -> 
E197: =IF(Table227[[#This Row],[Daily Points]]="",NA(),Table227[[#This Row],[Daily Points]]/Table227[[#This Row],[Daily Points Possible]]) -> 
E198: =IF(Table227[[#This Row],[Daily Points]]="",NA(),Table227[[#This Row],[Daily Points]]/Table227[[#This Row],[Daily Points Possible]]) ->  | F198: week avg | G198: =AVERAGEIF(E194:E198,"<>#N/A") -> 
E199: =IF(Table227[[#This Row],[Daily Points]]="",NA(),Table227[[#This Row],[Daily Points]]/Table227[[#This Row],[Daily Points Possible]]) -> 
E200: =IF(Table227[[#This Row],[Daily Points]]="",NA(),Table227[[#This Row],[Daily Points]]/Table227[[#This Row],[Daily Points Possible]]) -> 
... 23 more rows

Sheet Student6
F1: GOAL
A2: =StudentInfo!B10 -> 0 | F2: =StudentInfo!AI10 -> 0
A3: Date | B3: Notes | C3: Daily Points Possible | D3: Daily Points | E3: Daily Percent | F3: Avg for Last 10 Days | G3: =AVERAGE(N(OFFSET(E4,LARGE(IF(ISNUMBER(E4:E223),ROW(E4:E223)-ROW(E4)),ROW(1:10)),0))) -> 
E4: =IF(Table228[[#This Row],[Daily Points]]="",NA(),Table228[[#This Row],[Daily Points]]/Table228[[#This Row],[Daily Points Possible]]) ->  | P4: Semester 1
E5: =IF(Table228[[#This Row],[Daily Points]]="",NA(),Table228[[#This Row],[Daily Points]]/Table228[[#This Row],[Daily Points Possible]]) -> 
A6: =IF(A4,WORKDAY(A4,1),"") ->  | E6: =IF(Table228[[#This Row],[Daily Points]]="",NA(),Table228[[#This Row],[Daily Points]]/Table228[[#This Row],[Daily Points Possible]]) -> 
A7: =IF(A6,WORKDAY(A6,1),"") ->  | E7: =IF(Table228[[#This Row],[Daily Points]]="",NA(),Table228[[#This Row],[Daily Points]]/Table228[[#This Row],[Daily Points Possible]]) -> 
E8: =IF(Table228[[#This Row],[Daily Points]]="",NA(),Table228[[#This Row],[Daily Points]]/Table228[[#This Row],[Daily Points Possible]]) ->  | F8: week avg | G8: =AVERAGEIF(E4:E8,"<>#N/A") -> 
E9: =IF(Table228[[#This Row],[Daily Points]]="",NA(),Table228[[#This Row],[Daily Points]]/Table228[[#This Row],[Daily Points Possible]]) -> 
E10: =IF(Table228[[#This Row],[Daily Points]]="",NA(),Table228[[#This Row],[Daily Points]]/Table228[[#This Row],[Daily Points Possible]]) -> 
E11: =IF(Table228[[#This Row],[Daily Points]]="",NA(),Table228[[#This Row],[Daily Points]]/Table228[[#This Row],[Daily Points Possible]]) -> 
E12: =IF(Table228[[#This Row],[Daily Points]]="",NA(),Table228[[#This Row],[Daily Points]]/Table228[[#This Row],[Daily Points Possible]]) -> 
E13: =IF(Table228[[#This Row],[Daily Points]]="",NA(),Table228[[#This Row],[Daily Points]]/Table228[[#This Row],[Daily Points Possible]]) ->  | F13: week avg | G13: =AVERAGEIF(E9:E13,"<>#N/A") -> 
E14: =IF(Table228[[#This Row],[Daily Points]]="",NA(),Table228[[#This Row],[Daily Points]]/Table228[[#This Row],[Daily Points Possible]]) -> 
E15: =IF(Table228[[#This Row],[Daily Points]]="",NA(),Table228[[#This Row],[Daily Points]]/Table228[[#This Row],[Daily Points Possible]]) -> 
E16: =IF(Table228[[#This Row],[Daily Points]]="",NA(),Table228[[#This Row],[Daily Points]]/Table228[[#This Row],[Daily Points Possible]]) -> 
E17: =IF(Table228[[#This Row],[Daily Points]]="",NA(),Table228[[#This Row],[Daily Points]]/Table228[[#This Row],[Daily Points Possible]]) -> 
E18: =IF(Table228[[#This Row],[Daily Points]]="",NA(),Table228[[#This Row],[Daily Points]]/Table228[[#This Row],[Daily Points Possible]]) ->  | F18: week avg | G18: =AVERAGEIF(E14:E18,"<>#N/A") -> 
E19: =IF(Table228[[#This Row],[Daily Points]]="",NA(),Table228[[#This Row],[Daily Points]]/Table228[[#This Row],[Daily Points Possible]]) -> 
E20: =IF(Table228[[#This Row],[Daily Points]]="",NA(),Table228[[#This Row],[Daily Points]]/Table228[[#This Row],[Daily Points Possible]]) -> 
E21: =IF(Table228[[#This Row],[Daily Points]]="",NA(),Table228[[#This Row],[Daily Points]]/Table228[[#This Row],[Daily Points Possible]]) -> 
E22: =IF(Table228[[#This Row],[Daily Points]]="",NA(),Table228[[#This Row],[Daily Points]]/Table228[[#This Row],[Daily Points Possible]]) ->  | P22: Semester 2
E23: =IF(Table228[[#This Row],[Daily Points]]="",NA(),Table228[[#This Row],[Daily Points]]/Table228[[#This Row],[Daily Points Possible]]) ->  | F23: week avg | G23: =AVERAGEIF(E19:E23,"<>#N/A") -> 
E24: =IF(Table228[[#This Row],[Daily Points]]="",NA(),Table228[[#This Row],[Daily Points]]/Table228[[#This Row],[Daily Points Possible]]) -> 
E25: =IF(Table228[[#This Row],[Daily Points]]="",NA(),Table228[[#This Row],[Daily Points]]/Table228[[#This Row],[Daily Points Possible]]) -> 
E26: =IF(Table228[[#This Row],[Daily Points]]="",NA(),Table228[[#This Row],[Daily Points]]/Table228[[#This Row],[Daily Points Possible]]) -> 
E27: =IF(Table228[[#This Row],[Daily Points]]="",NA(),Table228[[#This Row],[Daily Points]]/Table228[[#This Row],[Daily Points Possible]]) -> 
E28: =IF(Table228[[#This Row],[Daily Points]]="",NA(),Table228[[#This Row],[Daily Points]]/Table228[[#This Row],[Daily Points Possible]]) ->  | F28: week avg | G28: =AVERAGEIF(E24:E28,"<>#N/A") -> 
E29: =IF(Table228[[#This Row],[Daily Points]]="",NA(),Table228[[#This Row],[Daily Points]]/Table228[[#This Row],[Daily Points Possible]]) -> 
E30: =IF(Table228[[#This Row],[Daily Points]]="",NA(),Table228[[#This Row],[Daily Points]]/Table228[[#This Row],[Daily Points Possible]]) -> 
E31: =IF(Table228[[#This Row],[Daily Points]]="",NA(),Table228[[#This Row],[Daily Points]]/Table228[[#This Row],[Daily Points Possible]]) -> 
E32: =IF(Table228[[#This Row],[Daily Points]]="",NA(),Table228[[#This Row],[Daily Points]]/Table228[[#This Row],[Daily Points Possible]]) -> 
E33: =IF(Table228[[#This Row],[Daily Points]]="",NA(),Table228[[#This Row],[Daily Points]]/Table228[[#This Row],[Daily Points Possible]]) ->  | F33: week avg | G33: =AVERAGEIF(E29:E33,"<>#N/A") -> 
E34: =IF(Table228[[#This Row],[Daily Points]]="",NA(),Table228[[#This Row],[Daily Points]]/Table228[[#This Row],[Daily Points Possible]]) -> 
E35: =IF(Table228[[#This Row],[Daily Points]]="",NA(),Table228[[#This Row],[Daily Points]]/Table228[[#This Row],[Daily Points Possible]]) -> 
E36: =IF(Table228[[#This Row],[Daily Points]]="",NA(),Table228[[#This Row],[Daily Points]]/Table228[[#This Row],[Daily Points Possible]]) -> 
E37: =IF(Table228[[#This Row],[Daily Points]]="",NA(),Table228[[#This Row],[Daily Points]]/Table228[[#This Row],[Daily Points Possible]]) -> 
E38: =IF(Table228[[#This Row],[Daily Points]]="",NA(),Table228[[#This Row],[Daily Points]]/Table228[[#This Row],[Daily Points Possible]]) ->  | F38: week avg | G38: =AVERAGEIF(E34:E38,"<>#N/A") -> 
E39: =IF(Table228[[#This Row],[Daily Points]]="",NA(),Table228[[#This Row],[Daily Points]]/Table228[[#This Row],[Daily Points Possible]]) -> 
E40: =IF(Table228[[#This Row],[Daily Points]]="",NA(),Table228[[#This Row],[Daily Points]]/Table228[[#This Row],[Daily Points Possible]]) -> 
E41: =IF(Table228[[#This Row],[Daily Points]]="",NA(),Table228[[#This Row],[Daily Points]]/Table228[[#This Row],[Daily Points Possible]]) -> 
E42: =IF(Table228[[#This Row],[Daily Points]]="",NA(),Table228[[#This Row],[Daily Points]]/Table228[[#This Row],[Daily Points Possible]]) -> 
E43: =IF(Table228[[#This Row],[Daily Points]]="",NA(),Table228[[#This Row],[Daily Points]]/Table228[[#This Row],[Daily Points Possible]]) ->  | F43: week avg | G43: =AVERAGEIF(E39:E43,"<>#N/A") -> 
E44: =IF(Table228[[#This Row],[Daily Points]]="",NA(),Table228[[#This Row],[Daily Points]]/Table228[[#This Row],[Daily Points Possible]]) -> 
E45: =IF(Table228[[#This Row],[Daily Points]]="",NA(),Table228[[#This Row],[Daily Points]]/Table228[[#This Row],[Daily Points Possible]]) -> 
E46: =IF(Table228[[#This Row],[Daily Points]]="",NA(),Table228[[#This Row],[Daily Points]]/Table228[[#This Row],[Daily Points Possible]]) -> 
E47: =IF(Table228[[#This Row],[Daily Points]]="",NA(),Table228[[#This Row],[Daily Points]]/Table228[[#This Row],[Daily Points Possible]]) -> 
E48: =IF(Table228[[#This Row],[Daily Points]]="",NA(),Table228[[#This Row],[Daily Points]]/Table228[[#This Row],[Daily Points Possible]]) ->  | F48: week avg | G48: =AVERAGEIF(E44:E48,"<>#N/A") -> 
E49: =IF(Table228[[#This Row],[Daily Points]]="",NA(),Table228[[#This Row],[Daily Points]]/Table228[[#This Row],[Daily Points Possible]]) -> 
E50: =IF(Table228[[#This Row],[Daily Points]]="",NA(),Table228[[#This Row],[Daily Points]]/Table228[[#This Row],[Daily Points Possible]]) -> 
E51: =IF(Table228[[#This Row],[Daily Points]]="",NA(),Table228[[#This Row],[Daily Points]]/Table228[[#This Row],[Daily Points Possible]]) -> 
E52: =IF(Table228[[#This Row],[Daily Points]]="",NA(),Table228[[#This Row],[Daily Points]]/Table228[[#This Row],[Daily Points Possible]]) -> 
E53: =IF(Table228[[#This Row],[Daily Points]]="",NA(),Table228[[#This Row],[Daily Points]]/Table228[[#This Row],[Daily Points Possible]]) ->  | F53: week avg | G53: =AVERAGEIF(E49:E53,"<>#N/A") -> 
E54: =IF(Table228[[#This Row],[Daily Points]]="",NA(),Table228[[#This Row],[Daily Points]]/Table228[[#This Row],[Daily Points Possible]]) -> 
E55: =IF(Table228[[#This Row],[Daily Points]]="",NA(),Table228[[#This Row],[Daily Points]]/Table228[[#This Row],[Daily Points Possible]]) -> 
E56: =IF(Table228[[#This Row],[Daily Points]]="",NA(),Table228[[#This Row],[Daily Points]]/Table228[[#This Row],[Daily Points Possible]]) -> 
E57: =IF(Table228[[#This Row],[Daily Points]]="",NA(),Table228[[#This Row],[Daily Points]]/Table228[[#This Row],[Daily Points Possible]]) -> 
E58: =IF(Table228[[#This Row],[Daily Points]]="",NA(),Table228[[#This Row],[Daily Points]]/Table228[[#This Row],[Daily Points Possible]]) ->  | F58: week avg | G58: =AVERAGEIF(E54:E58,"<>#N/A") -> 
E59: =IF(Table228[[#This Row],[Daily Points]]="",NA(),Table228[[#This Row],[Daily Points]]/Table228[[#This Row],[Daily Points Possible]]) -> 
E60: =IF(Table228[[#This Row],[Daily Points]]="",NA(),Table228[[#This Row],[Daily Points]]/Table228[[#This Row],[Daily Points Possible]]) -> 
E61: =IF(Table228[[#This Row],[Daily Points]]="",NA(),Table228[[#This Row],[Daily Points]]/Table228[[#This Row],[Daily Points Possible]]) -> 
E62: =IF(Table228[[#This Row],[Daily Points]]="",NA(),Table228[[#This Row],[Daily Points]]/Table228[[#This Row],[Daily Points Possible]]) -> 
E63: =IF(Table228[[#This Row],[Daily Points]]="",NA(),Table228[[#This Row],[Daily Points]]/Table228[[#This Row],[Daily Points Possible]]) ->  | F63: week avg | G63: =AVERAGEIF(E59:E63,"<>#N/A") -> 
E64: =IF(Table228[[#This Row],[Daily Points]]="",NA(),Table228[[#This Row],[Daily Points]]/Table228[[#This Row],[Daily Points Possible]]) -> 
E65: =IF(Table228[[#This Row],[Daily Points]]="",NA(),Table228[[#This Row],[Daily Points]]/Table228[[#This Row],[Daily Points Possible]]) -> 
E66: =IF(Table228[[#This Row],[Daily Points]]="",NA(),Table228[[#This Row],[Daily Points]]/Table228[[#This Row],[Daily Points Possible]]) -> 
E67: =IF(Table228[[#This Row],[Daily Points]]="",NA(),Table228[[#This Row],[Daily Points]]/Table228[[#This Row],[Daily Points Possible]]) -> 
E68: =IF(Table228[[#This Row],[Daily Points]]="",NA(),Table228[[#This Row],[Daily Points]]/Table228[[#This Row],[Daily Points Possible]]) ->  | F68: week avg | G68: =AVERAGEIF(E64:E68,"<>#N/A") -> 
E69: =IF(Table228[[#This Row],[Daily Points]]="",NA(),Table228[[#This Row],[Daily Points]]/Table228[[#This Row],[Daily Points Possible]]) -> 
E70: =IF(Table228[[#This Row],[Daily Points]]="",NA(),Table228[[#This Row],[Daily Points]]/Table228[[#This Row],[Daily Points Possible]]) -> 
A71: =IF(A70,WORKDAY(A70,1),"") ->  | E71: =IF(Table228[[#This Row],[Daily Points]]="",NA(),Table228[[#This Row],[Daily Points]]/Table228[[#This Row],[Daily Points Possible]]) -> 
E72: =IF(Table228[[#This Row],[Daily Points]]="",NA(),Table228[[#This Row],[Daily Points]]/Table228[[#This Row],[Daily Points Possible]]) -> 
E73: =IF(Table228[[#This Row],[Daily Points]]="",NA(),Table228[[#This Row],[Daily Points]]/Table228[[#This Row],[Daily Points Possible]]) ->  | F73: week avg | G73: =AVERAGEIF(E69:E73,"<>#N/A") -> 
E74: =IF(Table228[[#This Row],[Daily Points]]="",NA(),Table228[[#This Row],[Daily Points]]/Table228[[#This Row],[Daily Points Possible]]) -> 
E75: =IF(Table228[[#This Row],[Daily Points]]="",NA(),Table228[[#This Row],[Daily Points]]/Table228[[#This Row],[Daily Points Possible]]) -> 
E76: =IF(Table228[[#This Row],[Daily Points]]="",NA(),Table228[[#This Row],[Daily Points]]/Table228[[#This Row],[Daily Points Possible]]) -> 
E77: =IF(Table228[[#This Row],[Daily Points]]="",NA(),Table228[[#This Row],[Daily Points]]/Table228[[#This Row],[Daily Points Possible]]) -> 
E78: =IF(Table228[[#This Row],[Daily Points]]="",NA(),Table228[[#This Row],[Daily Points]]/Table228[[#This Row],[Daily Points Possible]]) ->  | F78: week avg | G78: =AVERAGEIF(E74:E78,"<>#N/A") -> 
E79: =IF(Table228[[#This Row],[Daily Points]]="",NA(),Table228[[#This Row],[Daily Points]]/Table228[[#This Row],[Daily Points Possible]]) -> 
E80: =IF(Table228[[#This Row],[Daily Points]]="",NA(),Table228[[#This Row],[Daily Points]]/Table228[[#This Row],[Daily Points Possible]]) -> 
E81: =IF(Table228[[#This Row],[Daily Points]]="",NA(),Table228[[#This Row],[Daily Points]]/Table228[[#This Row],[Daily Points Possible]]) -> 
E82: =IF(Table228[[#This Row],[Daily Points]]="",NA(),Table228[[#This Row],[Daily Points]]/Table228[[#This Row],[Daily Points Possible]]) -> 
E83: =IF(Table228[[#This Row],[Daily Points]]="",NA(),Table228[[#This Row],[Daily Points]]/Table228[[#This Row],[Daily Points Possible]]) ->  | F83: week avg | G83: =AVERAGEIF(E79:E83,"<>#N/A") -> 
E84: =IF(Table228[[#This Row],[Daily Points]]="",NA(),Table228[[#This Row],[Daily Points]]/Table228[[#This Row],[Daily Points Possible]]) -> 
E85: =IF(Table228[[#This Row],[Daily Points]]="",NA(),Table228[[#This Row],[Daily Points]]/Table228[[#This Row],[Daily Points Possible]]) -> 
E86: =IF(Table228[[#This Row],[Daily Points]]="",NA(),Table228[[#This Row],[Daily Points]]/Table228[[#This Row],[Daily Points Possible]]) -> 
E87: =IF(Table228[[#This Row],[Daily Points]]="",NA(),Table228[[#This Row],[Daily Points]]/Table228[[#This Row],[Daily Points Possible]]) -> 
E88: =IF(Table228[[#This Row],[Daily Points]]="",NA(),Table228[[#This Row],[Daily Points]]/Table228[[#This Row],[Daily Points Possible]]) ->  | F88: week avg | G88: =AVERAGEIF(E84:E88,"<>#N/A") -> 
E89: =IF(Table228[[#This Row],[Daily Points]]="",NA(),Table228[[#This Row],[Daily Points]]/Table228[[#This Row],[Daily Points Possible]]) -> 
E90: =IF(Table228[[#This Row],[Daily Points]]="",NA(),Table228[[#This Row],[Daily Points]]/Table228[[#This Row],[Daily Points Possible]]) -> 
E91: =IF(Table228[[#This Row],[Daily Points]]="",NA(),Table228[[#This Row],[Daily Points]]/Table228[[#This Row],[Daily Points Possible]]) -> 
E92: =IF(Table228[[#This Row],[Daily Points]]="",NA(),Table228[[#This Row],[Daily Points]]/Table228[[#This Row],[Daily Points Possible]]) -> 
E93: =IF(Table228[[#This Row],[Daily Points]]="",NA(),Table228[[#This Row],[Daily Points]]/Table228[[#This Row],[Daily Points Possible]]) ->  | F93: week avg | G93: =AVERAGEIF(E89:E93,"<>#N/A") -> 
E94: =IF(Table228[[#This Row],[Daily Points]]="",NA(),Table228[[#This Row],[Daily Points]]/Table228[[#This Row],[Daily Points Possible]]) -> 
E95: =IF(Table228[[#This Row],[Daily Points]]="",NA(),Table228[[#This Row],[Daily Points]]/Table228[[#This Row],[Daily Points Possible]]) -> 
E96: =IF(Table228[[#This Row],[Daily Points]]="",NA(),Table228[[#This Row],[Daily Points]]/Table228[[#This Row],[Daily Points Possible]]) -> 
E97: =IF(Table228[[#This Row],[Daily Points]]="",NA(),Table228[[#This Row],[Daily Points]]/Table228[[#This Row],[Daily Points Possible]]) -> 
E98: =IF(Table228[[#This Row],[Daily Points]]="",NA(),Table228[[#This Row],[Daily Points]]/Table228[[#This Row],[Daily Points Possible]]) ->  | F98: week avg | G98: =AVERAGEIF(E94:E98,"<>#N/A") -> 
E99: =IF(Table228[[#This Row],[Daily Points]]="",NA(),Table228[[#This Row],[Daily Points]]/Table228[[#This Row],[Daily Points Possible]]) -> 
E100: =IF(Table228[[#This Row],[Daily Points]]="",NA(),Table228[[#This Row],[Daily Points]]/Table228[[#This Row],[Daily Points Possible]]) -> 
E101: =IF(Table228[[#This Row],[Daily Points]]="",NA(),Table228[[#This Row],[Daily Points]]/Table228[[#This Row],[Daily Points Possible]]) -> 
E102: =IF(Table228[[#This Row],[Daily Points]]="",NA(),Table228[[#This Row],[Daily Points]]/Table228[[#This Row],[Daily Points Possible]]) -> 
E103: =IF(Table228[[#This Row],[Daily Points]]="",NA(),Table228[[#This Row],[Daily Points]]/Table228[[#This Row],[Daily Points Possible]]) ->  | F103: week avg | G103: =AVERAGEIF(E99:E103,"<>#N/A") -> 
E104: =IF(Table228[[#This Row],[Daily Points]]="",NA(),Table228[[#This Row],[Daily Points]]/Table228[[#This Row],[Daily Points Possible]]) -> 
E105: =IF(Table228[[#This Row],[Daily Points]]="",NA(),Table228[[#This Row],[Daily Points]]/Table228[[#This Row],[Daily Points Possible]]) -> 
E106: =IF(Table228[[#This Row],[Daily Points]]="",NA(),Table228[[#This Row],[Daily Points]]/Table228[[#This Row],[Daily Points Possible]]) -> 
E107: =IF(Table228[[#This Row],[Daily Points]]="",NA(),Table228[[#This Row],[Daily Points]]/Table228[[#This Row],[Daily Points Possible]]) -> 
E108: =IF(Table228[[#This Row],[Daily Points]]="",NA(),Table228[[#This Row],[Daily Points]]/Table228[[#This Row],[Daily Points Possible]]) ->  | F108: week avg | G108: =AVERAGEIF(E104:E108,"<>#N/A") -> 
E109: =IF(Table228[[#This Row],[Daily Points]]="",NA(),Table228[[#This Row],[Daily Points]]/Table228[[#This Row],[Daily Points Possible]]) -> 
E110: =IF(Table228[[#This Row],[Daily Points]]="",NA(),Table228[[#This Row],[Daily Points]]/Table228[[#This Row],[Daily Points Possible]]) -> 
E111: =IF(Table228[[#This Row],[Daily Points]]="",NA(),Table228[[#This Row],[Daily Points]]/Table228[[#This Row],[Daily Points Possible]]) -> 
E112: =IF(Table228[[#This Row],[Daily Points]]="",NA(),Table228[[#This Row],[Daily Points]]/Table228[[#This Row],[Daily Points Possible]]) -> 
E113: =IF(Table228[[#This Row],[Daily Points]]="",NA(),Table228[[#This Row],[Daily Points]]/Table228[[#This Row],[Daily Points Possible]]) ->  | F113: week avg | G113: =AVERAGEIF(E109:E113,"<>#N/A") -> 
E114: =IF(Table228[[#This Row],[Daily Points]]="",NA(),Table228[[#This Row],[Daily Points]]/Table228[[#This Row],[Daily Points Possible]]) -> 
E115: =IF(Table228[[#This Row],[Daily Points]]="",NA(),Table228[[#This Row],[Daily Points]]/Table228[[#This Row],[Daily Points Possible]]) -> 
E116: =IF(Table228[[#This Row],[Daily Points]]="",NA(),Table228[[#This Row],[Daily Points]]/Table228[[#This Row],[Daily Points Possible]]) -> 
E117: =IF(Table228[[#This Row],[Daily Points]]="",NA(),Table228[[#This Row],[Daily Points]]/Table228[[#This Row],[Daily Points Possible]]) -> 
E118: =IF(Table228[[#This Row],[Daily Points]]="",NA(),Table228[[#This Row],[Daily Points]]/Table228[[#This Row],[Daily Points Possible]]) ->  | F118: week avg | G118: =AVERAGEIF(E114:E118,"<>#N/A") -> 
E119: =IF(Table228[[#This Row],[Daily Points]]="",NA(),Table228[[#This Row],[Daily Points]]/Table228[[#This Row],[Daily Points Possible]]) -> 
E120: =IF(Table228[[#This Row],[Daily Points]]="",NA(),Table228[[#This Row],[Daily Points]]/Table228[[#This Row],[Daily Points Possible]]) -> 
E121: =IF(Table228[[#This Row],[Daily Points]]="",NA(),Table228[[#This Row],[Daily Points]]/Table228[[#This Row],[Daily Points Possible]]) -> 
E122: =IF(Table228[[#This Row],[Daily Points]]="",NA(),Table228[[#This Row],[Daily Points]]/Table228[[#This Row],[Daily Points Possible]]) -> 
E123: =IF(Table228[[#This Row],[Daily Points]]="",NA(),Table228[[#This Row],[Daily Points]]/Table228[[#This Row],[Daily Points Possible]]) ->  | F123: week avg | G123: =AVERAGEIF(E119:E123,"<>#N/A") -> 
E124: =IF(Table228[[#This Row],[Daily Points]]="",NA(),Table228[[#This Row],[Daily Points]]/Table228[[#This Row],[Daily Points Possible]]) -> 
E125: =IF(Table228[[#This Row],[Daily Points]]="",NA(),Table228[[#This Row],[Daily Points]]/Table228[[#This Row],[Daily Points Possible]]) -> 
E126: =IF(Table228[[#This Row],[Daily Points]]="",NA(),Table228[[#This Row],[Daily Points]]/Table228[[#This Row],[Daily Points Possible]]) -> 
E127: =IF(Table228[[#This Row],[Daily Points]]="",NA(),Table228[[#This Row],[Daily Points]]/Table228[[#This Row],[Daily Points Possible]]) -> 
E128: =IF(Table228[[#This Row],[Daily Points]]="",NA(),Table228[[#This Row],[Daily Points]]/Table228[[#This Row],[Daily Points Possible]]) ->  | F128: week avg | G128: =AVERAGEIF(E124:E128,"<>#N/A") -> 
E129: =IF(Table228[[#This Row],[Daily Points]]="",NA(),Table228[[#This Row],[Daily Points]]/Table228[[#This Row],[Daily Points Possible]]) -> 
E130: =IF(Table228[[#This Row],[Daily Points]]="",NA(),Table228[[#This Row],[Daily Points]]/Table228[[#This Row],[Daily Points Possible]]) -> 
E131: =IF(Table228[[#This Row],[Daily Points]]="",NA(),Table228[[#This Row],[Daily Points]]/Table228[[#This Row],[Daily Points Possible]]) -> 
E132: =IF(Table228[[#This Row],[Daily Points]]="",NA(),Table228[[#This Row],[Daily Points]]/Table228[[#This Row],[Daily Points Possible]]) -> 
E133: =IF(Table228[[#This Row],[Daily Points]]="",NA(),Table228[[#This Row],[Daily Points]]/Table228[[#This Row],[Daily Points Possible]]) ->  | F133: week avg | G133: =AVERAGEIF(E129:E133,"<>#N/A") -> 
E134: =IF(Table228[[#This Row],[Daily Points]]="",NA(),Table228[[#This Row],[Daily Points]]/Table228[[#This Row],[Daily Points Possible]]) -> 
A135: =IF(A134,WORKDAY(A134,1),"") ->  | E135: =IF(Table228[[#This Row],[Daily Points]]="",NA(),Table228[[#This Row],[Daily Points]]/Table228[[#This Row],[Daily Points Possible]]) -> 
E136: =IF(Table228[[#This Row],[Daily Points]]="",NA(),Table228[[#This Row],[Daily Points]]/Table228[[#This Row],[Daily Points Possible]]) -> 
E137: =IF(Table228[[#This Row],[Daily Points]]="",NA(),Table228[[#This Row],[Daily Points]]/Table228[[#This Row],[Daily Points Possible]]) -> 
E138: =IF(Table228[[#This Row],[Daily Points]]="",NA(),Table228[[#This Row],[Daily Points]]/Table228[[#This Row],[Daily Points Possible]]) ->  | F138: week avg | G138: =AVERAGEIF(E134:E138,"<>#N/A") -> 
E139: =IF(Table228[[#This Row],[Daily Points]]="",NA(),Table228[[#This Row],[Daily Points]]/Table228[[#This Row],[Daily Points Possible]]) -> 
E140: =IF(Table228[[#This Row],[Daily Points]]="",NA(),Table228[[#This Row],[Daily Points]]/Table228[[#This Row],[Daily Points Possible]]) -> 
E141: =IF(Table228[[#This Row],[Daily Points]]="",NA(),Table228[[#This Row],[Daily Points]]/Table228[[#This Row],[Daily Points Possible]]) -> 
E142: =IF(Table228[[#This Row],[Daily Points]]="",NA(),Table228[[#This Row],[Daily Points]]/Table228[[#This Row],[Daily Points Possible]]) -> 
E143: =IF(Table228[[#This Row],[Daily Points]]="",NA(),Table228[[#This Row],[Daily Points]]/Table228[[#This Row],[Daily Points Possible]]) ->  | F143: week avg | G143: =AVERAGEIF(E139:E143,"<>#N/A") -> 
E144: =IF(Table228[[#This Row],[Daily Points]]="",NA(),Table228[[#This Row],[Daily Points]]/Table228[[#This Row],[Daily Points Possible]]) -> 
E145: =IF(Table228[[#This Row],[Daily Points]]="",NA(),Table228[[#This Row],[Daily Points]]/Table228[[#This Row],[Daily Points Possible]]) -> 
E146: =IF(Table228[[#This Row],[Daily Points]]="",NA(),Table228[[#This Row],[Daily Points]]/Table228[[#This Row],[Daily Points Possible]]) -> 
E147: =IF(Table228[[#This Row],[Daily Points]]="",NA(),Table228[[#This Row],[Daily Points]]/Table228[[#This Row],[Daily Points Possible]]) -> 
E148: =IF(Table228[[#This Row],[Daily Points]]="",NA(),Table228[[#This Row],[Daily Points]]/Table228[[#This Row],[Daily Points Possible]]) ->  | F148: week avg | G148: =AVERAGEIF(E144:E148,"<>#N/A") -> 
E149: =IF(Table228[[#This Row],[Daily Points]]="",NA(),Table228[[#This Row],[Daily Points]]/Table228[[#This Row],[Daily Points Possible]]) -> 
E150: =IF(Table228[[#This Row],[Daily Points]]="",NA(),Table228[[#This Row],[Daily Points]]/Table228[[#This Row],[Daily Points Possible]]) -> 
E151: =IF(Table228[[#This Row],[Daily Points]]="",NA(),Table228[[#This Row],[Daily Points]]/Table228[[#This Row],[Daily Points Possible]]) -> 
E152: =IF(Table228[[#This Row],[Daily Points]]="",NA(),Table228[[#This Row],[Daily Points]]/Table228[[#This Row],[Daily Points Possible]]) -> 
E153: =IF(Table228[[#This Row],[Daily Points]]="",NA(),Table228[[#This Row],[Daily Points]]/Table228[[#This Row],[Daily Points Possible]]) ->  | F153: week avg | G153: =AVERAGEIF(E149:E153,"<>#N/A") -> 
E154: =IF(Table228[[#This Row],[Daily Points]]="",NA(),Table228[[#This Row],[Daily Points]]/Table228[[#This Row],[Daily Points Possible]]) -> 
E155: =IF(Table228[[#This Row],[Daily Points]]="",NA(),Table228[[#This Row],[Daily Points]]/Table228[[#This Row],[Daily Points Possible]]) -> 
E156: =IF(Table228[[#This Row],[Daily Points]]="",NA(),Table228[[#This Row],[Daily Points]]/Table228[[#This Row],[Daily Points Possible]]) -> 
E157: =IF(Table228[[#This Row],[Daily Points]]="",NA(),Table228[[#This Row],[Daily Points]]/Table228[[#This Row],[Daily Points Possible]]) -> 
E158: =IF(Table228[[#This Row],[Daily Points]]="",NA(),Table228[[#This Row],[Daily Points]]/Table228[[#This Row],[Daily Points Possible]]) ->  | F158: week avg | G158: =AVERAGEIF(E154:E158,"<>#N/A") -> 
E159: =IF(Table228[[#This Row],[Daily Points]]="",NA(),Table228[[#This Row],[Daily Points]]/Table228[[#This Row],[Daily Points Possible]]) -> 
E160: =IF(Table228[[#This Row],[Daily Points]]="",NA(),Table228[[#This Row],[Daily Points]]/Table228[[#This Row],[Daily Points Possible]]) -> 
E161: =IF(Table228[[#This Row],[Daily Points]]="",NA(),Table228[[#This Row],[Daily Points]]/Table228[[#This Row],[Daily Points Possible]]) -> 
E162: =IF(Table228[[#This Row],[Daily Points]]="",NA(),Table228[[#This Row],[Daily Points]]/Table228[[#This Row],[Daily Points Possible]]) -> 
E163: =IF(Table228[[#This Row],[Daily Points]]="",NA(),Table228[[#This Row],[Daily Points]]/Table228[[#This Row],[Daily Points Possible]]) ->  | F163: week avg | G163: =AVERAGEIF(E159:E163,"<>#N/A") -> 
E164: =IF(Table228[[#This Row],[Daily Points]]="",NA(),Table228[[#This Row],[Daily Points]]/Table228[[#This Row],[Daily Points Possible]]) -> 
E165: =IF(Table228[[#This Row],[Daily Points]]="",NA(),Table228[[#This Row],[Daily Points]]/Table228[[#This Row],[Daily Points Possible]]) -> 
E166: =IF(Table228[[#This Row],[Daily Points]]="",NA(),Table228[[#This Row],[Daily Points]]/Table228[[#This Row],[Daily Points Possible]]) -> 
E167: =IF(Table228[[#This Row],[Daily Points]]="",NA(),Table228[[#This Row],[Daily Points]]/Table228[[#This Row],[Daily Points Possible]]) -> 
E168: =IF(Table228[[#This Row],[Daily Points]]="",NA(),Table228[[#This Row],[Daily Points]]/Table228[[#This Row],[Daily Points Possible]]) ->  | F168: week avg | G168: =AVERAGEIF(E164:E168,"<>#N/A") -> 
E169: =IF(Table228[[#This Row],[Daily Points]]="",NA(),Table228[[#This Row],[Daily Points]]/Table228[[#This Row],[Daily Points Possible]]) -> 
E170: =IF(Table228[[#This Row],[Daily Points]]="",NA(),Table228[[#This Row],[Daily Points]]/Table228[[#This Row],[Daily Points Possible]]) -> 
E171: =IF(Table228[[#This Row],[Daily Points]]="",NA(),Table228[[#This Row],[Daily Points]]/Table228[[#This Row],[Daily Points Possible]]) -> 
E172: =IF(Table228[[#This Row],[Daily Points]]="",NA(),Table228[[#This Row],[Daily Points]]/Table228[[#This Row],[Daily Points Possible]]) -> 
E173: =IF(Table228[[#This Row],[Daily Points]]="",NA(),Table228[[#This Row],[Daily Points]]/Table228[[#This Row],[Daily Points Possible]]) ->  | F173: week avg | G173: =AVERAGEIF(E169:E173,"<>#N/A") -> 
E174: =IF(Table228[[#This Row],[Daily Points]]="",NA(),Table228[[#This Row],[Daily Points]]/Table228[[#This Row],[Daily Points Possible]]) -> 
E175: =IF(Table228[[#This Row],[Daily Points]]="",NA(),Table228[[#This Row],[Daily Points]]/Table228[[#This Row],[Daily Points Possible]]) -> 
E176: =IF(Table228[[#This Row],[Daily Points]]="",NA(),Table228[[#This Row],[Daily Points]]/Table228[[#This Row],[Daily Points Possible]]) -> 
E177: =IF(Table228[[#This Row],[Daily Points]]="",NA(),Table228[[#This Row],[Daily Points]]/Table228[[#This Row],[Daily Points Possible]]) -> 
E178: =IF(Table228[[#This Row],[Daily Points]]="",NA(),Table228[[#This Row],[Daily Points]]/Table228[[#This Row],[Daily Points Possible]]) ->  | F178: week avg | G178: =AVERAGEIF(E174:E178,"<>#N/A") -> 
E179: =IF(Table228[[#This Row],[Daily Points]]="",NA(),Table228[[#This Row],[Daily Points]]/Table228[[#This Row],[Daily Points Possible]]) -> 
E180: =IF(Table228[[#This Row],[Daily Points]]="",NA(),Table228[[#This Row],[Daily Points]]/Table228[[#This Row],[Daily Points Possible]]) -> 
E181: =IF(Table228[[#This Row],[Daily Points]]="",NA(),Table228[[#This Row],[Daily Points]]/Table228[[#This Row],[Daily Points Possible]]) -> 
E182: =IF(Table228[[#This Row],[Daily Points]]="",NA(),Table228[[#This Row],[Daily Points]]/Table228[[#This Row],[Daily Points Possible]]) -> 
E183: =IF(Table228[[#This Row],[Daily Points]]="",NA(),Table228[[#This Row],[Daily Points]]/Table228[[#This Row],[Daily Points Possible]]) ->  | F183: week avg | G183: =AVERAGEIF(E179:E183,"<>#N/A") -> 
E184: =IF(Table228[[#This Row],[Daily Points]]="",NA(),Table228[[#This Row],[Daily Points]]/Table228[[#This Row],[Daily Points Possible]]) -> 
E185: =IF(Table228[[#This Row],[Daily Points]]="",NA(),Table228[[#This Row],[Daily Points]]/Table228[[#This Row],[Daily Points Possible]]) -> 
E186: =IF(Table228[[#This Row],[Daily Points]]="",NA(),Table228[[#This Row],[Daily Points]]/Table228[[#This Row],[Daily Points Possible]]) -> 
E187: =IF(Table228[[#This Row],[Daily Points]]="",NA(),Table228[[#This Row],[Daily Points]]/Table228[[#This Row],[Daily Points Possible]]) -> 
E188: =IF(Table228[[#This Row],[Daily Points]]="",NA(),Table228[[#This Row],[Daily Points]]/Table228[[#This Row],[Daily Points Possible]]) ->  | F188: week avg | G188: =AVERAGEIF(E184:E188,"<>#N/A") -> 
E189: =IF(Table228[[#This Row],[Daily Points]]="",NA(),Table228[[#This Row],[Daily Points]]/Table228[[#This Row],[Daily Points Possible]]) -> 
E190: =IF(Table228[[#This Row],[Daily Points]]="",NA(),Table228[[#This Row],[Daily Points]]/Table228[[#This Row],[Daily Points Possible]]) -> 
E191: =IF(Table228[[#This Row],[Daily Points]]="",NA(),Table228[[#This Row],[Daily Points]]/Table228[[#This Row],[Daily Points Possible]]) -> 
E192: =IF(Table228[[#This Row],[Daily Points]]="",NA(),Table228[[#This Row],[Daily Points]]/Table228[[#This Row],[Daily Points Possible]]) -> 
E193: =IF(Table228[[#This Row],[Daily Points]]="",NA(),Table228[[#This Row],[Daily Points]]/Table228[[#This Row],[Daily Points Possible]]) ->  | F193: week avg | G193: =AVERAGEIF(E189:E193,"<>#N/A") -> 
E194: =IF(Table228[[#This Row],[Daily Points]]="",NA(),Table228[[#This Row],[Daily Points]]/Table228[[#This Row],[Daily Points Possible]]) -> 
E195: =IF(Table228[[#This Row],[Daily Points]]="",NA(),Table228[[#This Row],[Daily Points]]/Table228[[#This Row],[Daily Points Possible]]) -> 
E196: =IF(Table228[[#This Row],[Daily Points]]="",NA(),Table228[[#This Row],[Daily Points]]/Table228[[#This Row],[Daily Points Possible]]) -> 
E197: =IF(Table228[[#This Row],[Daily Points]]="",NA(),Table228[[#This Row],[Daily Points]]/Table228[[#This Row],[Daily Points Possible]]) -> 
E198: =IF(Table228[[#This Row],[Daily Points]]="",NA(),Table228[[#This Row],[Daily Points]]/Table228[[#This Row],[Daily Points Possible]]) ->  | F198: week avg | G198: =AVERAGEIF(E194:E198,"<>#N/A") -> 
A199: =IF(A198,WORKDAY(A198,1),"") ->  | E199: =IF(Table228[[#This Row],[Daily Points]]="",NA(),Table228[[#This Row],[Daily Points]]/Table228[[#This Row],[Daily Points Possible]]) -> 
E200: =IF(Table228[[#This Row],[Daily Points]]="",NA(),Table228[[#This Row],[Daily Points]]/Table228[[#This Row],[Daily Points Possible]]) -> 
... 23 more rows

Sheet Student7
F1: GOAL
A2: =StudentInfo!B11 -> 0 | F2: =StudentInfo!AI11 -> 0
A3: Date | B3: Notes | C3: Daily Points Possible | D3: Daily Points | E3: Daily Percent | F3: Avg for Last 10 Days | G3: =AVERAGE(N(OFFSET(E4,LARGE(IF(ISNUMBER(E4:E223),ROW(E4:E223)-ROW(E4)),ROW(1:10)),0))) ->  | P3: Semester 1
E4: =IF(Table229[[#This Row],[Daily Points]]="",NA(),Table229[[#This Row],[Daily Points]]/Table229[[#This Row],[Daily Points Possible]]) -> 
A5: =IF(A4,WORKDAY(A4,1),"") ->  | E5: =IF(Table229[[#This Row],[Daily Points]]="",NA(),Table229[[#This Row],[Daily Points]]/Table229[[#This Row],[Daily Points Possible]]) -> 
E6: =IF(Table229[[#This Row],[Daily Points]]="",NA(),Table229[[#This Row],[Daily Points]]/Table229[[#This Row],[Daily Points Possible]]) -> 
E7: =IF(Table229[[#This Row],[Daily Points]]="",NA(),Table229[[#This Row],[Daily Points]]/Table229[[#This Row],[Daily Points Possible]]) -> 
E8: =IF(Table229[[#This Row],[Daily Points]]="",NA(),Table229[[#This Row],[Daily Points]]/Table229[[#This Row],[Daily Points Possible]]) ->  | F8: week avg | G8: =AVERAGEIF(E4:E8,"<>#N/A") -> 
E9: =IF(Table229[[#This Row],[Daily Points]]="",NA(),Table229[[#This Row],[Daily Points]]/Table229[[#This Row],[Daily Points Possible]]) -> 
E10: =IF(Table229[[#This Row],[Daily Points]]="",NA(),Table229[[#This Row],[Daily Points]]/Table229[[#This Row],[Daily Points Possible]]) -> 
E11: =IF(Table229[[#This Row],[Daily Points]]="",NA(),Table229[[#This Row],[Daily Points]]/Table229[[#This Row],[Daily Points Possible]]) -> 
E12: =IF(Table229[[#This Row],[Daily Points]]="",NA(),Table229[[#This Row],[Daily Points]]/Table229[[#This Row],[Daily Points Possible]]) -> 
E13: =IF(Table229[[#This Row],[Daily Points]]="",NA(),Table229[[#This Row],[Daily Points]]/Table229[[#This Row],[Daily Points Possible]]) ->  | F13: week avg | G13: =AVERAGEIF(E9:E13,"<>#N/A") -> 
E14: =IF(Table229[[#This Row],[Daily Points]]="",NA(),Table229[[#This Row],[Daily Points]]/Table229[[#This Row],[Daily Points Possible]]) -> 
E15: =IF(Table229[[#This Row],[Daily Points]]="",NA(),Table229[[#This Row],[Daily Points]]/Table229[[#This Row],[Daily Points Possible]]) -> 
E16: =IF(Table229[[#This Row],[Daily Points]]="",NA(),Table229[[#This Row],[Daily Points]]/Table229[[#This Row],[Daily Points Possible]]) -> 
E17: =IF(Table229[[#This Row],[Daily Points]]="",NA(),Table229[[#This Row],[Daily Points]]/Table229[[#This Row],[Daily Points Possible]]) -> 
E18: =IF(Table229[[#This Row],[Daily Points]]="",NA(),Table229[[#This Row],[Daily Points]]/Table229[[#This Row],[Daily Points Possible]]) ->  | F18: week avg | G18: =AVERAGEIF(E14:E18,"<>#N/A") -> 
E19: =IF(Table229[[#This Row],[Daily Points]]="",NA(),Table229[[#This Row],[Daily Points]]/Table229[[#This Row],[Daily Points Possible]]) -> 
E20: =IF(Table229[[#This Row],[Daily Points]]="",NA(),Table229[[#This Row],[Daily Points]]/Table229[[#This Row],[Daily Points Possible]]) -> 
E21: =IF(Table229[[#This Row],[Daily Points]]="",NA(),Table229[[#This Row],[Daily Points]]/Table229[[#This Row],[Daily Points Possible]]) -> 
E22: =IF(Table229[[#This Row],[Daily Points]]="",NA(),Table229[[#This Row],[Daily Points]]/Table229[[#This Row],[Daily Points Possible]]) ->  | P22: Semester 2
E23: =IF(Table229[[#This Row],[Daily Points]]="",NA(),Table229[[#This Row],[Daily Points]]/Table229[[#This Row],[Daily Points Possible]]) ->  | F23: week avg | G23: =AVERAGEIF(E19:E23,"<>#N/A") -> 
E24: =IF(Table229[[#This Row],[Daily Points]]="",NA(),Table229[[#This Row],[Daily Points]]/Table229[[#This Row],[Daily Points Possible]]) -> 
E25: =IF(Table229[[#This Row],[Daily Points]]="",NA(),Table229[[#This Row],[Daily Points]]/Table229[[#This Row],[Daily Points Possible]]) -> 
E26: =IF(Table229[[#This Row],[Daily Points]]="",NA(),Table229[[#This Row],[Daily Points]]/Table229[[#This Row],[Daily Points Possible]]) -> 
E27: =IF(Table229[[#This Row],[Daily Points]]="",NA(),Table229[[#This Row],[Daily Points]]/Table229[[#This Row],[Daily Points Possible]]) -> 
E28: =IF(Table229[[#This Row],[Daily Points]]="",NA(),Table229[[#This Row],[Daily Points]]/Table229[[#This Row],[Daily Points Possible]]) ->  | F28: week avg | G28: =AVERAGEIF(E24:E28,"<>#N/A") -> 
E29: =IF(Table229[[#This Row],[Daily Points]]="",NA(),Table229[[#This Row],[Daily Points]]/Table229[[#This Row],[Daily Points Possible]]) -> 
E30: =IF(Table229[[#This Row],[Daily Points]]="",NA(),Table229[[#This Row],[Daily Points]]/Table229[[#This Row],[Daily Points Possible]]) -> 
E31: =IF(Table229[[#This Row],[Daily Points]]="",NA(),Table229[[#This Row],[Daily Points]]/Table229[[#This Row],[Daily Points Possible]]) -> 
E32: =IF(Table229[[#This Row],[Daily Points]]="",NA(),Table229[[#This Row],[Daily Points]]/Table229[[#This Row],[Daily Points Possible]]) -> 
E33: =IF(Table229[[#This Row],[Daily Points]]="",NA(),Table229[[#This Row],[Daily Points]]/Table229[[#This Row],[Daily Points Possible]]) ->  | F33: week avg | G33: =AVERAGEIF(E29:E33,"<>#N/A") -> 
E34: =IF(Table229[[#This Row],[Daily Points]]="",NA(),Table229[[#This Row],[Daily Points]]/Table229[[#This Row],[Daily Points Possible]]) -> 
E35: =IF(Table229[[#This Row],[Daily Points]]="",NA(),Table229[[#This Row],[Daily Points]]/Table229[[#This Row],[Daily Points Possible]]) -> 
E36: =IF(Table229[[#This Row],[Daily Points]]="",NA(),Table229[[#This Row],[Daily Points]]/Table229[[#This Row],[Daily Points Possible]]) -> 
E37: =IF(Table229[[#This Row],[Daily Points]]="",NA(),Table229[[#This Row],[Daily Points]]/Table229[[#This Row],[Daily Points Possible]]) -> 
E38: =IF(Table229[[#This Row],[Daily Points]]="",NA(),Table229[[#This Row],[Daily Points]]/Table229[[#This Row],[Daily Points Possible]]) ->  | F38: week avg | G38: =AVERAGEIF(E34:E38,"<>#N/A") -> 
E39: =IF(Table229[[#This Row],[Daily Points]]="",NA(),Table229[[#This Row],[Daily Points]]/Table229[[#This Row],[Daily Points Possible]]) -> 
E40: =IF(Table229[[#This Row],[Daily Points]]="",NA(),Table229[[#This Row],[Daily Points]]/Table229[[#This Row],[Daily Points Possible]]) -> 
E41: =IF(Table229[[#This Row],[Daily Points]]="",NA(),Table229[[#This Row],[Daily Points]]/Table229[[#This Row],[Daily Points Possible]]) -> 
E42: =IF(Table229[[#This Row],[Daily Points]]="",NA(),Table229[[#This Row],[Daily Points]]/Table229[[#This Row],[Daily Points Possible]]) -> 
E43: =IF(Table229[[#This Row],[Daily Points]]="",NA(),Table229[[#This Row],[Daily Points]]/Table229[[#This Row],[Daily Points Possible]]) ->  | F43: week avg | G43: =AVERAGEIF(E39:E43,"<>#N/A") -> 
E44: =IF(Table229[[#This Row],[Daily Points]]="",NA(),Table229[[#This Row],[Daily Points]]/Table229[[#This Row],[Daily Points Possible]]) -> 
E45: =IF(Table229[[#This Row],[Daily Points]]="",NA(),Table229[[#This Row],[Daily Points]]/Table229[[#This Row],[Daily Points Possible]]) -> 
E46: =IF(Table229[[#This Row],[Daily Points]]="",NA(),Table229[[#This Row],[Daily Points]]/Table229[[#This Row],[Daily Points Possible]]) -> 
E47: =IF(Table229[[#This Row],[Daily Points]]="",NA(),Table229[[#This Row],[Daily Points]]/Table229[[#This Row],[Daily Points Possible]]) -> 
E48: =IF(Table229[[#This Row],[Daily Points]]="",NA(),Table229[[#This Row],[Daily Points]]/Table229[[#This Row],[Daily Points Possible]]) ->  | F48: week avg | G48: =AVERAGEIF(E44:E48,"<>#N/A") -> 
E49: =IF(Table229[[#This Row],[Daily Points]]="",NA(),Table229[[#This Row],[Daily Points]]/Table229[[#This Row],[Daily Points Possible]]) -> 
E50: =IF(Table229[[#This Row],[Daily Points]]="",NA(),Table229[[#This Row],[Daily Points]]/Table229[[#This Row],[Daily Points Possible]]) -> 
E51: =IF(Table229[[#This Row],[Daily Points]]="",NA(),Table229[[#This Row],[Daily Points]]/Table229[[#This Row],[Daily Points Possible]]) -> 
E52: =IF(Table229[[#This Row],[Daily Points]]="",NA(),Table229[[#This Row],[Daily Points]]/Table229[[#This Row],[Daily Points Possible]]) -> 
E53: =IF(Table229[[#This Row],[Daily Points]]="",NA(),Table229[[#This Row],[Daily Points]]/Table229[[#This Row],[Daily Points Possible]]) ->  | F53: week avg | G53: =AVERAGEIF(E49:E53,"<>#N/A") -> 
E54: =IF(Table229[[#This Row],[Daily Points]]="",NA(),Table229[[#This Row],[Daily Points]]/Table229[[#This Row],[Daily Points Possible]]) -> 
E55: =IF(Table229[[#This Row],[Daily Points]]="",NA(),Table229[[#This Row],[Daily Points]]/Table229[[#This Row],[Daily Points Possible]]) -> 
E56: =IF(Table229[[#This Row],[Daily Points]]="",NA(),Table229[[#This Row],[Daily Points]]/Table229[[#This Row],[Daily Points Possible]]) -> 
E57: =IF(Table229[[#This Row],[Daily Points]]="",NA(),Table229[[#This Row],[Daily Points]]/Table229[[#This Row],[Daily Points Possible]]) -> 
E58: =IF(Table229[[#This Row],[Daily Points]]="",NA(),Table229[[#This Row],[Daily Points]]/Table229[[#This Row],[Daily Points Possible]]) ->  | F58: week avg | G58: =AVERAGEIF(E54:E58,"<>#N/A") -> 
E59: =IF(Table229[[#This Row],[Daily Points]]="",NA(),Table229[[#This Row],[Daily Points]]/Table229[[#This Row],[Daily Points Possible]]) -> 
E60: =IF(Table229[[#This Row],[Daily Points]]="",NA(),Table229[[#This Row],[Daily Points]]/Table229[[#This Row],[Daily Points Possible]]) -> 
E61: =IF(Table229[[#This Row],[Daily Points]]="",NA(),Table229[[#This Row],[Daily Points]]/Table229[[#This Row],[Daily Points Possible]]) -> 
E62: =IF(Table229[[#This Row],[Daily Points]]="",NA(),Table229[[#This Row],[Daily Points]]/Table229[[#This Row],[Daily Points Possible]]) -> 
E63: =IF(Table229[[#This Row],[Daily Points]]="",NA(),Table229[[#This Row],[Daily Points]]/Table229[[#This Row],[Daily Points Possible]]) ->  | F63: week avg | G63: =AVERAGEIF(E59:E63,"<>#N/A") -> 
E64: =IF(Table229[[#This Row],[Daily Points]]="",NA(),Table229[[#This Row],[Daily Points]]/Table229[[#This Row],[Daily Points Possible]]) -> 
E65: =IF(Table229[[#This Row],[Daily Points]]="",NA(),Table229[[#This Row],[Daily Points]]/Table229[[#This Row],[Daily Points Possible]]) -> 
E66: =IF(Table229[[#This Row],[Daily Points]]="",NA(),Table229[[#This Row],[Daily Points]]/Table229[[#This Row],[Daily Points Possible]]) -> 
E67: =IF(Table229[[#This Row],[Daily Points]]="",NA(),Table229[[#This Row],[Daily Points]]/Table229[[#This Row],[Daily Points Possible]]) -> 
A68: =IF(A67,WORKDAY(A67,1),"") ->  | E68: =IF(Table229[[#This Row],[Daily Points]]="",NA(),Table229[[#This Row],[Daily Points]]/Table229[[#This Row],[Daily Points Possible]]) ->  | F68: week avg | G68: =AVERAGEIF(E64:E68,"<>#N/A") -> 
E69: =IF(Table229[[#This Row],[Daily Points]]="",NA(),Table229[[#This Row],[Daily Points]]/Table229[[#This Row],[Daily Points Possible]]) -> 
E70: =IF(Table229[[#This Row],[Daily Points]]="",NA(),Table229[[#This Row],[Daily Points]]/Table229[[#This Row],[Daily Points Possible]]) -> 
E71: =IF(Table229[[#This Row],[Daily Points]]="",NA(),Table229[[#This Row],[Daily Points]]/Table229[[#This Row],[Daily Points Possible]]) -> 
E72: =IF(Table229[[#This Row],[Daily Points]]="",NA(),Table229[[#This Row],[Daily Points]]/Table229[[#This Row],[Daily Points Possible]]) -> 
E73: =IF(Table229[[#This Row],[Daily Points]]="",NA(),Table229[[#This Row],[Daily Points]]/Table229[[#This Row],[Daily Points Possible]]) ->  | F73: week avg | G73: =AVERAGEIF(E69:E73,"<>#N/A") -> 
E74: =IF(Table229[[#This Row],[Daily Points]]="",NA(),Table229[[#This Row],[Daily Points]]/Table229[[#This Row],[Daily Points Possible]]) -> 
E75: =IF(Table229[[#This Row],[Daily Points]]="",NA(),Table229[[#This Row],[Daily Points]]/Table229[[#This Row],[Daily Points Possible]]) -> 
E76: =IF(Table229[[#This Row],[Daily Points]]="",NA(),Table229[[#This Row],[Daily Points]]/Table229[[#This Row],[Daily Points Possible]]) -> 
E77: =IF(Table229[[#This Row],[Daily Points]]="",NA(),Table229[[#This Row],[Daily Points]]/Table229[[#This Row],[Daily Points Possible]]) -> 
E78: =IF(Table229[[#This Row],[Daily Points]]="",NA(),Table229[[#This Row],[Daily Points]]/Table229[[#This Row],[Daily Points Possible]]) ->  | F78: week avg | G78: =AVERAGEIF(E74:E78,"<>#N/A") -> 
E79: =IF(Table229[[#This Row],[Daily Points]]="",NA(),Table229[[#This Row],[Daily Points]]/Table229[[#This Row],[Daily Points Possible]]) -> 
E80: =IF(Table229[[#This Row],[Daily Points]]="",NA(),Table229[[#This Row],[Daily Points]]/Table229[[#This Row],[Daily Points Possible]]) -> 
E81: =IF(Table229[[#This Row],[Daily Points]]="",NA(),Table229[[#This Row],[Daily Points]]/Table229[[#This Row],[Daily Points Possible]]) -> 
E82: =IF(Table229[[#This Row],[Daily Points]]="",NA(),Table229[[#This Row],[Daily Points]]/Table229[[#This Row],[Daily Points Possible]]) -> 
E83: =IF(Table229[[#This Row],[Daily Points]]="",NA(),Table229[[#This Row],[Daily Points]]/Table229[[#This Row],[Daily Points Possible]]) ->  | F83: week avg | G83: =AVERAGEIF(E79:E83,"<>#N/A") -> 
E84: =IF(Table229[[#This Row],[Daily Points]]="",NA(),Table229[[#This Row],[Daily Points]]/Table229[[#This Row],[Daily Points Possible]]) -> 
E85: =IF(Table229[[#This Row],[Daily Points]]="",NA(),Table229[[#This Row],[Daily Points]]/Table229[[#This Row],[Daily Points Possible]]) -> 
E86: =IF(Table229[[#This Row],[Daily Points]]="",NA(),Table229[[#This Row],[Daily Points]]/Table229[[#This Row],[Daily Points Possible]]) -> 
E87: =IF(Table229[[#This Row],[Daily Points]]="",NA(),Table229[[#This Row],[Daily Points]]/Table229[[#This Row],[Daily Points Possible]]) -> 
E88: =IF(Table229[[#This Row],[Daily Points]]="",NA(),Table229[[#This Row],[Daily Points]]/Table229[[#This Row],[Daily Points Possible]]) ->  | F88: week avg | G88: =AVERAGEIF(E84:E88,"<>#N/A") -> 
E89: =IF(Table229[[#This Row],[Daily Points]]="",NA(),Table229[[#This Row],[Daily Points]]/Table229[[#This Row],[Daily Points Possible]]) -> 
E90: =IF(Table229[[#This Row],[Daily Points]]="",NA(),Table229[[#This Row],[Daily Points]]/Table229[[#This Row],[Daily Points Possible]]) -> 
E91: =IF(Table229[[#This Row],[Daily Points]]="",NA(),Table229[[#This Row],[Daily Points]]/Table229[[#This Row],[Daily Points Possible]]) -> 
E92: =IF(Table229[[#This Row],[Daily Points]]="",NA(),Table229[[#This Row],[Daily Points]]/Table229[[#This Row],[Daily Points Possible]]) -> 
E93: =IF(Table229[[#This Row],[Daily Points]]="",NA(),Table229[[#This Row],[Daily Points]]/Table229[[#This Row],[Daily Points Possible]]) ->  | F93: week avg | G93: =AVERAGEIF(E89:E93,"<>#N/A") -> 
E94: =IF(Table229[[#This Row],[Daily Points]]="",NA(),Table229[[#This Row],[Daily Points]]/Table229[[#This Row],[Daily Points Possible]]) -> 
E95: =IF(Table229[[#This Row],[Daily Points]]="",NA(),Table229[[#This Row],[Daily Points]]/Table229[[#This Row],[Daily Points Possible]]) -> 
E96: =IF(Table229[[#This Row],[Daily Points]]="",NA(),Table229[[#This Row],[Daily Points]]/Table229[[#This Row],[Daily Points Possible]]) -> 
E97: =IF(Table229[[#This Row],[Daily Points]]="",NA(),Table229[[#This Row],[Daily Points]]/Table229[[#This Row],[Daily Points Possible]]) -> 
E98: =IF(Table229[[#This Row],[Daily Points]]="",NA(),Table229[[#This Row],[Daily Points]]/Table229[[#This Row],[Daily Points Possible]]) ->  | F98: week avg | G98: =AVERAGEIF(E94:E98,"<>#N/A") -> 
E99: =IF(Table229[[#This Row],[Daily Points]]="",NA(),Table229[[#This Row],[Daily Points]]/Table229[[#This Row],[Daily Points Possible]]) -> 
E100: =IF(Table229[[#This Row],[Daily Points]]="",NA(),Table229[[#This Row],[Daily Points]]/Table229[[#This Row],[Daily Points Possible]]) -> 
E101: =IF(Table229[[#This Row],[Daily Points]]="",NA(),Table229[[#This Row],[Daily Points]]/Table229[[#This Row],[Daily Points Possible]]) -> 
E102: =IF(Table229[[#This Row],[Daily Points]]="",NA(),Table229[[#This Row],[Daily Points]]/Table229[[#This Row],[Daily Points Possible]]) -> 
E103: =IF(Table229[[#This Row],[Daily Points]]="",NA(),Table229[[#This Row],[Daily Points]]/Table229[[#This Row],[Daily Points Possible]]) ->  | F103: week avg | G103: =AVERAGEIF(E99:E103,"<>#N/A") -> 
E104: =IF(Table229[[#This Row],[Daily Points]]="",NA(),Table229[[#This Row],[Daily Points]]/Table229[[#This Row],[Daily Points Possible]]) -> 
E105: =IF(Table229[[#This Row],[Daily Points]]="",NA(),Table229[[#This Row],[Daily Points]]/Table229[[#This Row],[Daily Points Possible]]) -> 
E106: =IF(Table229[[#This Row],[Daily Points]]="",NA(),Table229[[#This Row],[Daily Points]]/Table229[[#This Row],[Daily Points Possible]]) -> 
E107: =IF(Table229[[#This Row],[Daily Points]]="",NA(),Table229[[#This Row],[Daily Points]]/Table229[[#This Row],[Daily Points Possible]]) -> 
E108: =IF(Table229[[#This Row],[Daily Points]]="",NA(),Table229[[#This Row],[Daily Points]]/Table229[[#This Row],[Daily Points Possible]]) ->  | F108: week avg | G108: =AVERAGEIF(E104:E108,"<>#N/A") -> 
E109: =IF(Table229[[#This Row],[Daily Points]]="",NA(),Table229[[#This Row],[Daily Points]]/Table229[[#This Row],[Daily Points Possible]]) -> 
E110: =IF(Table229[[#This Row],[Daily Points]]="",NA(),Table229[[#This Row],[Daily Points]]/Table229[[#This Row],[Daily Points Possible]]) -> 
E111: =IF(Table229[[#This Row],[Daily Points]]="",NA(),Table229[[#This Row],[Daily Points]]/Table229[[#This Row],[Daily Points Possible]]) -> 
E112: =IF(Table229[[#This Row],[Daily Points]]="",NA(),Table229[[#This Row],[Daily Points]]/Table229[[#This Row],[Daily Points Possible]]) -> 
E113: =IF(Table229[[#This Row],[Daily Points]]="",NA(),Table229[[#This Row],[Daily Points]]/Table229[[#This Row],[Daily Points Possible]]) ->  | F113: week avg | G113: =AVERAGEIF(E109:E113,"<>#N/A") -> 
E114: =IF(Table229[[#This Row],[Daily Points]]="",NA(),Table229[[#This Row],[Daily Points]]/Table229[[#This Row],[Daily Points Possible]]) -> 
E115: =IF(Table229[[#This Row],[Daily Points]]="",NA(),Table229[[#This Row],[Daily Points]]/Table229[[#This Row],[Daily Points Possible]]) -> 
E116: =IF(Table229[[#This Row],[Daily Points]]="",NA(),Table229[[#This Row],[Daily Points]]/Table229[[#This Row],[Daily Points Possible]]) -> 
E117: =IF(Table229[[#This Row],[Daily Points]]="",NA(),Table229[[#This Row],[Daily Points]]/Table229[[#This Row],[Daily Points Possible]]) -> 
E118: =IF(Table229[[#This Row],[Daily Points]]="",NA(),Table229[[#This Row],[Daily Points]]/Table229[[#This Row],[Daily Points Possible]]) ->  | F118: week avg | G118: =AVERAGEIF(E114:E118,"<>#N/A") -> 
E119: =IF(Table229[[#This Row],[Daily Points]]="",NA(),Table229[[#This Row],[Daily Points]]/Table229[[#This Row],[Daily Points Possible]]) -> 
E120: =IF(Table229[[#This Row],[Daily Points]]="",NA(),Table229[[#This Row],[Daily Points]]/Table229[[#This Row],[Daily Points Possible]]) -> 
E121: =IF(Table229[[#This Row],[Daily Points]]="",NA(),Table229[[#This Row],[Daily Points]]/Table229[[#This Row],[Daily Points Possible]]) -> 
E122: =IF(Table229[[#This Row],[Daily Points]]="",NA(),Table229[[#This Row],[Daily Points]]/Table229[[#This Row],[Daily Points Possible]]) -> 
E123: =IF(Table229[[#This Row],[Daily Points]]="",NA(),Table229[[#This Row],[Daily Points]]/Table229[[#This Row],[Daily Points Possible]]) ->  | F123: week avg | G123: =AVERAGEIF(E119:E123,"<>#N/A") -> 
E124: =IF(Table229[[#This Row],[Daily Points]]="",NA(),Table229[[#This Row],[Daily Points]]/Table229[[#This Row],[Daily Points Possible]]) -> 
E125: =IF(Table229[[#This Row],[Daily Points]]="",NA(),Table229[[#This Row],[Daily Points]]/Table229[[#This Row],[Daily Points Possible]]) -> 
E126: =IF(Table229[[#This Row],[Daily Points]]="",NA(),Table229[[#This Row],[Daily Points]]/Table229[[#This Row],[Daily Points Possible]]) -> 
E127: =IF(Table229[[#This Row],[Daily Points]]="",NA(),Table229[[#This Row],[Daily Points]]/Table229[[#This Row],[Daily Points Possible]]) -> 
E128: =IF(Table229[[#This Row],[Daily Points]]="",NA(),Table229[[#This Row],[Daily Points]]/Table229[[#This Row],[Daily Points Possible]]) ->  | F128: week avg | G128: =AVERAGEIF(E124:E128,"<>#N/A") -> 
E129: =IF(Table229[[#This Row],[Daily Points]]="",NA(),Table229[[#This Row],[Daily Points]]/Table229[[#This Row],[Daily Points Possible]]) -> 
E130: =IF(Table229[[#This Row],[Daily Points]]="",NA(),Table229[[#This Row],[Daily Points]]/Table229[[#This Row],[Daily Points Possible]]) -> 
E131: =IF(Table229[[#This Row],[Daily Points]]="",NA(),Table229[[#This Row],[Daily Points]]/Table229[[#This Row],[Daily Points Possible]]) -> 
A132: =IF(A131,WORKDAY(A131,1),"") ->  | E132: =IF(Table229[[#This Row],[Daily Points]]="",NA(),Table229[[#This Row],[Daily Points]]/Table229[[#This Row],[Daily Points Possible]]) -> 
E133: =IF(Table229[[#This Row],[Daily Points]]="",NA(),Table229[[#This Row],[Daily Points]]/Table229[[#This Row],[Daily Points Possible]]) ->  | F133: week avg | G133: =AVERAGEIF(E129:E133,"<>#N/A") -> 
E134: =IF(Table229[[#This Row],[Daily Points]]="",NA(),Table229[[#This Row],[Daily Points]]/Table229[[#This Row],[Daily Points Possible]]) -> 
E135: =IF(Table229[[#This Row],[Daily Points]]="",NA(),Table229[[#This Row],[Daily Points]]/Table229[[#This Row],[Daily Points Possible]]) -> 
E136: =IF(Table229[[#This Row],[Daily Points]]="",NA(),Table229[[#This Row],[Daily Points]]/Table229[[#This Row],[Daily Points Possible]]) -> 
E137: =IF(Table229[[#This Row],[Daily Points]]="",NA(),Table229[[#This Row],[Daily Points]]/Table229[[#This Row],[Daily Points Possible]]) -> 
E138: =IF(Table229[[#This Row],[Daily Points]]="",NA(),Table229[[#This Row],[Daily Points]]/Table229[[#This Row],[Daily Points Possible]]) ->  | F138: week avg | G138: =AVERAGEIF(E134:E138,"<>#N/A") -> 
E139: =IF(Table229[[#This Row],[Daily Points]]="",NA(),Table229[[#This Row],[Daily Points]]/Table229[[#This Row],[Daily Points Possible]]) -> 
E140: =IF(Table229[[#This Row],[Daily Points]]="",NA(),Table229[[#This Row],[Daily Points]]/Table229[[#This Row],[Daily Points Possible]]) -> 
E141: =IF(Table229[[#This Row],[Daily Points]]="",NA(),Table229[[#This Row],[Daily Points]]/Table229[[#This Row],[Daily Points Possible]]) -> 
E142: =IF(Table229[[#This Row],[Daily Points]]="",NA(),Table229[[#This Row],[Daily Points]]/Table229[[#This Row],[Daily Points Possible]]) -> 
E143: =IF(Table229[[#This Row],[Daily Points]]="",NA(),Table229[[#This Row],[Daily Points]]/Table229[[#This Row],[Daily Points Possible]]) ->  | F143: week avg | G143: =AVERAGEIF(E139:E143,"<>#N/A") -> 
E144: =IF(Table229[[#This Row],[Daily Points]]="",NA(),Table229[[#This Row],[Daily Points]]/Table229[[#This Row],[Daily Points Possible]]) -> 
E145: =IF(Table229[[#This Row],[Daily Points]]="",NA(),Table229[[#This Row],[Daily Points]]/Table229[[#This Row],[Daily Points Possible]]) -> 
E146: =IF(Table229[[#This Row],[Daily Points]]="",NA(),Table229[[#This Row],[Daily Points]]/Table229[[#This Row],[Daily Points Possible]]) -> 
E147: =IF(Table229[[#This Row],[Daily Points]]="",NA(),Table229[[#This Row],[Daily Points]]/Table229[[#This Row],[Daily Points Possible]]) -> 
E148: =IF(Table229[[#This Row],[Daily Points]]="",NA(),Table229[[#This Row],[Daily Points]]/Table229[[#This Row],[Daily Points Possible]]) ->  | F148: week avg | G148: =AVERAGEIF(E144:E148,"<>#N/A") -> 
E149: =IF(Table229[[#This Row],[Daily Points]]="",NA(),Table229[[#This Row],[Daily Points]]/Table229[[#This Row],[Daily Points Possible]]) -> 
E150: =IF(Table229[[#This Row],[Daily Points]]="",NA(),Table229[[#This Row],[Daily Points]]/Table229[[#This Row],[Daily Points Possible]]) -> 
E151: =IF(Table229[[#This Row],[Daily Points]]="",NA(),Table229[[#This Row],[Daily Points]]/Table229[[#This Row],[Daily Points Possible]]) -> 
E152: =IF(Table229[[#This Row],[Daily Points]]="",NA(),Table229[[#This Row],[Daily Points]]/Table229[[#This Row],[Daily Points Possible]]) -> 
E153: =IF(Table229[[#This Row],[Daily Points]]="",NA(),Table229[[#This Row],[Daily Points]]/Table229[[#This Row],[Daily Points Possible]]) ->  | F153: week avg | G153: =AVERAGEIF(E149:E153,"<>#N/A") -> 
E154: =IF(Table229[[#This Row],[Daily Points]]="",NA(),Table229[[#This Row],[Daily Points]]/Table229[[#This Row],[Daily Points Possible]]) -> 
E155: =IF(Table229[[#This Row],[Daily Points]]="",NA(),Table229[[#This Row],[Daily Points]]/Table229[[#This Row],[Daily Points Possible]]) -> 
E156: =IF(Table229[[#This Row],[Daily Points]]="",NA(),Table229[[#This Row],[Daily Points]]/Table229[[#This Row],[Daily Points Possible]]) -> 
E157: =IF(Table229[[#This Row],[Daily Points]]="",NA(),Table229[[#This Row],[Daily Points]]/Table229[[#This Row],[Daily Points Possible]]) -> 
E158: =IF(Table229[[#This Row],[Daily Points]]="",NA(),Table229[[#This Row],[Daily Points]]/Table229[[#This Row],[Daily Points Possible]]) ->  | F158: week avg | G158: =AVERAGEIF(E154:E158,"<>#N/A") -> 
E159: =IF(Table229[[#This Row],[Daily Points]]="",NA(),Table229[[#This Row],[Daily Points]]/Table229[[#This Row],[Daily Points Possible]]) -> 
E160: =IF(Table229[[#This Row],[Daily Points]]="",NA(),Table229[[#This Row],[Daily Points]]/Table229[[#This Row],[Daily Points Possible]]) -> 
E161: =IF(Table229[[#This Row],[Daily Points]]="",NA(),Table229[[#This Row],[Daily Points]]/Table229[[#This Row],[Daily Points Possible]]) -> 
E162: =IF(Table229[[#This Row],[Daily Points]]="",NA(),Table229[[#This Row],[Daily Points]]/Table229[[#This Row],[Daily Points Possible]]) -> 
E163: =IF(Table229[[#This Row],[Daily Points]]="",NA(),Table229[[#This Row],[Daily Points]]/Table229[[#This Row],[Daily Points Possible]]) ->  | F163: week avg | G163: =AVERAGEIF(E159:E163,"<>#N/A") -> 
E164: =IF(Table229[[#This Row],[Daily Points]]="",NA(),Table229[[#This Row],[Daily Points]]/Table229[[#This Row],[Daily Points Possible]]) -> 
E165: =IF(Table229[[#This Row],[Daily Points]]="",NA(),Table229[[#This Row],[Daily Points]]/Table229[[#This Row],[Daily Points Possible]]) -> 
E166: =IF(Table229[[#This Row],[Daily Points]]="",NA(),Table229[[#This Row],[Daily Points]]/Table229[[#This Row],[Daily Points Possible]]) -> 
E167: =IF(Table229[[#This Row],[Daily Points]]="",NA(),Table229[[#This Row],[Daily Points]]/Table229[[#This Row],[Daily Points Possible]]) -> 
E168: =IF(Table229[[#This Row],[Daily Points]]="",NA(),Table229[[#This Row],[Daily Points]]/Table229[[#This Row],[Daily Points Possible]]) ->  | F168: week avg | G168: =AVERAGEIF(E164:E168,"<>#N/A") -> 
E169: =IF(Table229[[#This Row],[Daily Points]]="",NA(),Table229[[#This Row],[Daily Points]]/Table229[[#This Row],[Daily Points Possible]]) -> 
E170: =IF(Table229[[#This Row],[Daily Points]]="",NA(),Table229[[#This Row],[Daily Points]]/Table229[[#This Row],[Daily Points Possible]]) -> 
E171: =IF(Table229[[#This Row],[Daily Points]]="",NA(),Table229[[#This Row],[Daily Points]]/Table229[[#This Row],[Daily Points Possible]]) -> 
E172: =IF(Table229[[#This Row],[Daily Points]]="",NA(),Table229[[#This Row],[Daily Points]]/Table229[[#This Row],[Daily Points Possible]]) -> 
E173: =IF(Table229[[#This Row],[Daily Points]]="",NA(),Table229[[#This Row],[Daily Points]]/Table229[[#This Row],[Daily Points Possible]]) ->  | F173: week avg | G173: =AVERAGEIF(E169:E173,"<>#N/A") -> 
E174: =IF(Table229[[#This Row],[Daily Points]]="",NA(),Table229[[#This Row],[Daily Points]]/Table229[[#This Row],[Daily Points Possible]]) -> 
E175: =IF(Table229[[#This Row],[Daily Points]]="",NA(),Table229[[#This Row],[Daily Points]]/Table229[[#This Row],[Daily Points Possible]]) -> 
E176: =IF(Table229[[#This Row],[Daily Points]]="",NA(),Table229[[#This Row],[Daily Points]]/Table229[[#This Row],[Daily Points Possible]]) -> 
E177: =IF(Table229[[#This Row],[Daily Points]]="",NA(),Table229[[#This Row],[Daily Points]]/Table229[[#This Row],[Daily Points Possible]]) -> 
E178: =IF(Table229[[#This Row],[Daily Points]]="",NA(),Table229[[#This Row],[Daily Points]]/Table229[[#This Row],[Daily Points Possible]]) ->  | F178: week avg | G178: =AVERAGEIF(E174:E178,"<>#N/A") -> 
E179: =IF(Table229[[#This Row],[Daily Points]]="",NA(),Table229[[#This Row],[Daily Points]]/Table229[[#This Row],[Daily Points Possible]]) -> 
E180: =IF(Table229[[#This Row],[Daily Points]]="",NA(),Table229[[#This Row],[Daily Points]]/Table229[[#This Row],[Daily Points Possible]]) -> 
E181: =IF(Table229[[#This Row],[Daily Points]]="",NA(),Table229[[#This Row],[Daily Points]]/Table229[[#This Row],[Daily Points Possible]]) -> 
E182: =IF(Table229[[#This Row],[Daily Points]]="",NA(),Table229[[#This Row],[Daily Points]]/Table229[[#This Row],[Daily Points Possible]]) -> 
E183: =IF(Table229[[#This Row],[Daily Points]]="",NA(),Table229[[#This Row],[Daily Points]]/Table229[[#This Row],[Daily Points Possible]]) ->  | F183: week avg | G183: =AVERAGEIF(E179:E183,"<>#N/A") -> 
E184: =IF(Table229[[#This Row],[Daily Points]]="",NA(),Table229[[#This Row],[Daily Points]]/Table229[[#This Row],[Daily Points Possible]]) -> 
E185: =IF(Table229[[#This Row],[Daily Points]]="",NA(),Table229[[#This Row],[Daily Points]]/Table229[[#This Row],[Daily Points Possible]]) -> 
E186: =IF(Table229[[#This Row],[Daily Points]]="",NA(),Table229[[#This Row],[Daily Points]]/Table229[[#This Row],[Daily Points Possible]]) -> 
E187: =IF(Table229[[#This Row],[Daily Points]]="",NA(),Table229[[#This Row],[Daily Points]]/Table229[[#This Row],[Daily Points Possible]]) -> 
E188: =IF(Table229[[#This Row],[Daily Points]]="",NA(),Table229[[#This Row],[Daily Points]]/Table229[[#This Row],[Daily Points Possible]]) ->  | F188: week avg | G188: =AVERAGEIF(E184:E188,"<>#N/A") -> 
E189: =IF(Table229[[#This Row],[Daily Points]]="",NA(),Table229[[#This Row],[Daily Points]]/Table229[[#This Row],[Daily Points Possible]]) -> 
E190: =IF(Table229[[#This Row],[Daily Points]]="",NA(),Table229[[#This Row],[Daily Points]]/Table229[[#This Row],[Daily Points Possible]]) -> 
E191: =IF(Table229[[#This Row],[Daily Points]]="",NA(),Table229[[#This Row],[Daily Points]]/Table229[[#This Row],[Daily Points Possible]]) -> 
E192: =IF(Table229[[#This Row],[Daily Points]]="",NA(),Table229[[#This Row],[Daily Points]]/Table229[[#This Row],[Daily Points Possible]]) -> 
E193: =IF(Table229[[#This Row],[Daily Points]]="",NA(),Table229[[#This Row],[Daily Points]]/Table229[[#This Row],[Daily Points Possible]]) ->  | F193: week avg | G193: =AVERAGEIF(E189:E193,"<>#N/A") -> 
E194: =IF(Table229[[#This Row],[Daily Points]]="",NA(),Table229[[#This Row],[Daily Points]]/Table229[[#This Row],[Daily Points Possible]]) -> 
E195: =IF(Table229[[#This Row],[Daily Points]]="",NA(),Table229[[#This Row],[Daily Points]]/Table229[[#This Row],[Daily Points Possible]]) -> 
A196: =IF(A195,WORKDAY(A195,1),"") ->  | E196: =IF(Table229[[#This Row],[Daily Points]]="",NA(),Table229[[#This Row],[Daily Points]]/Table229[[#This Row],[Daily Points Possible]]) -> 
E197: =IF(Table229[[#This Row],[Daily Points]]="",NA(),Table229[[#This Row],[Daily Points]]/Table229[[#This Row],[Daily Points Possible]]) -> 
E198: =IF(Table229[[#This Row],[Daily Points]]="",NA(),Table229[[#This Row],[Daily Points]]/Table229[[#This Row],[Daily Points Possible]]) ->  | F198: week avg | G198: =AVERAGEIF(E194:E198,"<>#N/A") -> 
E199: =IF(Table229[[#This Row],[Daily Points]]="",NA(),Table229[[#This Row],[Daily Points]]/Table229[[#This Row],[Daily Points Possible]]) -> 
E200: =IF(Table229[[#This Row],[Daily Points]]="",NA(),Table229[[#This Row],[Daily Points]]/Table229[[#This Row],[Daily Points Possible]]) -> 
... 23 more rows

Sheet Student8
F1: GOAL
A2: =StudentInfo!B12 -> 0 | F2: =StudentInfo!AI12 -> 0
A3: Date | B3: Notes | C3: Daily Points Possible | D3: Daily Points | E3: Daily Percent | F3: Avg for Last 10 Days | G3: =AVERAGE(N(OFFSET(E4,LARGE(IF(ISNUMBER(E4:E223),ROW(E4:E223)-ROW(E4)),ROW(1:10)),0))) ->  | Q3: Semester 1
E4: =IF(Table2210[[#This Row],[Daily Points]]="",NA(),Table2210[[#This Row],[Daily Points]]/Table2210[[#This Row],[Daily Points Possible]]) -> 
A5: =IF(A4,WORKDAY(A4,1),"") ->  | E5: =IF(Table2210[[#This Row],[Daily Points]]="",NA(),Table2210[[#This Row],[Daily Points]]/Table2210[[#This Row],[Daily Points Possible]]) -> 
E6: =IF(Table2210[[#This Row],[Daily Points]]="",NA(),Table2210[[#This Row],[Daily Points]]/Table2210[[#This Row],[Daily Points Possible]]) -> 
E7: =IF(Table2210[[#This Row],[Daily Points]]="",NA(),Table2210[[#This Row],[Daily Points]]/Table2210[[#This Row],[Daily Points Possible]]) -> 
E8: =IF(Table2210[[#This Row],[Daily Points]]="",NA(),Table2210[[#This Row],[Daily Points]]/Table2210[[#This Row],[Daily Points Possible]]) ->  | F8: week avg | G8: =AVERAGEIF(E4:E8,"<>#N/A") -> 
E9: =IF(Table2210[[#This Row],[Daily Points]]="",NA(),Table2210[[#This Row],[Daily Points]]/Table2210[[#This Row],[Daily Points Possible]]) -> 
E10: =IF(Table2210[[#This Row],[Daily Points]]="",NA(),Table2210[[#This Row],[Daily Points]]/Table2210[[#This Row],[Daily Points Possible]]) -> 
E11: =IF(Table2210[[#This Row],[Daily Points]]="",NA(),Table2210[[#This Row],[Daily Points]]/Table2210[[#This Row],[Daily Points Possible]]) -> 
E12: =IF(Table2210[[#This Row],[Daily Points]]="",NA(),Table2210[[#This Row],[Daily Points]]/Table2210[[#This Row],[Daily Points Possible]]) -> 
E13: =IF(Table2210[[#This Row],[Daily Points]]="",NA(),Table2210[[#This Row],[Daily Points]]/Table2210[[#This Row],[Daily Points Possible]]) ->  | F13: week avg | G13: =AVERAGEIF(E9:E13,"<>#N/A") -> 
E14: =IF(Table2210[[#This Row],[Daily Points]]="",NA(),Table2210[[#This Row],[Daily Points]]/Table2210[[#This Row],[Daily Points Possible]]) -> 
E15: =IF(Table2210[[#This Row],[Daily Points]]="",NA(),Table2210[[#This Row],[Daily Points]]/Table2210[[#This Row],[Daily Points Possible]]) -> 
E16: =IF(Table2210[[#This Row],[Daily Points]]="",NA(),Table2210[[#This Row],[Daily Points]]/Table2210[[#This Row],[Daily Points Possible]]) -> 
E17: =IF(Table2210[[#This Row],[Daily Points]]="",NA(),Table2210[[#This Row],[Daily Points]]/Table2210[[#This Row],[Daily Points Possible]]) -> 
E18: =IF(Table2210[[#This Row],[Daily Points]]="",NA(),Table2210[[#This Row],[Daily Points]]/Table2210[[#This Row],[Daily Points Possible]]) ->  | F18: week avg | G18: =AVERAGEIF(E14:E18,"<>#N/A") -> 
E19: =IF(Table2210[[#This Row],[Daily Points]]="",NA(),Table2210[[#This Row],[Daily Points]]/Table2210[[#This Row],[Daily Points Possible]]) -> 
E20: =IF(Table2210[[#This Row],[Daily Points]]="",NA(),Table2210[[#This Row],[Daily Points]]/Table2210[[#This Row],[Daily Points Possible]]) -> 
E21: =IF(Table2210[[#This Row],[Daily Points]]="",NA(),Table2210[[#This Row],[Daily Points]]/Table2210[[#This Row],[Daily Points Possible]]) -> 
E22: =IF(Table2210[[#This Row],[Daily Points]]="",NA(),Table2210[[#This Row],[Daily Points]]/Table2210[[#This Row],[Daily Points Possible]]) ->  | Q22: Semester 2
E23: =IF(Table2210[[#This Row],[Daily Points]]="",NA(),Table2210[[#This Row],[Daily Points]]/Table2210[[#This Row],[Daily Points Possible]]) ->  | F23: week avg | G23: =AVERAGEIF(E19:E23,"<>#N/A") -> 
E24: =IF(Table2210[[#This Row],[Daily Points]]="",NA(),Table2210[[#This Row],[Daily Points]]/Table2210[[#This Row],[Daily Points Possible]]) -> 
E25: =IF(Table2210[[#This Row],[Daily Points]]="",NA(),Table2210[[#This Row],[Daily Points]]/Table2210[[#This Row],[Daily Points Possible]]) -> 
E26: =IF(Table2210[[#This Row],[Daily Points]]="",NA(),Table2210[[#This Row],[Daily Points]]/Table2210[[#This Row],[Daily Points Possible]]) -> 
E27: =IF(Table2210[[#This Row],[Daily Points]]="",NA(),Table2210[[#This Row],[Daily Points]]/Table2210[[#This Row],[Daily Points Possible]]) -> 
E28: =IF(Table2210[[#This Row],[Daily Points]]="",NA(),Table2210[[#This Row],[Daily Points]]/Table2210[[#This Row],[Daily Points Possible]]) ->  | F28: week avg | G28: =AVERAGEIF(E24:E28,"<>#N/A") -> 
E29: =IF(Table2210[[#This Row],[Daily Points]]="",NA(),Table2210[[#This Row],[Daily Points]]/Table2210[[#This Row],[Daily Points Possible]]) -> 
E30: =IF(Table2210[[#This Row],[Daily Points]]="",NA(),Table2210[[#This Row],[Daily Points]]/Table2210[[#This Row],[Daily Points Possible]]) -> 
E31: =IF(Table2210[[#This Row],[Daily Points]]="",NA(),Table2210[[#This Row],[Daily Points]]/Table2210[[#This Row],[Daily Points Possible]]) -> 
E32: =IF(Table2210[[#This Row],[Daily Points]]="",NA(),Table2210[[#This Row],[Daily Points]]/Table2210[[#This Row],[Daily Points Possible]]) -> 
E33: =IF(Table2210[[#This Row],[Daily Points]]="",NA(),Table2210[[#This Row],[Daily Points]]/Table2210[[#This Row],[Daily Points Possible]]) ->  | F33: week avg | G33: =AVERAGEIF(E29:E33,"<>#N/A") -> 
E34: =IF(Table2210[[#This Row],[Daily Points]]="",NA(),Table2210[[#This Row],[Daily Points]]/Table2210[[#This Row],[Daily Points Possible]]) -> 
E35: =IF(Table2210[[#This Row],[Daily Points]]="",NA(),Table2210[[#This Row],[Daily Points]]/Table2210[[#This Row],[Daily Points Possible]]) -> 
E36: =IF(Table2210[[#This Row],[Daily Points]]="",NA(),Table2210[[#This Row],[Daily Points]]/Table2210[[#This Row],[Daily Points Possible]]) -> 
E37: =IF(Table2210[[#This Row],[Daily Points]]="",NA(),Table2210[[#This Row],[Daily Points]]/Table2210[[#This Row],[Daily Points Possible]]) -> 
E38: =IF(Table2210[[#This Row],[Daily Points]]="",NA(),Table2210[[#This Row],[Daily Points]]/Table2210[[#This Row],[Daily Points Possible]]) ->  | F38: week avg | G38: =AVERAGEIF(E34:E38,"<>#N/A") -> 
E39: =IF(Table2210[[#This Row],[Daily Points]]="",NA(),Table2210[[#This Row],[Daily Points]]/Table2210[[#This Row],[Daily Points Possible]]) -> 
E40: =IF(Table2210[[#This Row],[Daily Points]]="",NA(),Table2210[[#This Row],[Daily Points]]/Table2210[[#This Row],[Daily Points Possible]]) -> 
E41: =IF(Table2210[[#This Row],[Daily Points]]="",NA(),Table2210[[#This Row],[Daily Points]]/Table2210[[#This Row],[Daily Points Possible]]) -> 
E42: =IF(Table2210[[#This Row],[Daily Points]]="",NA(),Table2210[[#This Row],[Daily Points]]/Table2210[[#This Row],[Daily Points Possible]]) -> 
E43: =IF(Table2210[[#This Row],[Daily Points]]="",NA(),Table2210[[#This Row],[Daily Points]]/Table2210[[#This Row],[Daily Points Possible]]) ->  | F43: week avg | G43: =AVERAGEIF(E39:E43,"<>#N/A") -> 
E44: =IF(Table2210[[#This Row],[Daily Points]]="",NA(),Table2210[[#This Row],[Daily Points]]/Table2210[[#This Row],[Daily Points Possible]]) -> 
E45: =IF(Table2210[[#This Row],[Daily Points]]="",NA(),Table2210[[#This Row],[Daily Points]]/Table2210[[#This Row],[Daily Points Possible]]) -> 
E46: =IF(Table2210[[#This Row],[Daily Points]]="",NA(),Table2210[[#This Row],[Daily Points]]/Table2210[[#This Row],[Daily Points Possible]]) -> 
E47: =IF(Table2210[[#This Row],[Daily Points]]="",NA(),Table2210[[#This Row],[Daily Points]]/Table2210[[#This Row],[Daily Points Possible]]) -> 
E48: =IF(Table2210[[#This Row],[Daily Points]]="",NA(),Table2210[[#This Row],[Daily Points]]/Table2210[[#This Row],[Daily Points Possible]]) ->  | F48: week avg | G48: =AVERAGEIF(E44:E48,"<>#N/A") -> 
E49: =IF(Table2210[[#This Row],[Daily Points]]="",NA(),Table2210[[#This Row],[Daily Points]]/Table2210[[#This Row],[Daily Points Possible]]) -> 
E50: =IF(Table2210[[#This Row],[Daily Points]]="",NA(),Table2210[[#This Row],[Daily Points]]/Table2210[[#This Row],[Daily Points Possible]]) -> 
E51: =IF(Table2210[[#This Row],[Daily Points]]="",NA(),Table2210[[#This Row],[Daily Points]]/Table2210[[#This Row],[Daily Points Possible]]) -> 
E52: =IF(Table2210[[#This Row],[Daily Points]]="",NA(),Table2210[[#This Row],[Daily Points]]/Table2210[[#This Row],[Daily Points Possible]]) -> 
E53: =IF(Table2210[[#This Row],[Daily Points]]="",NA(),Table2210[[#This Row],[Daily Points]]/Table2210[[#This Row],[Daily Points Possible]]) ->  | F53: week avg | G53: =AVERAGEIF(E49:E53,"<>#N/A") -> 
E54: =IF(Table2210[[#This Row],[Daily Points]]="",NA(),Table2210[[#This Row],[Daily Points]]/Table2210[[#This Row],[Daily Points Possible]]) -> 
E55: =IF(Table2210[[#This Row],[Daily Points]]="",NA(),Table2210[[#This Row],[Daily Points]]/Table2210[[#This Row],[Daily Points Possible]]) -> 
E56: =IF(Table2210[[#This Row],[Daily Points]]="",NA(),Table2210[[#This Row],[Daily Points]]/Table2210[[#This Row],[Daily Points Possible]]) -> 
E57: =IF(Table2210[[#This Row],[Daily Points]]="",NA(),Table2210[[#This Row],[Daily Points]]/Table2210[[#This Row],[Daily Points Possible]]) -> 
E58: =IF(Table2210[[#This Row],[Daily Points]]="",NA(),Table2210[[#This Row],[Daily Points]]/Table2210[[#This Row],[Daily Points Possible]]) ->  | F58: week avg | G58: =AVERAGEIF(E54:E58,"<>#N/A") -> 
E59: =IF(Table2210[[#This Row],[Daily Points]]="",NA(),Table2210[[#This Row],[Daily Points]]/Table2210[[#This Row],[Daily Points Possible]]) -> 
E60: =IF(Table2210[[#This Row],[Daily Points]]="",NA(),Table2210[[#This Row],[Daily Points]]/Table2210[[#This Row],[Daily Points Possible]]) -> 
E61: =IF(Table2210[[#This Row],[Daily Points]]="",NA(),Table2210[[#This Row],[Daily Points]]/Table2210[[#This Row],[Daily Points Possible]]) -> 
E62: =IF(Table2210[[#This Row],[Daily Points]]="",NA(),Table2210[[#This Row],[Daily Points]]/Table2210[[#This Row],[Daily Points Possible]]) -> 
E63: =IF(Table2210[[#This Row],[Daily Points]]="",NA(),Table2210[[#This Row],[Daily Points]]/Table2210[[#This Row],[Daily Points Possible]]) ->  | F63: week avg | G63: =AVERAGEIF(E59:E63,"<>#N/A") -> 
E64: =IF(Table2210[[#This Row],[Daily Points]]="",NA(),Table2210[[#This Row],[Daily Points]]/Table2210[[#This Row],[Daily Points Possible]]) -> 
E65: =IF(Table2210[[#This Row],[Daily Points]]="",NA(),Table2210[[#This Row],[Daily Points]]/Table2210[[#This Row],[Daily Points Possible]]) -> 
E66: =IF(Table2210[[#This Row],[Daily Points]]="",NA(),Table2210[[#This Row],[Daily Points]]/Table2210[[#This Row],[Daily Points Possible]]) -> 
E67: =IF(Table2210[[#This Row],[Daily Points]]="",NA(),Table2210[[#This Row],[Daily Points]]/Table2210[[#This Row],[Daily Points Possible]]) -> 
A68: =IF(A67,WORKDAY(A67,1),"") ->  | E68: =IF(Table2210[[#This Row],[Daily Points]]="",NA(),Table2210[[#This Row],[Daily Points]]/Table2210[[#This Row],[Daily Points Possible]]) ->  | F68: week avg | G68: =AVERAGEIF(E64:E68,"<>#N/A") -> 
E69: =IF(Table2210[[#This Row],[Daily Points]]="",NA(),Table2210[[#This Row],[Daily Points]]/Table2210[[#This Row],[Daily Points Possible]]) -> 
E70: =IF(Table2210[[#This Row],[Daily Points]]="",NA(),Table2210[[#This Row],[Daily Points]]/Table2210[[#This Row],[Daily Points Possible]]) -> 
E71: =IF(Table2210[[#This Row],[Daily Points]]="",NA(),Table2210[[#This Row],[Daily Points]]/Table2210[[#This Row],[Daily Points Possible]]) -> 
E72: =IF(Table2210[[#This Row],[Daily Points]]="",NA(),Table2210[[#This Row],[Daily Points]]/Table2210[[#This Row],[Daily Points Possible]]) -> 
E73: =IF(Table2210[[#This Row],[Daily Points]]="",NA(),Table2210[[#This Row],[Daily Points]]/Table2210[[#This Row],[Daily Points Possible]]) ->  | F73: week avg | G73: =AVERAGEIF(E69:E73,"<>#N/A") -> 
E74: =IF(Table2210[[#This Row],[Daily Points]]="",NA(),Table2210[[#This Row],[Daily Points]]/Table2210[[#This Row],[Daily Points Possible]]) -> 
E75: =IF(Table2210[[#This Row],[Daily Points]]="",NA(),Table2210[[#This Row],[Daily Points]]/Table2210[[#This Row],[Daily Points Possible]]) -> 
E76: =IF(Table2210[[#This Row],[Daily Points]]="",NA(),Table2210[[#This Row],[Daily Points]]/Table2210[[#This Row],[Daily Points Possible]]) -> 
E77: =IF(Table2210[[#This Row],[Daily Points]]="",NA(),Table2210[[#This Row],[Daily Points]]/Table2210[[#This Row],[Daily Points Possible]]) -> 
E78: =IF(Table2210[[#This Row],[Daily Points]]="",NA(),Table2210[[#This Row],[Daily Points]]/Table2210[[#This Row],[Daily Points Possible]]) ->  | F78: week avg | G78: =AVERAGEIF(E74:E78,"<>#N/A") -> 
E79: =IF(Table2210[[#This Row],[Daily Points]]="",NA(),Table2210[[#This Row],[Daily Points]]/Table2210[[#This Row],[Daily Points Possible]]) -> 
E80: =IF(Table2210[[#This Row],[Daily Points]]="",NA(),Table2210[[#This Row],[Daily Points]]/Table2210[[#This Row],[Daily Points Possible]]) -> 
E81: =IF(Table2210[[#This Row],[Daily Points]]="",NA(),Table2210[[#This Row],[Daily Points]]/Table2210[[#This Row],[Daily Points Possible]]) -> 
E82: =IF(Table2210[[#This Row],[Daily Points]]="",NA(),Table2210[[#This Row],[Daily Points]]/Table2210[[#This Row],[Daily Points Possible]]) -> 
E83: =IF(Table2210[[#This Row],[Daily Points]]="",NA(),Table2210[[#This Row],[Daily Points]]/Table2210[[#This Row],[Daily Points Possible]]) ->  | F83: week avg | G83: =AVERAGEIF(E79:E83,"<>#N/A") -> 
E84: =IF(Table2210[[#This Row],[Daily Points]]="",NA(),Table2210[[#This Row],[Daily Points]]/Table2210[[#This Row],[Daily Points Possible]]) -> 
E85: =IF(Table2210[[#This Row],[Daily Points]]="",NA(),Table2210[[#This Row],[Daily Points]]/Table2210[[#This Row],[Daily Points Possible]]) -> 
E86: =IF(Table2210[[#This Row],[Daily Points]]="",NA(),Table2210[[#This Row],[Daily Points]]/Table2210[[#This Row],[Daily Points Possible]]) -> 
E87: =IF(Table2210[[#This Row],[Daily Points]]="",NA(),Table2210[[#This Row],[Daily Points]]/Table2210[[#This Row],[Daily Points Possible]]) -> 
E88: =IF(Table2210[[#This Row],[Daily Points]]="",NA(),Table2210[[#This Row],[Daily Points]]/Table2210[[#This Row],[Daily Points Possible]]) ->  | F88: week avg | G88: =AVERAGEIF(E84:E88,"<>#N/A") -> 
E89: =IF(Table2210[[#This Row],[Daily Points]]="",NA(),Table2210[[#This Row],[Daily Points]]/Table2210[[#This Row],[Daily Points Possible]]) -> 
E90: =IF(Table2210[[#This Row],[Daily Points]]="",NA(),Table2210[[#This Row],[Daily Points]]/Table2210[[#This Row],[Daily Points Possible]]) -> 
E91: =IF(Table2210[[#This Row],[Daily Points]]="",NA(),Table2210[[#This Row],[Daily Points]]/Table2210[[#This Row],[Daily Points Possible]]) -> 
E92: =IF(Table2210[[#This Row],[Daily Points]]="",NA(),Table2210[[#This Row],[Daily Points]]/Table2210[[#This Row],[Daily Points Possible]]) -> 
E93: =IF(Table2210[[#This Row],[Daily Points]]="",NA(),Table2210[[#This Row],[Daily Points]]/Table2210[[#This Row],[Daily Points Possible]]) ->  | F93: week avg | G93: =AVERAGEIF(E89:E93,"<>#N/A") -> 
E94: =IF(Table2210[[#This Row],[Daily Points]]="",NA(),Table2210[[#This Row],[Daily Points]]/Table2210[[#This Row],[Daily Points Possible]]) -> 
E95: =IF(Table2210[[#This Row],[Daily Points]]="",NA(),Table2210[[#This Row],[Daily Points]]/Table2210[[#This Row],[Daily Points Possible]]) -> 
E96: =IF(Table2210[[#This Row],[Daily Points]]="",NA(),Table2210[[#This Row],[Daily Points]]/Table2210[[#This Row],[Daily Points Possible]]) -> 
E97: =IF(Table2210[[#This Row],[Daily Points]]="",NA(),Table2210[[#This Row],[Daily Points]]/Table2210[[#This Row],[Daily Points Possible]]) -> 
E98: =IF(Table2210[[#This Row],[Daily Points]]="",NA(),Table2210[[#This Row],[Daily Points]]/Table2210[[#This Row],[Daily Points Possible]]) ->  | F98: week avg | G98: =AVERAGEIF(E94:E98,"<>#N/A") -> 
E99: =IF(Table2210[[#This Row],[Daily Points]]="",NA(),Table2210[[#This Row],[Daily Points]]/Table2210[[#This Row],[Daily Points Possible]]) -> 
E100: =IF(Table2210[[#This Row],[Daily Points]]="",NA(),Table2210[[#This Row],[Daily Points]]/Table2210[[#This Row],[Daily Points Possible]]) -> 
E101: =IF(Table2210[[#This Row],[Daily Points]]="",NA(),Table2210[[#This Row],[Daily Points]]/Table2210[[#This Row],[Daily Points Possible]]) -> 
E102: =IF(Table2210[[#This Row],[Daily Points]]="",NA(),Table2210[[#This Row],[Daily Points]]/Table2210[[#This Row],[Daily Points Possible]]) -> 
E103: =IF(Table2210[[#This Row],[Daily Points]]="",NA(),Table2210[[#This Row],[Daily Points]]/Table2210[[#This Row],[Daily Points Possible]]) ->  | F103: week avg | G103: =AVERAGEIF(E99:E103,"<>#N/A") -> 
E104: =IF(Table2210[[#This Row],[Daily Points]]="",NA(),Table2210[[#This Row],[Daily Points]]/Table2210[[#This Row],[Daily Points Possible]]) -> 
E105: =IF(Table2210[[#This Row],[Daily Points]]="",NA(),Table2210[[#This Row],[Daily Points]]/Table2210[[#This Row],[Daily Points Possible]]) -> 
E106: =IF(Table2210[[#This Row],[Daily Points]]="",NA(),Table2210[[#This Row],[Daily Points]]/Table2210[[#This Row],[Daily Points Possible]]) -> 
E107: =IF(Table2210[[#This Row],[Daily Points]]="",NA(),Table2210[[#This Row],[Daily Points]]/Table2210[[#This Row],[Daily Points Possible]]) -> 
E108: =IF(Table2210[[#This Row],[Daily Points]]="",NA(),Table2210[[#This Row],[Daily Points]]/Table2210[[#This Row],[Daily Points Possible]]) ->  | F108: week avg | G108: =AVERAGEIF(E104:E108,"<>#N/A") -> 
E109: =IF(Table2210[[#This Row],[Daily Points]]="",NA(),Table2210[[#This Row],[Daily Points]]/Table2210[[#This Row],[Daily Points Possible]]) -> 
E110: =IF(Table2210[[#This Row],[Daily Points]]="",NA(),Table2210[[#This Row],[Daily Points]]/Table2210[[#This Row],[Daily Points Possible]]) -> 
E111: =IF(Table2210[[#This Row],[Daily Points]]="",NA(),Table2210[[#This Row],[Daily Points]]/Table2210[[#This Row],[Daily Points Possible]]) -> 
E112: =IF(Table2210[[#This Row],[Daily Points]]="",NA(),Table2210[[#This Row],[Daily Points]]/Table2210[[#This Row],[Daily Points Possible]]) -> 
E113: =IF(Table2210[[#This Row],[Daily Points]]="",NA(),Table2210[[#This Row],[Daily Points]]/Table2210[[#This Row],[Daily Points Possible]]) ->  | F113: week avg | G113: =AVERAGEIF(E109:E113,"<>#N/A") -> 
E114: =IF(Table2210[[#This Row],[Daily Points]]="",NA(),Table2210[[#This Row],[Daily Points]]/Table2210[[#This Row],[Daily Points Possible]]) -> 
E115: =IF(Table2210[[#This Row],[Daily Points]]="",NA(),Table2210[[#This Row],[Daily Points]]/Table2210[[#This Row],[Daily Points Possible]]) -> 
E116: =IF(Table2210[[#This Row],[Daily Points]]="",NA(),Table2210[[#This Row],[Daily Points]]/Table2210[[#This Row],[Daily Points Possible]]) -> 
E117: =IF(Table2210[[#This Row],[Daily Points]]="",NA(),Table2210[[#This Row],[Daily Points]]/Table2210[[#This Row],[Daily Points Possible]]) -> 
E118: =IF(Table2210[[#This Row],[Daily Points]]="",NA(),Table2210[[#This Row],[Daily Points]]/Table2210[[#This Row],[Daily Points Possible]]) ->  | F118: week avg | G118: =AVERAGEIF(E114:E118,"<>#N/A") -> 
E119: =IF(Table2210[[#This Row],[Daily Points]]="",NA(),Table2210[[#This Row],[Daily Points]]/Table2210[[#This Row],[Daily Points Possible]]) -> 
E120: =IF(Table2210[[#This Row],[Daily Points]]="",NA(),Table2210[[#This Row],[Daily Points]]/Table2210[[#This Row],[Daily Points Possible]]) -> 
E121: =IF(Table2210[[#This Row],[Daily Points]]="",NA(),Table2210[[#This Row],[Daily Points]]/Table2210[[#This Row],[Daily Points Possible]]) -> 
E122: =IF(Table2210[[#This Row],[Daily Points]]="",NA(),Table2210[[#This Row],[Daily Points]]/Table2210[[#This Row],[Daily Points Possible]]) -> 
E123: =IF(Table2210[[#This Row],[Daily Points]]="",NA(),Table2210[[#This Row],[Daily Points]]/Table2210[[#This Row],[Daily Points Possible]]) ->  | F123: week avg | G123: =AVERAGEIF(E119:E123,"<>#N/A") -> 
E124: =IF(Table2210[[#This Row],[Daily Points]]="",NA(),Table2210[[#This Row],[Daily Points]]/Table2210[[#This Row],[Daily Points Possible]]) -> 
E125: =IF(Table2210[[#This Row],[Daily Points]]="",NA(),Table2210[[#This Row],[Daily Points]]/Table2210[[#This Row],[Daily Points Possible]]) -> 
E126: =IF(Table2210[[#This Row],[Daily Points]]="",NA(),Table2210[[#This Row],[Daily Points]]/Table2210[[#This Row],[Daily Points Possible]]) -> 
E127: =IF(Table2210[[#This Row],[Daily Points]]="",NA(),Table2210[[#This Row],[Daily Points]]/Table2210[[#This Row],[Daily Points Possible]]) -> 
E128: =IF(Table2210[[#This Row],[Daily Points]]="",NA(),Table2210[[#This Row],[Daily Points]]/Table2210[[#This Row],[Daily Points Possible]]) ->  | F128: week avg | G128: =AVERAGEIF(E124:E128,"<>#N/A") -> 
E129: =IF(Table2210[[#This Row],[Daily Points]]="",NA(),Table2210[[#This Row],[Daily Points]]/Table2210[[#This Row],[Daily Points Possible]]) -> 
E130: =IF(Table2210[[#This Row],[Daily Points]]="",NA(),Table2210[[#This Row],[Daily Points]]/Table2210[[#This Row],[Daily Points Possible]]) -> 
E131: =IF(Table2210[[#This Row],[Daily Points]]="",NA(),Table2210[[#This Row],[Daily Points]]/Table2210[[#This Row],[Daily Points Possible]]) -> 
A132: =IF(A131,WORKDAY(A131,1),"") ->  | E132: =IF(Table2210[[#This Row],[Daily Points]]="",NA(),Table2210[[#This Row],[Daily Points]]/Table2210[[#This Row],[Daily Points Possible]]) -> 
E133: =IF(Table2210[[#This Row],[Daily Points]]="",NA(),Table2210[[#This Row],[Daily Points]]/Table2210[[#This Row],[Daily Points Possible]]) ->  | F133: week avg | G133: =AVERAGEIF(E129:E133,"<>#N/A") -> 
E134: =IF(Table2210[[#This Row],[Daily Points]]="",NA(),Table2210[[#This Row],[Daily Points]]/Table2210[[#This Row],[Daily Points Possible]]) -> 
E135: =IF(Table2210[[#This Row],[Daily Points]]="",NA(),Table2210[[#This Row],[Daily Points]]/Table2210[[#This Row],[Daily Points Possible]]) -> 
E136: =IF(Table2210[[#This Row],[Daily Points]]="",NA(),Table2210[[#This Row],[Daily Points]]/Table2210[[#This Row],[Daily Points Possible]]) -> 
E137: =IF(Table2210[[#This Row],[Daily Points]]="",NA(),Table2210[[#This Row],[Daily Points]]/Table2210[[#This Row],[Daily Points Possible]]) -> 
E138: =IF(Table2210[[#This Row],[Daily Points]]="",NA(),Table2210[[#This Row],[Daily Points]]/Table2210[[#This Row],[Daily Points Possible]]) ->  | F138: week avg | G138: =AVERAGEIF(E134:E138,"<>#N/A") -> 
E139: =IF(Table2210[[#This Row],[Daily Points]]="",NA(),Table2210[[#This Row],[Daily Points]]/Table2210[[#This Row],[Daily Points Possible]]) -> 
E140: =IF(Table2210[[#This Row],[Daily Points]]="",NA(),Table2210[[#This Row],[Daily Points]]/Table2210[[#This Row],[Daily Points Possible]]) -> 
E141: =IF(Table2210[[#This Row],[Daily Points]]="",NA(),Table2210[[#This Row],[Daily Points]]/Table2210[[#This Row],[Daily Points Possible]]) -> 
E142: =IF(Table2210[[#This Row],[Daily Points]]="",NA(),Table2210[[#This Row],[Daily Points]]/Table2210[[#This Row],[Daily Points Possible]]) -> 
E143: =IF(Table2210[[#This Row],[Daily Points]]="",NA(),Table2210[[#This Row],[Daily Points]]/Table2210[[#This Row],[Daily Points Possible]]) ->  | F143: week avg | G143: =AVERAGEIF(E139:E143,"<>#N/A") -> 
E144: =IF(Table2210[[#This Row],[Daily Points]]="",NA(),Table2210[[#This Row],[Daily Points]]/Table2210[[#This Row],[Daily Points Possible]]) -> 
E145: =IF(Table2210[[#This Row],[Daily Points]]="",NA(),Table2210[[#This Row],[Daily Points]]/Table2210[[#This Row],[Daily Points Possible]]) -> 
E146: =IF(Table2210[[#This Row],[Daily Points]]="",NA(),Table2210[[#This Row],[Daily Points]]/Table2210[[#This Row],[Daily Points Possible]]) -> 
E147: =IF(Table2210[[#This Row],[Daily Points]]="",NA(),Table2210[[#This Row],[Daily Points]]/Table2210[[#This Row],[Daily Points Possible]]) -> 
E148: =IF(Table2210[[#This Row],[Daily Points]]="",NA(),Table2210[[#This Row],[Daily Points]]/Table2210[[#This Row],[Daily Points Possible]]) ->  | F148: week avg | G148: =AVERAGEIF(E144:E148,"<>#N/A") -> 
E149: =IF(Table2210[[#This Row],[Daily Points]]="",NA(),Table2210[[#This Row],[Daily Points]]/Table2210[[#This Row],[Daily Points Possible]]) -> 
E150: =IF(Table2210[[#This Row],[Daily Points]]="",NA(),Table2210[[#This Row],[Daily Points]]/Table2210[[#This Row],[Daily Points Possible]]) -> 
E151: =IF(Table2210[[#This Row],[Daily Points]]="",NA(),Table2210[[#This Row],[Daily Points]]/Table2210[[#This Row],[Daily Points Possible]]) -> 
E152: =IF(Table2210[[#This Row],[Daily Points]]="",NA(),Table2210[[#This Row],[Daily Points]]/Table2210[[#This Row],[Daily Points Possible]]) -> 
E153: =IF(Table2210[[#This Row],[Daily Points]]="",NA(),Table2210[[#This Row],[Daily Points]]/Table2210[[#This Row],[Daily Points Possible]]) ->  | F153: week avg | G153: =AVERAGEIF(E149:E153,"<>#N/A") -> 
E154: =IF(Table2210[[#This Row],[Daily Points]]="",NA(),Table2210[[#This Row],[Daily Points]]/Table2210[[#This Row],[Daily Points Possible]]) -> 
E155: =IF(Table2210[[#This Row],[Daily Points]]="",NA(),Table2210[[#This Row],[Daily Points]]/Table2210[[#This Row],[Daily Points Possible]]) -> 
E156: =IF(Table2210[[#This Row],[Daily Points]]="",NA(),Table2210[[#This Row],[Daily Points]]/Table2210[[#This Row],[Daily Points Possible]]) -> 
E157: =IF(Table2210[[#This Row],[Daily Points]]="",NA(),Table2210[[#This Row],[Daily Points]]/Table2210[[#This Row],[Daily Points Possible]]) -> 
E158: =IF(Table2210[[#This Row],[Daily Points]]="",NA(),Table2210[[#This Row],[Daily Points]]/Table2210[[#This Row],[Daily Points Possible]]) ->  | F158: week avg | G158: =AVERAGEIF(E154:E158,"<>#N/A") -> 
E159: =IF(Table2210[[#This Row],[Daily Points]]="",NA(),Table2210[[#This Row],[Daily Points]]/Table2210[[#This Row],[Daily Points Possible]]) -> 
E160: =IF(Table2210[[#This Row],[Daily Points]]="",NA(),Table2210[[#This Row],[Daily Points]]/Table2210[[#This Row],[Daily Points Possible]]) -> 
E161: =IF(Table2210[[#This Row],[Daily Points]]="",NA(),Table2210[[#This Row],[Daily Points]]/Table2210[[#This Row],[Daily Points Possible]]) -> 
E162: =IF(Table2210[[#This Row],[Daily Points]]="",NA(),Table2210[[#This Row],[Daily Points]]/Table2210[[#This Row],[Daily Points Possible]]) -> 
E163: =IF(Table2210[[#This Row],[Daily Points]]="",NA(),Table2210[[#This Row],[Daily Points]]/Table2210[[#This Row],[Daily Points Possible]]) ->  | F163: week avg | G163: =AVERAGEIF(E159:E163,"<>#N/A") -> 
E164: =IF(Table2210[[#This Row],[Daily Points]]="",NA(),Table2210[[#This Row],[Daily Points]]/Table2210[[#This Row],[Daily Points Possible]]) -> 
E165: =IF(Table2210[[#This Row],[Daily Points]]="",NA(),Table2210[[#This Row],[Daily Points]]/Table2210[[#This Row],[Daily Points Possible]]) -> 
E166: =IF(Table2210[[#This Row],[Daily Points]]="",NA(),Table2210[[#This Row],[Daily Points]]/Table2210[[#This Row],[Daily Points Possible]]) -> 
E167: =IF(Table2210[[#This Row],[Daily Points]]="",NA(),Table2210[[#This Row],[Daily Points]]/Table2210[[#This Row],[Daily Points Possible]]) -> 
E168: =IF(Table2210[[#This Row],[Daily Points]]="",NA(),Table2210[[#This Row],[Daily Points]]/Table2210[[#This Row],[Daily Points Possible]]) ->  | F168: week avg | G168: =AVERAGEIF(E164:E168,"<>#N/A") -> 
E169: =IF(Table2210[[#This Row],[Daily Points]]="",NA(),Table2210[[#This Row],[Daily Points]]/Table2210[[#This Row],[Daily Points Possible]]) -> 
E170: =IF(Table2210[[#This Row],[Daily Points]]="",NA(),Table2210[[#This Row],[Daily Points]]/Table2210[[#This Row],[Daily Points Possible]]) -> 
E171: =IF(Table2210[[#This Row],[Daily Points]]="",NA(),Table2210[[#This Row],[Daily Points]]/Table2210[[#This Row],[Daily Points Possible]]) -> 
E172: =IF(Table2210[[#This Row],[Daily Points]]="",NA(),Table2210[[#This Row],[Daily Points]]/Table2210[[#This Row],[Daily Points Possible]]) -> 
E173: =IF(Table2210[[#This Row],[Daily Points]]="",NA(),Table2210[[#This Row],[Daily Points]]/Table2210[[#This Row],[Daily Points Possible]]) ->  | F173: week avg | G173: =AVERAGEIF(E169:E173,"<>#N/A") -> 
E174: =IF(Table2210[[#This Row],[Daily Points]]="",NA(),Table2210[[#This Row],[Daily Points]]/Table2210[[#This Row],[Daily Points Possible]]) -> 
E175: =IF(Table2210[[#This Row],[Daily Points]]="",NA(),Table2210[[#This Row],[Daily Points]]/Table2210[[#This Row],[Daily Points Possible]]) -> 
E176: =IF(Table2210[[#This Row],[Daily Points]]="",NA(),Table2210[[#This Row],[Daily Points]]/Table2210[[#This Row],[Daily Points Possible]]) -> 
E177: =IF(Table2210[[#This Row],[Daily Points]]="",NA(),Table2210[[#This Row],[Daily Points]]/Table2210[[#This Row],[Daily Points Possible]]) -> 
E178: =IF(Table2210[[#This Row],[Daily Points]]="",NA(),Table2210[[#This Row],[Daily Points]]/Table2210[[#This Row],[Daily Points Possible]]) ->  | F178: week avg | G178: =AVERAGEIF(E174:E178,"<>#N/A") -> 
E179: =IF(Table2210[[#This Row],[Daily Points]]="",NA(),Table2210[[#This Row],[Daily Points]]/Table2210[[#This Row],[Daily Points Possible]]) -> 
E180: =IF(Table2210[[#This Row],[Daily Points]]="",NA(),Table2210[[#This Row],[Daily Points]]/Table2210[[#This Row],[Daily Points Possible]]) -> 
E181: =IF(Table2210[[#This Row],[Daily Points]]="",NA(),Table2210[[#This Row],[Daily Points]]/Table2210[[#This Row],[Daily Points Possible]]) -> 
E182: =IF(Table2210[[#This Row],[Daily Points]]="",NA(),Table2210[[#This Row],[Daily Points]]/Table2210[[#This Row],[Daily Points Possible]]) -> 
E183: =IF(Table2210[[#This Row],[Daily Points]]="",NA(),Table2210[[#This Row],[Daily Points]]/Table2210[[#This Row],[Daily Points Possible]]) ->  | F183: week avg | G183: =AVERAGEIF(E179:E183,"<>#N/A") -> 
E184: =IF(Table2210[[#This Row],[Daily Points]]="",NA(),Table2210[[#This Row],[Daily Points]]/Table2210[[#This Row],[Daily Points Possible]]) -> 
E185: =IF(Table2210[[#This Row],[Daily Points]]="",NA(),Table2210[[#This Row],[Daily Points]]/Table2210[[#This Row],[Daily Points Possible]]) -> 
E186: =IF(Table2210[[#This Row],[Daily Points]]="",NA(),Table2210[[#This Row],[Daily Points]]/Table2210[[#This Row],[Daily Points Possible]]) -> 
E187: =IF(Table2210[[#This Row],[Daily Points]]="",NA(),Table2210[[#This Row],[Daily Points]]/Table2210[[#This Row],[Daily Points Possible]]) -> 
E188: =IF(Table2210[[#This Row],[Daily Points]]="",NA(),Table2210[[#This Row],[Daily Points]]/Table2210[[#This Row],[Daily Points Possible]]) ->  | F188: week avg | G188: =AVERAGEIF(E184:E188,"<>#N/A") -> 
E189: =IF(Table2210[[#This Row],[Daily Points]]="",NA(),Table2210[[#This Row],[Daily Points]]/Table2210[[#This Row],[Daily Points Possible]]) -> 
E190: =IF(Table2210[[#This Row],[Daily Points]]="",NA(),Table2210[[#This Row],[Daily Points]]/Table2210[[#This Row],[Daily Points Possible]]) -> 
E191: =IF(Table2210[[#This Row],[Daily Points]]="",NA(),Table2210[[#This Row],[Daily Points]]/Table2210[[#This Row],[Daily Points Possible]]) -> 
E192: =IF(Table2210[[#This Row],[Daily Points]]="",NA(),Table2210[[#This Row],[Daily Points]]/Table2210[[#This Row],[Daily Points Possible]]) -> 
E193: =IF(Table2210[[#This Row],[Daily Points]]="",NA(),Table2210[[#This Row],[Daily Points]]/Table2210[[#This Row],[Daily Points Possible]]) ->  | F193: week avg | G193: =AVERAGEIF(E189:E193,"<>#N/A") -> 
E194: =IF(Table2210[[#This Row],[Daily Points]]="",NA(),Table2210[[#This Row],[Daily Points]]/Table2210[[#This Row],[Daily Points Possible]]) -> 
E195: =IF(Table2210[[#This Row],[Daily Points]]="",NA(),Table2210[[#This Row],[Daily Points]]/Table2210[[#This Row],[Daily Points Possible]]) -> 
A196: =IF(A195,WORKDAY(A195,1),"") ->  | E196: =IF(Table2210[[#This Row],[Daily Points]]="",NA(),Table2210[[#This Row],[Daily Points]]/Table2210[[#This Row],[Daily Points Possible]]) -> 
E197: =IF(Table2210[[#This Row],[Daily Points]]="",NA(),Table2210[[#This Row],[Daily Points]]/Table2210[[#This Row],[Daily Points Possible]]) -> 
E198: =IF(Table2210[[#This Row],[Daily Points]]="",NA(),Table2210[[#This Row],[Daily Points]]/Table2210[[#This Row],[Daily Points Possible]]) ->  | F198: week avg | G198: =AVERAGEIF(E194:E198,"<>#N/A") -> 
E199: =IF(Table2210[[#This Row],[Daily Points]]="",NA(),Table2210[[#This Row],[Daily Points]]/Table2210[[#This Row],[Daily Points Possible]]) -> 
E200: =IF(Table2210[[#This Row],[Daily Points]]="",NA(),Table2210[[#This Row],[Daily Points]]/Table2210[[#This Row],[Daily Points Possible]]) -> 
... 23 more rows

Sheet Student9
F1: GOAL
A2: =StudentInfo!B13 -> 0 | F2: =StudentInfo!AI13 -> 0
A3: Date | B3: Notes | C3: Daily Points Possible | D3: Daily Points | E3: Daily Percent | F3: Avg for Last 10 Days | G3: =AVERAGE(N(OFFSET(E4,LARGE(IF(ISNUMBER(E4:E223),ROW(E4:E223)-ROW(E4)),ROW(1:10)),0))) ->  | Q3: Semester 1
E4: =IF(Table2211[[#This Row],[Daily Points]]="",NA(),Table2211[[#This Row],[Daily Points]]/Table2211[[#This Row],[Daily Points Possible]]) -> 
A5: =IF(A4,WORKDAY(A4,1),"") ->  | E5: =IF(Table2211[[#This Row],[Daily Points]]="",NA(),Table2211[[#This Row],[Daily Points]]/Table2211[[#This Row],[Daily Points Possible]]) -> 
E6: =IF(Table2211[[#This Row],[Daily Points]]="",NA(),Table2211[[#This Row],[Daily Points]]/Table2211[[#This Row],[Daily Points Possible]]) -> 
E7: =IF(Table2211[[#This Row],[Daily Points]]="",NA(),Table2211[[#This Row],[Daily Points]]/Table2211[[#This Row],[Daily Points Possible]]) -> 
E8: =IF(Table2211[[#This Row],[Daily Points]]="",NA(),Table2211[[#This Row],[Daily Points]]/Table2211[[#This Row],[Daily Points Possible]]) ->  | F8: week avg | G8: =AVERAGEIF(E4:E8,"<>#N/A") -> 
E9: =IF(Table2211[[#This Row],[Daily Points]]="",NA(),Table2211[[#This Row],[Daily Points]]/Table2211[[#This Row],[Daily Points Possible]]) -> 
E10: =IF(Table2211[[#This Row],[Daily Points]]="",NA(),Table2211[[#This Row],[Daily Points]]/Table2211[[#This Row],[Daily Points Possible]]) -> 
E11: =IF(Table2211[[#This Row],[Daily Points]]="",NA(),Table2211[[#This Row],[Daily Points]]/Table2211[[#This Row],[Daily Points Possible]]) -> 
E12: =IF(Table2211[[#This Row],[Daily Points]]="",NA(),Table2211[[#This Row],[Daily Points]]/Table2211[[#This Row],[Daily Points Possible]]) -> 
E13: =IF(Table2211[[#This Row],[Daily Points]]="",NA(),Table2211[[#This Row],[Daily Points]]/Table2211[[#This Row],[Daily Points Possible]]) ->  | F13: week avg | G13: =AVERAGEIF(E9:E13,"<>#N/A") -> 
E14: =IF(Table2211[[#This Row],[Daily Points]]="",NA(),Table2211[[#This Row],[Daily Points]]/Table2211[[#This Row],[Daily Points Possible]]) -> 
E15: =IF(Table2211[[#This Row],[Daily Points]]="",NA(),Table2211[[#This Row],[Daily Points]]/Table2211[[#This Row],[Daily Points Possible]]) -> 
E16: =IF(Table2211[[#This Row],[Daily Points]]="",NA(),Table2211[[#This Row],[Daily Points]]/Table2211[[#This Row],[Daily Points Possible]]) -> 
E17: =IF(Table2211[[#This Row],[Daily Points]]="",NA(),Table2211[[#This Row],[Daily Points]]/Table2211[[#This Row],[Daily Points Possible]]) -> 
E18: =IF(Table2211[[#This Row],[Daily Points]]="",NA(),Table2211[[#This Row],[Daily Points]]/Table2211[[#This Row],[Daily Points Possible]]) ->  | F18: week avg | G18: =AVERAGEIF(E14:E18,"<>#N/A") -> 
E19: =IF(Table2211[[#This Row],[Daily Points]]="",NA(),Table2211[[#This Row],[Daily Points]]/Table2211[[#This Row],[Daily Points Possible]]) -> 
E20: =IF(Table2211[[#This Row],[Daily Points]]="",NA(),Table2211[[#This Row],[Daily Points]]/Table2211[[#This Row],[Daily Points Possible]]) -> 
E21: =IF(Table2211[[#This Row],[Daily Points]]="",NA(),Table2211[[#This Row],[Daily Points]]/Table2211[[#This Row],[Daily Points Possible]]) -> 
E22: =IF(Table2211[[#This Row],[Daily Points]]="",NA(),Table2211[[#This Row],[Daily Points]]/Table2211[[#This Row],[Daily Points Possible]]) ->  | Q22: Semester 2
E23: =IF(Table2211[[#This Row],[Daily Points]]="",NA(),Table2211[[#This Row],[Daily Points]]/Table2211[[#This Row],[Daily Points Possible]]) ->  | F23: week avg | G23: =AVERAGEIF(E19:E23,"<>#N/A") -> 
E24: =IF(Table2211[[#This Row],[Daily Points]]="",NA(),Table2211[[#This Row],[Daily Points]]/Table2211[[#This Row],[Daily Points Possible]]) -> 
E25: =IF(Table2211[[#This Row],[Daily Points]]="",NA(),Table2211[[#This Row],[Daily Points]]/Table2211[[#This Row],[Daily Points Possible]]) -> 
E26: =IF(Table2211[[#This Row],[Daily Points]]="",NA(),Table2211[[#This Row],[Daily Points]]/Table2211[[#This Row],[Daily Points Possible]]) -> 
E27: =IF(Table2211[[#This Row],[Daily Points]]="",NA(),Table2211[[#This Row],[Daily Points]]/Table2211[[#This Row],[Daily Points Possible]]) -> 
E28: =IF(Table2211[[#This Row],[Daily Points]]="",NA(),Table2211[[#This Row],[Daily Points]]/Table2211[[#This Row],[Daily Points Possible]]) ->  | F28: week avg | G28: =AVERAGEIF(E24:E28,"<>#N/A") -> 
E29: =IF(Table2211[[#This Row],[Daily Points]]="",NA(),Table2211[[#This Row],[Daily Points]]/Table2211[[#This Row],[Daily Points Possible]]) -> 
E30: =IF(Table2211[[#This Row],[Daily Points]]="",NA(),Table2211[[#This Row],[Daily Points]]/Table2211[[#This Row],[Daily Points Possible]]) -> 
E31: =IF(Table2211[[#This Row],[Daily Points]]="",NA(),Table2211[[#This Row],[Daily Points]]/Table2211[[#This Row],[Daily Points Possible]]) -> 
E32: =IF(Table2211[[#This Row],[Daily Points]]="",NA(),Table2211[[#This Row],[Daily Points]]/Table2211[[#This Row],[Daily Points Possible]]) -> 
E33: =IF(Table2211[[#This Row],[Daily Points]]="",NA(),Table2211[[#This Row],[Daily Points]]/Table2211[[#This Row],[Daily Points Possible]]) ->  | F33: week avg | G33: =AVERAGEIF(E29:E33,"<>#N/A") -> 
E34: =IF(Table2211[[#This Row],[Daily Points]]="",NA(),Table2211[[#This Row],[Daily Points]]/Table2211[[#This Row],[Daily Points Possible]]) -> 
E35: =IF(Table2211[[#This Row],[Daily Points]]="",NA(),Table2211[[#This Row],[Daily Points]]/Table2211[[#This Row],[Daily Points Possible]]) -> 
E36: =IF(Table2211[[#This Row],[Daily Points]]="",NA(),Table2211[[#This Row],[Daily Points]]/Table2211[[#This Row],[Daily Points Possible]]) -> 
E37: =IF(Table2211[[#This Row],[Daily Points]]="",NA(),Table2211[[#This Row],[Daily Points]]/Table2211[[#This Row],[Daily Points Possible]]) -> 
E38: =IF(Table2211[[#This Row],[Daily Points]]="",NA(),Table2211[[#This Row],[Daily Points]]/Table2211[[#This Row],[Daily Points Possible]]) ->  | F38: week avg | G38: =AVERAGEIF(E34:E38,"<>#N/A") -> 
E39: =IF(Table2211[[#This Row],[Daily Points]]="",NA(),Table2211[[#This Row],[Daily Points]]/Table2211[[#This Row],[Daily Points Possible]]) -> 
E40: =IF(Table2211[[#This Row],[Daily Points]]="",NA(),Table2211[[#This Row],[Daily Points]]/Table2211[[#This Row],[Daily Points Possible]]) -> 
E41: =IF(Table2211[[#This Row],[Daily Points]]="",NA(),Table2211[[#This Row],[Daily Points]]/Table2211[[#This Row],[Daily Points Possible]]) -> 
E42: =IF(Table2211[[#This Row],[Daily Points]]="",NA(),Table2211[[#This Row],[Daily Points]]/Table2211[[#This Row],[Daily Points Possible]]) -> 
E43: =IF(Table2211[[#This Row],[Daily Points]]="",NA(),Table2211[[#This Row],[Daily Points]]/Table2211[[#This Row],[Daily Points Possible]]) ->  | F43: week avg | G43: =AVERAGEIF(E39:E43,"<>#N/A") -> 
E44: =IF(Table2211[[#This Row],[Daily Points]]="",NA(),Table2211[[#This Row],[Daily Points]]/Table2211[[#This Row],[Daily Points Possible]]) -> 
E45: =IF(Table2211[[#This Row],[Daily Points]]="",NA(),Table2211[[#This Row],[Daily Points]]/Table2211[[#This Row],[Daily Points Possible]]) -> 
E46: =IF(Table2211[[#This Row],[Daily Points]]="",NA(),Table2211[[#This Row],[Daily Points]]/Table2211[[#This Row],[Daily Points Possible]]) -> 
E47: =IF(Table2211[[#This Row],[Daily Points]]="",NA(),Table2211[[#This Row],[Daily Points]]/Table2211[[#This Row],[Daily Points Possible]]) -> 
E48: =IF(Table2211[[#This Row],[Daily Points]]="",NA(),Table2211[[#This Row],[Daily Points]]/Table2211[[#This Row],[Daily Points Possible]]) ->  | F48: week avg | G48: =AVERAGEIF(E44:E48,"<>#N/A") -> 
E49: =IF(Table2211[[#This Row],[Daily Points]]="",NA(),Table2211[[#This Row],[Daily Points]]/Table2211[[#This Row],[Daily Points Possible]]) -> 
E50: =IF(Table2211[[#This Row],[Daily Points]]="",NA(),Table2211[[#This Row],[Daily Points]]/Table2211[[#This Row],[Daily Points Possible]]) -> 
E51: =IF(Table2211[[#This Row],[Daily Points]]="",NA(),Table2211[[#This Row],[Daily Points]]/Table2211[[#This Row],[Daily Points Possible]]) -> 
E52: =IF(Table2211[[#This Row],[Daily Points]]="",NA(),Table2211[[#This Row],[Daily Points]]/Table2211[[#This Row],[Daily Points Possible]]) -> 
E53: =IF(Table2211[[#This Row],[Daily Points]]="",NA(),Table2211[[#This Row],[Daily Points]]/Table2211[[#This Row],[Daily Points Possible]]) ->  | F53: week avg | G53: =AVERAGEIF(E49:E53,"<>#N/A") -> 
E54: =IF(Table2211[[#This Row],[Daily Points]]="",NA(),Table2211[[#This Row],[Daily Points]]/Table2211[[#This Row],[Daily Points Possible]]) -> 
E55: =IF(Table2211[[#This Row],[Daily Points]]="",NA(),Table2211[[#This Row],[Daily Points]]/Table2211[[#This Row],[Daily Points Possible]]) -> 
E56: =IF(Table2211[[#This Row],[Daily Points]]="",NA(),Table2211[[#This Row],[Daily Points]]/Table2211[[#This Row],[Daily Points Possible]]) -> 
E57: =IF(Table2211[[#This Row],[Daily Points]]="",NA(),Table2211[[#This Row],[Daily Points]]/Table2211[[#This Row],[Daily Points Possible]]) -> 
E58: =IF(Table2211[[#This Row],[Daily Points]]="",NA(),Table2211[[#This Row],[Daily Points]]/Table2211[[#This Row],[Daily Points Possible]]) ->  | F58: week avg | G58: =AVERAGEIF(E54:E58,"<>#N/A") -> 
E59: =IF(Table2211[[#This Row],[Daily Points]]="",NA(),Table2211[[#This Row],[Daily Points]]/Table2211[[#This Row],[Daily Points Possible]]) -> 
E60: =IF(Table2211[[#This Row],[Daily Points]]="",NA(),Table2211[[#This Row],[Daily Points]]/Table2211[[#This Row],[Daily Points Possible]]) -> 
E61: =IF(Table2211[[#This Row],[Daily Points]]="",NA(),Table2211[[#This Row],[Daily Points]]/Table2211[[#This Row],[Daily Points Possible]]) -> 
E62: =IF(Table2211[[#This Row],[Daily Points]]="",NA(),Table2211[[#This Row],[Daily Points]]/Table2211[[#This Row],[Daily Points Possible]]) -> 
E63: =IF(Table2211[[#This Row],[Daily Points]]="",NA(),Table2211[[#This Row],[Daily Points]]/Table2211[[#This Row],[Daily Points Possible]]) ->  | F63: week avg | G63: =AVERAGEIF(E59:E63,"<>#N/A") -> 
E64: =IF(Table2211[[#This Row],[Daily Points]]="",NA(),Table2211[[#This Row],[Daily Points]]/Table2211[[#This Row],[Daily Points Possible]]) -> 
E65: =IF(Table2211[[#This Row],[Daily Points]]="",NA(),Table2211[[#This Row],[Daily Points]]/Table2211[[#This Row],[Daily Points Possible]]) -> 
E66: =IF(Table2211[[#This Row],[Daily Points]]="",NA(),Table2211[[#This Row],[Daily Points]]/Table2211[[#This Row],[Daily Points Possible]]) -> 
E67: =IF(Table2211[[#This Row],[Daily Points]]="",NA(),Table2211[[#This Row],[Daily Points]]/Table2211[[#This Row],[Daily Points Possible]]) -> 
A68: =IF(A67,WORKDAY(A67,1),"") ->  | E68: =IF(Table2211[[#This Row],[Daily Points]]="",NA(),Table2211[[#This Row],[Daily Points]]/Table2211[[#This Row],[Daily Points Possible]]) ->  | F68: week avg | G68: =AVERAGEIF(E64:E68,"<>#N/A") -> 
E69: =IF(Table2211[[#This Row],[Daily Points]]="",NA(),Table2211[[#This Row],[Daily Points]]/Table2211[[#This Row],[Daily Points Possible]]) -> 
E70: =IF(Table2211[[#This Row],[Daily Points]]="",NA(),Table2211[[#This Row],[Daily Points]]/Table2211[[#This Row],[Daily Points Possible]]) -> 
E71: =IF(Table2211[[#This Row],[Daily Points]]="",NA(),Table2211[[#This Row],[Daily Points]]/Table2211[[#This Row],[Daily Points Possible]]) -> 
E72: =IF(Table2211[[#This Row],[Daily Points]]="",NA(),Table2211[[#This Row],[Daily Points]]/Table2211[[#This Row],[Daily Points Possible]]) -> 
E73: =IF(Table2211[[#This Row],[Daily Points]]="",NA(),Table2211[[#This Row],[Daily Points]]/Table2211[[#This Row],[Daily Points Possible]]) ->  | F73: week avg | G73: =AVERAGEIF(E69:E73,"<>#N/A") -> 
E74: =IF(Table2211[[#This Row],[Daily Points]]="",NA(),Table2211[[#This Row],[Daily Points]]/Table2211[[#This Row],[Daily Points Possible]]) -> 
E75: =IF(Table2211[[#This Row],[Daily Points]]="",NA(),Table2211[[#This Row],[Daily Points]]/Table2211[[#This Row],[Daily Points Possible]]) -> 
E76: =IF(Table2211[[#This Row],[Daily Points]]="",NA(),Table2211[[#This Row],[Daily Points]]/Table2211[[#This Row],[Daily Points Possible]]) -> 
E77: =IF(Table2211[[#This Row],[Daily Points]]="",NA(),Table2211[[#This Row],[Daily Points]]/Table2211[[#This Row],[Daily Points Possible]]) -> 
E78: =IF(Table2211[[#This Row],[Daily Points]]="",NA(),Table2211[[#This Row],[Daily Points]]/Table2211[[#This Row],[Daily Points Possible]]) ->  | F78: week avg | G78: =AVERAGEIF(E74:E78,"<>#N/A") -> 
E79: =IF(Table2211[[#This Row],[Daily Points]]="",NA(),Table2211[[#This Row],[Daily Points]]/Table2211[[#This Row],[Daily Points Possible]]) -> 
E80: =IF(Table2211[[#This Row],[Daily Points]]="",NA(),Table2211[[#This Row],[Daily Points]]/Table2211[[#This Row],[Daily Points Possible]]) -> 
E81: =IF(Table2211[[#This Row],[Daily Points]]="",NA(),Table2211[[#This Row],[Daily Points]]/Table2211[[#This Row],[Daily Points Possible]]) -> 
E82: =IF(Table2211[[#This Row],[Daily Points]]="",NA(),Table2211[[#This Row],[Daily Points]]/Table2211[[#This Row],[Daily Points Possible]]) -> 
E83: =IF(Table2211[[#This Row],[Daily Points]]="",NA(),Table2211[[#This Row],[Daily Points]]/Table2211[[#This Row],[Daily Points Possible]]) ->  | F83: week avg | G83: =AVERAGEIF(E79:E83,"<>#N/A") -> 
E84: =IF(Table2211[[#This Row],[Daily Points]]="",NA(),Table2211[[#This Row],[Daily Points]]/Table2211[[#This Row],[Daily Points Possible]]) -> 
E85: =IF(Table2211[[#This Row],[Daily Points]]="",NA(),Table2211[[#This Row],[Daily Points]]/Table2211[[#This Row],[Daily Points Possible]]) -> 
E86: =IF(Table2211[[#This Row],[Daily Points]]="",NA(),Table2211[[#This Row],[Daily Points]]/Table2211[[#This Row],[Daily Points Possible]]) -> 
E87: =IF(Table2211[[#This Row],[Daily Points]]="",NA(),Table2211[[#This Row],[Daily Points]]/Table2211[[#This Row],[Daily Points Possible]]) -> 
E88: =IF(Table2211[[#This Row],[Daily Points]]="",NA(),Table2211[[#This Row],[Daily Points]]/Table2211[[#This Row],[Daily Points Possible]]) ->  | F88: week avg | G88: =AVERAGEIF(E84:E88,"<>#N/A") -> 
E89: =IF(Table2211[[#This Row],[Daily Points]]="",NA(),Table2211[[#This Row],[Daily Points]]/Table2211[[#This Row],[Daily Points Possible]]) -> 
E90: =IF(Table2211[[#This Row],[Daily Points]]="",NA(),Table2211[[#This Row],[Daily Points]]/Table2211[[#This Row],[Daily Points Possible]]) -> 
E91: =IF(Table2211[[#This Row],[Daily Points]]="",NA(),Table2211[[#This Row],[Daily Points]]/Table2211[[#This Row],[Daily Points Possible]]) -> 
E92: =IF(Table2211[[#This Row],[Daily Points]]="",NA(),Table2211[[#This Row],[Daily Points]]/Table2211[[#This Row],[Daily Points Possible]]) -> 
E93: =IF(Table2211[[#This Row],[Daily Points]]="",NA(),Table2211[[#This Row],[Daily Points]]/Table2211[[#This Row],[Daily Points Possible]]) ->  | F93: week avg | G93: =AVERAGEIF(E89:E93,"<>#N/A") -> 
E94: =IF(Table2211[[#This Row],[Daily Points]]="",NA(),Table2211[[#This Row],[Daily Points]]/Table2211[[#This Row],[Daily Points Possible]]) -> 
E95: =IF(Table2211[[#This Row],[Daily Points]]="",NA(),Table2211[[#This Row],[Daily Points]]/Table2211[[#This Row],[Daily Points Possible]]) -> 
E96: =IF(Table2211[[#This Row],[Daily Points]]="",NA(),Table2211[[#This Row],[Daily Points]]/Table2211[[#This Row],[Daily Points Possible]]) -> 
E97: =IF(Table2211[[#This Row],[Daily Points]]="",NA(),Table2211[[#This Row],[Daily Points]]/Table2211[[#This Row],[Daily Points Possible]]) -> 
E98: =IF(Table2211[[#This Row],[Daily Points]]="",NA(),Table2211[[#This Row],[Daily Points]]/Table2211[[#This Row],[Daily Points Possible]]) ->  | F98: week avg | G98: =AVERAGEIF(E94:E98,"<>#N/A") -> 
E99: =IF(Table2211[[#This Row],[Daily Points]]="",NA(),Table2211[[#This Row],[Daily Points]]/Table2211[[#This Row],[Daily Points Possible]]) -> 
E100: =IF(Table2211[[#This Row],[Daily Points]]="",NA(),Table2211[[#This Row],[Daily Points]]/Table2211[[#This Row],[Daily Points Possible]]) -> 
E101: =IF(Table2211[[#This Row],[Daily Points]]="",NA(),Table2211[[#This Row],[Daily Points]]/Table2211[[#This Row],[Daily Points Possible]]) -> 
E102: =IF(Table2211[[#This Row],[Daily Points]]="",NA(),Table2211[[#This Row],[Daily Points]]/Table2211[[#This Row],[Daily Points Possible]]) -> 
E103: =IF(Table2211[[#This Row],[Daily Points]]="",NA(),Table2211[[#This Row],[Daily Points]]/Table2211[[#This Row],[Daily Points Possible]]) ->  | F103: week avg | G103: =AVERAGEIF(E99:E103,"<>#N/A") -> 
E104: =IF(Table2211[[#This Row],[Daily Points]]="",NA(),Table2211[[#This Row],[Daily Points]]/Table2211[[#This Row],[Daily Points Possible]]) -> 
E105: =IF(Table2211[[#This Row],[Daily Points]]="",NA(),Table2211[[#This Row],[Daily Points]]/Table2211[[#This Row],[Daily Points Possible]]) -> 
E106: =IF(Table2211[[#This Row],[Daily Points]]="",NA(),Table2211[[#This Row],[Daily Points]]/Table2211[[#This Row],[Daily Points Possible]]) -> 
E107: =IF(Table2211[[#This Row],[Daily Points]]="",NA(),Table2211[[#This Row],[Daily Points]]/Table2211[[#This Row],[Daily Points Possible]]) -> 
E108: =IF(Table2211[[#This Row],[Daily Points]]="",NA(),Table2211[[#This Row],[Daily Points]]/Table2211[[#This Row],[Daily Points Possible]]) ->  | F108: week avg | G108: =AVERAGEIF(E104:E108,"<>#N/A") -> 
E109: =IF(Table2211[[#This Row],[Daily Points]]="",NA(),Table2211[[#This Row],[Daily Points]]/Table2211[[#This Row],[Daily Points Possible]]) -> 
E110: =IF(Table2211[[#This Row],[Daily Points]]="",NA(),Table2211[[#This Row],[Daily Points]]/Table2211[[#This Row],[Daily Points Possible]]) -> 
E111: =IF(Table2211[[#This Row],[Daily Points]]="",NA(),Table2211[[#This Row],[Daily Points]]/Table2211[[#This Row],[Daily Points Possible]]) -> 
E112: =IF(Table2211[[#This Row],[Daily Points]]="",NA(),Table2211[[#This Row],[Daily Points]]/Table2211[[#This Row],[Daily Points Possible]]) -> 
E113: =IF(Table2211[[#This Row],[Daily Points]]="",NA(),Table2211[[#This Row],[Daily Points]]/Table2211[[#This Row],[Daily Points Possible]]) ->  | F113: week avg | G113: =AVERAGEIF(E109:E113,"<>#N/A") -> 
E114: =IF(Table2211[[#This Row],[Daily Points]]="",NA(),Table2211[[#This Row],[Daily Points]]/Table2211[[#This Row],[Daily Points Possible]]) -> 
E115: =IF(Table2211[[#This Row],[Daily Points]]="",NA(),Table2211[[#This Row],[Daily Points]]/Table2211[[#This Row],[Daily Points Possible]]) -> 
E116: =IF(Table2211[[#This Row],[Daily Points]]="",NA(),Table2211[[#This Row],[Daily Points]]/Table2211[[#This Row],[Daily Points Possible]]) -> 
E117: =IF(Table2211[[#This Row],[Daily Points]]="",NA(),Table2211[[#This Row],[Daily Points]]/Table2211[[#This Row],[Daily Points Possible]]) -> 
E118: =IF(Table2211[[#This Row],[Daily Points]]="",NA(),Table2211[[#This Row],[Daily Points]]/Table2211[[#This Row],[Daily Points Possible]]) ->  | F118: week avg | G118: =AVERAGEIF(E114:E118,"<>#N/A") -> 
E119: =IF(Table2211[[#This Row],[Daily Points]]="",NA(),Table2211[[#This Row],[Daily Points]]/Table2211[[#This Row],[Daily Points Possible]]) -> 
E120: =IF(Table2211[[#This Row],[Daily Points]]="",NA(),Table2211[[#This Row],[Daily Points]]/Table2211[[#This Row],[Daily Points Possible]]) -> 
E121: =IF(Table2211[[#This Row],[Daily Points]]="",NA(),Table2211[[#This Row],[Daily Points]]/Table2211[[#This Row],[Daily Points Possible]]) -> 
E122: =IF(Table2211[[#This Row],[Daily Points]]="",NA(),Table2211[[#This Row],[Daily Points]]/Table2211[[#This Row],[Daily Points Possible]]) -> 
E123: =IF(Table2211[[#This Row],[Daily Points]]="",NA(),Table2211[[#This Row],[Daily Points]]/Table2211[[#This Row],[Daily Points Possible]]) ->  | F123: week avg | G123: =AVERAGEIF(E119:E123,"<>#N/A") -> 
E124: =IF(Table2211[[#This Row],[Daily Points]]="",NA(),Table2211[[#This Row],[Daily Points]]/Table2211[[#This Row],[Daily Points Possible]]) -> 
E125: =IF(Table2211[[#This Row],[Daily Points]]="",NA(),Table2211[[#This Row],[Daily Points]]/Table2211[[#This Row],[Daily Points Possible]]) -> 
E126: =IF(Table2211[[#This Row],[Daily Points]]="",NA(),Table2211[[#This Row],[Daily Points]]/Table2211[[#This Row],[Daily Points Possible]]) -> 
E127: =IF(Table2211[[#This Row],[Daily Points]]="",NA(),Table2211[[#This Row],[Daily Points]]/Table2211[[#This Row],[Daily Points Possible]]) -> 
E128: =IF(Table2211[[#This Row],[Daily Points]]="",NA(),Table2211[[#This Row],[Daily Points]]/Table2211[[#This Row],[Daily Points Possible]]) ->  | F128: week avg | G128: =AVERAGEIF(E124:E128,"<>#N/A") -> 
E129: =IF(Table2211[[#This Row],[Daily Points]]="",NA(),Table2211[[#This Row],[Daily Points]]/Table2211[[#This Row],[Daily Points Possible]]) -> 
E130: =IF(Table2211[[#This Row],[Daily Points]]="",NA(),Table2211[[#This Row],[Daily Points]]/Table2211[[#This Row],[Daily Points Possible]]) -> 
E131: =IF(Table2211[[#This Row],[Daily Points]]="",NA(),Table2211[[#This Row],[Daily Points]]/Table2211[[#This Row],[Daily Points Possible]]) -> 
A132: =IF(A131,WORKDAY(A131,1),"") ->  | E132: =IF(Table2211[[#This Row],[Daily Points]]="",NA(),Table2211[[#This Row],[Daily Points]]/Table2211[[#This Row],[Daily Points Possible]]) -> 
E133: =IF(Table2211[[#This Row],[Daily Points]]="",NA(),Table2211[[#This Row],[Daily Points]]/Table2211[[#This Row],[Daily Points Possible]]) ->  | F133: week avg | G133: =AVERAGEIF(E129:E133,"<>#N/A") -> 
E134: =IF(Table2211[[#This Row],[Daily Points]]="",NA(),Table2211[[#This Row],[Daily Points]]/Table2211[[#This Row],[Daily Points Possible]]) -> 
E135: =IF(Table2211[[#This Row],[Daily Points]]="",NA(),Table2211[[#This Row],[Daily Points]]/Table2211[[#This Row],[Daily Points Possible]]) -> 
E136: =IF(Table2211[[#This Row],[Daily Points]]="",NA(),Table2211[[#This Row],[Daily Points]]/Table2211[[#This Row],[Daily Points Possible]]) -> 
E137: =IF(Table2211[[#This Row],[Daily Points]]="",NA(),Table2211[[#This Row],[Daily Points]]/Table2211[[#This Row],[Daily Points Possible]]) -> 
E138: =IF(Table2211[[#This Row],[Daily Points]]="",NA(),Table2211[[#This Row],[Daily Points]]/Table2211[[#This Row],[Daily Points Possible]]) ->  | F138: week avg | G138: =AVERAGEIF(E134:E138,"<>#N/A") -> 
E139: =IF(Table2211[[#This Row],[Daily Points]]="",NA(),Table2211[[#This Row],[Daily Points]]/Table2211[[#This Row],[Daily Points Possible]]) -> 
E140: =IF(Table2211[[#This Row],[Daily Points]]="",NA(),Table2211[[#This Row],[Daily Points]]/Table2211[[#This Row],[Daily Points Possible]]) -> 
E141: =IF(Table2211[[#This Row],[Daily Points]]="",NA(),Table2211[[#This Row],[Daily Points]]/Table2211[[#This Row],[Daily Points Possible]]) -> 
E142: =IF(Table2211[[#This Row],[Daily Points]]="",NA(),Table2211[[#This Row],[Daily Points]]/Table2211[[#This Row],[Daily Points Possible]]) -> 
E143: =IF(Table2211[[#This Row],[Daily Points]]="",NA(),Table2211[[#This Row],[Daily Points]]/Table2211[[#This Row],[Daily Points Possible]]) ->  | F143: week avg | G143: =AVERAGEIF(E139:E143,"<>#N/A") -> 
E144: =IF(Table2211[[#This Row],[Daily Points]]="",NA(),Table2211[[#This Row],[Daily Points]]/Table2211[[#This Row],[Daily Points Possible]]) -> 
E145: =IF(Table2211[[#This Row],[Daily Points]]="",NA(),Table2211[[#This Row],[Daily Points]]/Table2211[[#This Row],[Daily Points Possible]]) -> 
E146: =IF(Table2211[[#This Row],[Daily Points]]="",NA(),Table2211[[#This Row],[Daily Points]]/Table2211[[#This Row],[Daily Points Possible]]) -> 
E147: =IF(Table2211[[#This Row],[Daily Points]]="",NA(),Table2211[[#This Row],[Daily Points]]/Table2211[[#This Row],[Daily Points Possible]]) -> 
E148: =IF(Table2211[[#This Row],[Daily Points]]="",NA(),Table2211[[#This Row],[Daily Points]]/Table2211[[#This Row],[Daily Points Possible]]) ->  | F148: week avg | G148: =AVERAGEIF(E144:E148,"<>#N/A") -> 
E149: =IF(Table2211[[#This Row],[Daily Points]]="",NA(),Table2211[[#This Row],[Daily Points]]/Table2211[[#This Row],[Daily Points Possible]]) -> 
E150: =IF(Table2211[[#This Row],[Daily Points]]="",NA(),Table2211[[#This Row],[Daily Points]]/Table2211[[#This Row],[Daily Points Possible]]) -> 
E151: =IF(Table2211[[#This Row],[Daily Points]]="",NA(),Table2211[[#This Row],[Daily Points]]/Table2211[[#This Row],[Daily Points Possible]]) -> 
E152: =IF(Table2211[[#This Row],[Daily Points]]="",NA(),Table2211[[#This Row],[Daily Points]]/Table2211[[#This Row],[Daily Points Possible]]) -> 
E153: =IF(Table2211[[#This Row],[Daily Points]]="",NA(),Table2211[[#This Row],[Daily Points]]/Table2211[[#This Row],[Daily Points Possible]]) ->  | F153: week avg | G153: =AVERAGEIF(E149:E153,"<>#N/A") -> 
E154: =IF(Table2211[[#This Row],[Daily Points]]="",NA(),Table2211[[#This Row],[Daily Points]]/Table2211[[#This Row],[Daily Points Possible]]) -> 
E155: =IF(Table2211[[#This Row],[Daily Points]]="",NA(),Table2211[[#This Row],[Daily Points]]/Table2211[[#This Row],[Daily Points Possible]]) -> 
E156: =IF(Table2211[[#This Row],[Daily Points]]="",NA(),Table2211[[#This Row],[Daily Points]]/Table2211[[#This Row],[Daily Points Possible]]) -> 
E157: =IF(Table2211[[#This Row],[Daily Points]]="",NA(),Table2211[[#This Row],[Daily Points]]/Table2211[[#This Row],[Daily Points Possible]]) -> 
E158: =IF(Table2211[[#This Row],[Daily Points]]="",NA(),Table2211[[#This Row],[Daily Points]]/Table2211[[#This Row],[Daily Points Possible]]) ->  | F158: week avg | G158: =AVERAGEIF(E154:E158,"<>#N/A") -> 
E159: =IF(Table2211[[#This Row],[Daily Points]]="",NA(),Table2211[[#This Row],[Daily Points]]/Table2211[[#This Row],[Daily Points Possible]]) -> 
E160: =IF(Table2211[[#This Row],[Daily Points]]="",NA(),Table2211[[#This Row],[Daily Points]]/Table2211[[#This Row],[Daily Points Possible]]) -> 
E161: =IF(Table2211[[#This Row],[Daily Points]]="",NA(),Table2211[[#This Row],[Daily Points]]/Table2211[[#This Row],[Daily Points Possible]]) -> 
E162: =IF(Table2211[[#This Row],[Daily Points]]="",NA(),Table2211[[#This Row],[Daily Points]]/Table2211[[#This Row],[Daily Points Possible]]) -> 
E163: =IF(Table2211[[#This Row],[Daily Points]]="",NA(),Table2211[[#This Row],[Daily Points]]/Table2211[[#This Row],[Daily Points Possible]]) ->  | F163: week avg | G163: =AVERAGEIF(E159:E163,"<>#N/A") -> 
E164: =IF(Table2211[[#This Row],[Daily Points]]="",NA(),Table2211[[#This Row],[Daily Points]]/Table2211[[#This Row],[Daily Points Possible]]) -> 
E165: =IF(Table2211[[#This Row],[Daily Points]]="",NA(),Table2211[[#This Row],[Daily Points]]/Table2211[[#This Row],[Daily Points Possible]]) -> 
E166: =IF(Table2211[[#This Row],[Daily Points]]="",NA(),Table2211[[#This Row],[Daily Points]]/Table2211[[#This Row],[Daily Points Possible]]) -> 
E167: =IF(Table2211[[#This Row],[Daily Points]]="",NA(),Table2211[[#This Row],[Daily Points]]/Table2211[[#This Row],[Daily Points Possible]]) -> 
E168: =IF(Table2211[[#This Row],[Daily Points]]="",NA(),Table2211[[#This Row],[Daily Points]]/Table2211[[#This Row],[Daily Points Possible]]) ->  | F168: week avg | G168: =AVERAGEIF(E164:E168,"<>#N/A") -> 
E169: =IF(Table2211[[#This Row],[Daily Points]]="",NA(),Table2211[[#This Row],[Daily Points]]/Table2211[[#This Row],[Daily Points Possible]]) -> 
E170: =IF(Table2211[[#This Row],[Daily Points]]="",NA(),Table2211[[#This Row],[Daily Points]]/Table2211[[#This Row],[Daily Points Possible]]) -> 
E171: =IF(Table2211[[#This Row],[Daily Points]]="",NA(),Table2211[[#This Row],[Daily Points]]/Table2211[[#This Row],[Daily Points Possible]]) -> 
E172: =IF(Table2211[[#This Row],[Daily Points]]="",NA(),Table2211[[#This Row],[Daily Points]]/Table2211[[#This Row],[Daily Points Possible]]) -> 
E173: =IF(Table2211[[#This Row],[Daily Points]]="",NA(),Table2211[[#This Row],[Daily Points]]/Table2211[[#This Row],[Daily Points Possible]]) ->  | F173: week avg | G173: =AVERAGEIF(E169:E173,"<>#N/A") -> 
E174: =IF(Table2211[[#This Row],[Daily Points]]="",NA(),Table2211[[#This Row],[Daily Points]]/Table2211[[#This Row],[Daily Points Possible]]) -> 
E175: =IF(Table2211[[#This Row],[Daily Points]]="",NA(),Table2211[[#This Row],[Daily Points]]/Table2211[[#This Row],[Daily Points Possible]]) -> 
E176: =IF(Table2211[[#This Row],[Daily Points]]="",NA(),Table2211[[#This Row],[Daily Points]]/Table2211[[#This Row],[Daily Points Possible]]) -> 
E177: =IF(Table2211[[#This Row],[Daily Points]]="",NA(),Table2211[[#This Row],[Daily Points]]/Table2211[[#This Row],[Daily Points Possible]]) -> 
E178: =IF(Table2211[[#This Row],[Daily Points]]="",NA(),Table2211[[#This Row],[Daily Points]]/Table2211[[#This Row],[Daily Points Possible]]) ->  | F178: week avg | G178: =AVERAGEIF(E174:E178,"<>#N/A") -> 
E179: =IF(Table2211[[#This Row],[Daily Points]]="",NA(),Table2211[[#This Row],[Daily Points]]/Table2211[[#This Row],[Daily Points Possible]]) -> 
E180: =IF(Table2211[[#This Row],[Daily Points]]="",NA(),Table2211[[#This Row],[Daily Points]]/Table2211[[#This Row],[Daily Points Possible]]) -> 
E181: =IF(Table2211[[#This Row],[Daily Points]]="",NA(),Table2211[[#This Row],[Daily Points]]/Table2211[[#This Row],[Daily Points Possible]]) -> 
E182: =IF(Table2211[[#This Row],[Daily Points]]="",NA(),Table2211[[#This Row],[Daily Points]]/Table2211[[#This Row],[Daily Points Possible]]) -> 
E183: =IF(Table2211[[#This Row],[Daily Points]]="",NA(),Table2211[[#This Row],[Daily Points]]/Table2211[[#This Row],[Daily Points Possible]]) ->  | F183: week avg | G183: =AVERAGEIF(E179:E183,"<>#N/A") -> 
E184: =IF(Table2211[[#This Row],[Daily Points]]="",NA(),Table2211[[#This Row],[Daily Points]]/Table2211[[#This Row],[Daily Points Possible]]) -> 
E185: =IF(Table2211[[#This Row],[Daily Points]]="",NA(),Table2211[[#This Row],[Daily Points]]/Table2211[[#This Row],[Daily Points Possible]]) -> 
E186: =IF(Table2211[[#This Row],[Daily Points]]="",NA(),Table2211[[#This Row],[Daily Points]]/Table2211[[#This Row],[Daily Points Possible]]) -> 
E187: =IF(Table2211[[#This Row],[Daily Points]]="",NA(),Table2211[[#This Row],[Daily Points]]/Table2211[[#This Row],[Daily Points Possible]]) -> 
E188: =IF(Table2211[[#This Row],[Daily Points]]="",NA(),Table2211[[#This Row],[Daily Points]]/Table2211[[#This Row],[Daily Points Possible]]) ->  | F188: week avg | G188: =AVERAGEIF(E184:E188,"<>#N/A") -> 
E189: =IF(Table2211[[#This Row],[Daily Points]]="",NA(),Table2211[[#This Row],[Daily Points]]/Table2211[[#This Row],[Daily Points Possible]]) -> 
E190: =IF(Table2211[[#This Row],[Daily Points]]="",NA(),Table2211[[#This Row],[Daily Points]]/Table2211[[#This Row],[Daily Points Possible]]) -> 
E191: =IF(Table2211[[#This Row],[Daily Points]]="",NA(),Table2211[[#This Row],[Daily Points]]/Table2211[[#This Row],[Daily Points Possible]]) -> 
E192: =IF(Table2211[[#This Row],[Daily Points]]="",NA(),Table2211[[#This Row],[Daily Points]]/Table2211[[#This Row],[Daily Points Possible]]) -> 
E193: =IF(Table2211[[#This Row],[Daily Points]]="",NA(),Table2211[[#This Row],[Daily Points]]/Table2211[[#This Row],[Daily Points Possible]]) ->  | F193: week avg | G193: =AVERAGEIF(E189:E193,"<>#N/A") -> 
E194: =IF(Table2211[[#This Row],[Daily Points]]="",NA(),Table2211[[#This Row],[Daily Points]]/Table2211[[#This Row],[Daily Points Possible]]) -> 
E195: =IF(Table2211[[#This Row],[Daily Points]]="",NA(),Table2211[[#This Row],[Daily Points]]/Table2211[[#This Row],[Daily Points Possible]]) -> 
A196: =IF(A195,WORKDAY(A195,1),"") ->  | E196: =IF(Table2211[[#This Row],[Daily Points]]="",NA(),Table2211[[#This Row],[Daily Points]]/Table2211[[#This Row],[Daily Points Possible]]) -> 
E197: =IF(Table2211[[#This Row],[Daily Points]]="",NA(),Table2211[[#This Row],[Daily Points]]/Table2211[[#This Row],[Daily Points Possible]]) -> 
E198: =IF(Table2211[[#This Row],[Daily Points]]="",NA(),Table2211[[#This Row],[Daily Points]]/Table2211[[#This Row],[Daily Points Possible]]) ->  | F198: week avg | G198: =AVERAGEIF(E194:E198,"<>#N/A") -> 
E199: =IF(Table2211[[#This Row],[Daily Points]]="",NA(),Table2211[[#This Row],[Daily Points]]/Table2211[[#This Row],[Daily Points Possible]]) -> 
E200: =IF(Table2211[[#This Row],[Daily Points]]="",NA(),Table2211[[#This Row],[Daily Points]]/Table2211[[#This Row],[Daily Points Possible]]) -> 
... 23 more rows

Sheet Student10
F1: GOAL
A2: =StudentInfo!B14 -> 0 | F2: =StudentInfo!AI114 -> 0
